Workbook

Sheet ROC(2) calc (hidden)
W1: =ROUND(MIN(W3:W52),2) -> 0 | X1: =MATCH(W1,W3:W52,0) -> 
B2: Sens | C2: AUC | D2: =D3&"; "&'ROC (2)'!P12 -> ROC; | F2: Spec | G2: PV(+) | H2: PV(-) | I2: Efficiency | J2: TP | K2: FN | L2: TN | M2: FP | N2: pe | O2: kappa | P2: +err | Q2: -err | R2: lr(+) | S2: LR(-) | V2: k-index | W2: k-index
A3: 1 | B3: =IF(ISBLANK('ROC (2)'!H3),NA(),'ROC (2)'!I3+'ROC (2)'!J3) ->  | C3: =IF(AND(ISNUMBER('ROC (2)'!H3),ISNUMBER('ROC (2)'!H4)),ABS(('ROC (2)'!I4-'ROC (2)'!I3)*(B3+B4)/2),0) -> 0 | D3: ROC | F3: =1-'ROC (2)'!I3 -> 0 | G3: =IF(F3=1,NA(),IF($D$20*B3/($D$20*B3+(1-F3)*(1-$D$20))=$D$20,NA(),$D$20*B3/($D$20*B3+(1-F3)*(1-$D$20)))) ->  | H3: =IF(F3=1,NA(),IF(((1-$D$20)*F3+(1-B3)*$D$20)=0,NA(),(1-$D$20)*F3/((1-$D$20)*F3+(1-B3)*$D$20))) ->  | I3: =IF($D$20*B3+F3*(1-$D$20)=$D$20,NA(),$D$20*B3+F3*(1-$D$20)) ->  | J3: =B3*$D$20*'ROC (2)'!$N$5 ->  | K3: =$D$20*'ROC (2)'!$N$5*(1-B3) ->  | L3: =F3*'ROC (2)'!$N$5*(1-$D$20) ->  | M3: ='ROC (2)'!$N$5*(1-$D$20)*(1-F3) ->  | N3: =((J3+K3)*(J3+M3)+(L3+M3)*(L3+K3))/('ROC (2)'!$N$5^2) ->  | O3: =(I3-N3)/(1-N3) ->  | P3: =O3+1.96*(I3*(1-I3))/('ROC (2)'!$N$5*(1-N3)) ->  | Q3: =O3-1.96*(I3*(1-I3))/('ROC (2)'!$N$5*(1-N3)) ->  | R3: =IF(1-F3=0,NA(),B3/(1-F3)) ->  | S3: =IF(F3=0,"",(1-B3)/F3) ->  | V3: =SQRT((1-B3)^2+(1-F3)^2) ->  | W3: =IF(ISNUMBER(V3),ROUND(V3,2),"") -> 
A4: 2 | B4: =IF(ISBLANK('ROC (2)'!H4),NA(),'ROC (2)'!I4+'ROC (2)'!J4) ->  | C4: =IF(AND(ISNUMBER('ROC (2)'!H4),ISNUMBER('ROC (2)'!H5)),ABS(('ROC (2)'!I5-'ROC (2)'!I4)*(B4+B5)/2),0) -> 0 | D4: CDA | F4: =1-'ROC (2)'!I4 -> 0.02941176471 | G4: =IF(F4=1,NA(),IF($D$20*B4/($D$20*B4+(1-F4)*(1-$D$20))=$D$20,NA(),$D$20*B4/($D$20*B4+(1-F4)*(1-$D$20)))) ->  | H4: =IF(F4=1,NA(),IF(((1-$D$20)*F4+(1-B4)*$D$20)=0,NA(),(1-$D$20)*F4/((1-$D$20)*F4+(1-B4)*$D$20))) ->  | I4: =IF($D$20*B4+F4*(1-$D$20)=$D$20,NA(),$D$20*B4+F4*(1-$D$20)) ->  | J4: =B4*$D$20*'ROC (2)'!$N$5 ->  | K4: =$D$20*'ROC (2)'!$N$5*(1-B4) ->  | L4: =F4*'ROC (2)'!$N$5*(1-$D$20) ->  | M4: ='ROC (2)'!$N$5*(1-$D$20)*(1-F4) ->  | N4: =((J4+K4)*(J4+M4)+(L4+M4)*(L4+K4))/('ROC (2)'!$N$5^2) ->  | O4: =(I4-N4)/(1-N4) ->  | P4: =O4+1.96*(I4*(1-I4))/('ROC (2)'!$N$5*(1-N4)) ->  | Q4: =O4-1.96*(I4*(1-I4))/('ROC (2)'!$N$5*(1-N4)) ->  | R4: =IF(1-F4=0,NA(),B4/(1-F4)) ->  | S4: =IF(F4=0,"",(1-B4)/F4) ->  | V4: =SQRT((1-B4)^2+(1-F4)^2) ->  | W4: =IF(ISNUMBER(V4),ROUND(V4,2),"") -> 
A5: 3 | B5: =IF(ISBLANK('ROC (2)'!H5),NA(),'ROC (2)'!I5+'ROC (2)'!J5) ->  | C5: =IF(AND(ISNUMBER('ROC (2)'!H5),ISNUMBER('ROC (2)'!H6)),ABS(('ROC (2)'!I6-'ROC (2)'!I5)*(B5+B6)/2),0) -> 0 | D5: =D4&"; "&'ROC (2)'!$P$12 -> CDA; | F5: =1-'ROC (2)'!I5 -> 0.02941176471 | J5: =B5*$D$20*'ROC (2)'!$N$5 ->  | K5: =$D$20*'ROC (2)'!$N$5*(1-B5) ->  | L5: =F5*'ROC (2)'!$N$5*(1-$D$20) ->  | M5: ='ROC (2)'!$N$5*(1-$D$20)*(1-F5) ->  | N5: =((J5+K5)*(J5+M5)+(L5+M5)*(L5+K5))/('ROC (2)'!$N$5^2) ->  | P5: =O5+1.96*(I5*(1-I5))/('ROC (2)'!$N$5*(1-N5)) ->  | Q5: =O5-1.96*(I5*(1-I5))/('ROC (2)'!$N$5*(1-N5)) ->  | S5: =IF(F5=0,"",(1-B5)/F5) -> 
A6: 4 | B6: =IF(ISBLANK('ROC (2)'!H6),NA(),'ROC (2)'!I6+'ROC (2)'!J6) ->  | C6: =IF(AND(ISNUMBER('ROC (2)'!H6),ISNUMBER('ROC (2)'!H7)),ABS(('ROC (2)'!I7-'ROC (2)'!I6)*(B6+B7)/2),0) -> 0 | F6: =1-'ROC (2)'!I6 -> 0.05882352941 | J6: =B6*$D$20*'ROC (2)'!$N$5 ->  | K6: =$D$20*'ROC (2)'!$N$5*(1-B6) ->  | L6: =F6*'ROC (2)'!$N$5*(1-$D$20) ->  | M6: ='ROC (2)'!$N$5*(1-$D$20)*(1-F6) ->  | N6: =((J6+K6)*(J6+M6)+(L6+M6)*(L6+K6))/('ROC (2)'!$N$5^2) ->  | P6: =O6+1.96*(I6*(1-I6))/('ROC (2)'!$N$5*(1-N6)) ->  | Q6: =O6-1.96*(I6*(1-I6))/('ROC (2)'!$N$5*(1-N6)) ->  | S6: =IF(F6=0,"",(1-B6)/F6) -> 
A7: 5 | B7: =IF(ISBLANK('ROC (2)'!H7),NA(),'ROC (2)'!I7+'ROC (2)'!J7) ->  | C7: =IF(AND(ISNUMBER('ROC (2)'!H7),ISNUMBER('ROC (2)'!H8)),ABS(('ROC (2)'!I8-'ROC (2)'!I7)*(B7+B8)/2),0) -> 0 | F7: =1-'ROC (2)'!I7 -> 0.08823529412 | J7: =B7*$D$20*'ROC (2)'!$N$5 ->  | K7: =$D$20*'ROC (2)'!$N$5*(1-B7) ->  | L7: =F7*'ROC (2)'!$N$5*(1-$D$20) ->  | M7: ='ROC (2)'!$N$5*(1-$D$20)*(1-F7) ->  | N7: =((J7+K7)*(J7+M7)+(L7+M7)*(L7+K7))/('ROC (2)'!$N$5^2) ->  | P7: =O7+1.96*(I7*(1-I7))/('ROC (2)'!$N$5*(1-N7)) ->  | Q7: =O7-1.96*(I7*(1-I7))/('ROC (2)'!$N$5*(1-N7)) ->  | S7: =IF(F7=0,"",(1-B7)/F7) -> 
A8: 6 | B8: =IF(ISBLANK('ROC (2)'!H8),NA(),'ROC (2)'!I8+'ROC (2)'!J8) ->  | C8: =IF(AND(ISNUMBER('ROC (2)'!H8),ISNUMBER('ROC (2)'!H9)),ABS(('ROC (2)'!I9-'ROC (2)'!I8)*(B8+B9)/2),0) -> 0 | F8: =1-'ROC (2)'!I8 -> 0.08823529412 | J8: =B8*$D$20*'ROC (2)'!$N$5 ->  | K8: =$D$20*'ROC (2)'!$N$5*(1-B8) ->  | L8: =F8*'ROC (2)'!$N$5*(1-$D$20) ->  | M8: ='ROC (2)'!$N$5*(1-$D$20)*(1-F8) ->  | N8: =((J8+K8)*(J8+M8)+(L8+M8)*(L8+K8))/('ROC (2)'!$N$5^2) ->  | P8: =O8+1.96*(I8*(1-I8))/('ROC (2)'!$N$5*(1-N8)) ->  | Q8: =O8-1.96*(I8*(1-I8))/('ROC (2)'!$N$5*(1-N8)) -> 
A9: 7 | B9: =IF(ISBLANK('ROC (2)'!H9),NA(),'ROC (2)'!I9+'ROC (2)'!J9) ->  | C9: =IF(AND(ISNUMBER('ROC (2)'!H9),ISNUMBER('ROC (2)'!H10)),ABS(('ROC (2)'!I10-'ROC (2)'!I9)*(B9+B10)/2),0) -> 0 | D9: J-max: | F9: =1-'ROC (2)'!I9 -> 0.08823529412 | J9: =B9*$D$20*'ROC (2)'!$N$5 ->  | K9: =$D$20*'ROC (2)'!$N$5*(1-B9) ->  | L9: =F9*'ROC (2)'!$N$5*(1-$D$20) ->  | M9: ='ROC (2)'!$N$5*(1-$D$20)*(1-F9) ->  | N9: =((J9+K9)*(J9+M9)+(L9+M9)*(L9+K9))/('ROC (2)'!$N$5^2) ->  | P9: =O9+1.96*(I9*(1-I9))/('ROC (2)'!$N$5*(1-N9)) ->  | Q9: =O9-1.96*(I9*(1-I9))/('ROC (2)'!$N$5*(1-N9)) -> 
A10: 8 | B10: =IF(ISBLANK('ROC (2)'!H10),NA(),'ROC (2)'!I10+'ROC (2)'!J10) ->  | C10: =IF(AND(ISNUMBER('ROC (2)'!H10),ISNUMBER('ROC (2)'!H11)),ABS(('ROC (2)'!I11-'ROC (2)'!I10)*(B10+B11)/2),0) -> 0 | D10: =MAX('ROC (2)'!J3:J52) -> 0.2254901961 | F10: =1-'ROC (2)'!I10 -> 0.1176470588 | J10: =B10*$D$20*'ROC (2)'!$N$5 ->  | K10: =$D$20*'ROC (2)'!$N$5*(1-B10) ->  | L10: =F10*'ROC (2)'!$N$5*(1-$D$20) ->  | M10: ='ROC (2)'!$N$5*(1-$D$20)*(1-F10) ->  | N10: =((J10+K10)*(J10+M10)+(L10+M10)*(L10+K10))/('ROC (2)'!$N$5^2) ->  | P10: =O10+1.96*(I10*(1-I10))/('ROC (2)'!$N$5*(1-N10)) ->  | Q10: =O10-1.96*(I10*(1-I10))/('ROC (2)'!$N$5*(1-N10)) -> 
A11: 9 | B11: =IF(ISBLANK('ROC (2)'!H11),NA(),'ROC (2)'!I11+'ROC (2)'!J11) ->  | C11: =IF(AND(ISNUMBER('ROC (2)'!H11),ISNUMBER('ROC (2)'!H12)),ABS(('ROC (2)'!I12-'ROC (2)'!I11)*(B11+B12)/2),0) -> 0 | D11: Q1: | E11: ='ROC (2)'!L14/(2-'ROC (2)'!L14) ->  | F11: =1-'ROC (2)'!I11 -> 0.1470588235 | J11: =B11*$D$20*'ROC (2)'!$N$5 ->  | K11: =$D$20*'ROC (2)'!$N$5*(1-B11) ->  | L11: =F11*'ROC (2)'!$N$5*(1-$D$20) ->  | M11: ='ROC (2)'!$N$5*(1-$D$20)*(1-F11) ->  | N11: =((J11+K11)*(J11+M11)+(L11+M11)*(L11+K11))/('ROC (2)'!$N$5^2) ->  | P11: =O11+1.96*(I11*(1-I11))/('ROC (2)'!$N$5*(1-N11)) ->  | Q11: =O11-1.96*(I11*(1-I11))/('ROC (2)'!$N$5*(1-N11)) -> 
A12: 10 | B12: =IF(ISBLANK('ROC (2)'!H12),NA(),'ROC (2)'!I12+'ROC (2)'!J12) ->  | C12: =IF(AND(ISNUMBER('ROC (2)'!H12),ISNUMBER('ROC (2)'!H13)),ABS(('ROC (2)'!I13-'ROC (2)'!I12)*(B12+B13)/2),0) -> 0 | D12: Q2 | E12: =2*'ROC (2)'!L14^2/(1+'ROC (2)'!L14) ->  | F12: =1-'ROC (2)'!I12 -> 0.2058823529 | J12: =B12*$D$20*'ROC (2)'!$N$5 ->  | K12: =$D$20*'ROC (2)'!$N$5*(1-B12) ->  | L12: =F12*'ROC (2)'!$N$5*(1-$D$20) ->  | M12: ='ROC (2)'!$N$5*(1-$D$20)*(1-F12) ->  | N12: =((J12+K12)*(J12+M12)+(L12+M12)*(L12+K12))/('ROC (2)'!$N$5^2) ->  | P12: =O12+1.96*(I12*(1-I12))/('ROC (2)'!$N$5*(1-N12)) ->  | Q12: =O12-1.96*(I12*(1-I12))/('ROC (2)'!$N$5*(1-N12)) -> 
A13: 11 | B13: =IF(ISBLANK('ROC (2)'!H13),NA(),'ROC (2)'!I13+'ROC (2)'!J13) ->  | C13: =IF(AND(ISNUMBER('ROC (2)'!H13),ISNUMBER('ROC (2)'!H14)),ABS(('ROC (2)'!I14-'ROC (2)'!I13)*(B13+B14)/2),0) -> 0 | D13: SE(AUC) | E13: =SQRT(('ROC (2)'!L14*(1-'ROC (2)'!L14)+('ROC (2)'!N3-1)*(E11-'ROC (2)'!L14^2)+('ROC (2)'!N4-1)*(E12-'ROC (2)'!L14^2))/('ROC (2)'!N3*'ROC (2)'!N4)) ->  | F13: =1-'ROC (2)'!I13 -> 0.2058823529 | J13: =B13*$D$20*'ROC (2)'!$N$5 ->  | K13: =$D$20*'ROC (2)'!$N$5*(1-B13) ->  | L13: =F13*'ROC (2)'!$N$5*(1-$D$20) ->  | M13: ='ROC (2)'!$N$5*(1-$D$20)*(1-F13) ->  | N13: =((J13+K13)*(J13+M13)+(L13+M13)*(L13+K13))/('ROC (2)'!$N$5^2) ->  | P13: =O13+1.96*(I13*(1-I13))/('ROC (2)'!$N$5*(1-N13)) ->  | Q13: =O13-1.96*(I13*(1-I13))/('ROC (2)'!$N$5*(1-N13)) -> 
A14: 12 | B14: =IF(ISBLANK('ROC (2)'!H14),NA(),'ROC (2)'!I14+'ROC (2)'!J14) ->  | C14: =IF(AND(ISNUMBER('ROC (2)'!H14),ISNUMBER('ROC (2)'!H15)),ABS(('ROC (2)'!I15-'ROC (2)'!I14)*(B14+B15)/2),0) -> 0 | F14: =1-'ROC (2)'!I14 -> 0.2058823529 | J14: =B14*$D$20*'ROC (2)'!$N$5 ->  | K14: =$D$20*'ROC (2)'!$N$5*(1-B14) ->  | L14: =F14*'ROC (2)'!$N$5*(1-$D$20) ->  | M14: ='ROC (2)'!$N$5*(1-$D$20)*(1-F14) ->  | N14: =((J14+K14)*(J14+M14)+(L14+M14)*(L14+K14))/('ROC (2)'!$N$5^2) ->  | P14: =O14+1.96*(I14*(1-I14))/('ROC (2)'!$N$5*(1-N14)) ->  | Q14: =O14-1.96*(I14*(1-I14))/('ROC (2)'!$N$5*(1-N14)) -> 
A15: 13 | B15: =IF(ISBLANK('ROC (2)'!H15),NA(),'ROC (2)'!I15+'ROC (2)'!J15) ->  | C15: =IF(AND(ISNUMBER('ROC (2)'!H15),ISNUMBER('ROC (2)'!H16)),ABS(('ROC (2)'!I16-'ROC (2)'!I15)*(B15+B16)/2),0) -> 0 | D15: ="Predictive values; "&'ROC (2)'!P12 -> Predictive values; | F15: =1-'ROC (2)'!I15 -> 0.2352941176 | J15: =B15*$D$20*'ROC (2)'!$N$5 ->  | K15: =$D$20*'ROC (2)'!$N$5*(1-B15) ->  | L15: =F15*'ROC (2)'!$N$5*(1-$D$20) ->  | M15: ='ROC (2)'!$N$5*(1-$D$20)*(1-F15) ->  | N15: =((J15+K15)*(J15+M15)+(L15+M15)*(L15+K15))/('ROC (2)'!$N$5^2) ->  | P15: =O15+1.96*(I15*(1-I15))/('ROC (2)'!$N$5*(1-N15)) ->  | Q15: =O15-1.96*(I15*(1-I15))/('ROC (2)'!$N$5*(1-N15)) -> 
A16: 14 | B16: =IF(ISBLANK('ROC (2)'!H16),NA(),'ROC (2)'!I16+'ROC (2)'!J16) ->  | C16: =IF(AND(ISNUMBER('ROC (2)'!H16),ISNUMBER('ROC (2)'!H17)),ABS(('ROC (2)'!I17-'ROC (2)'!I16)*(B16+B17)/2),0) -> 0 | F16: =1-'ROC (2)'!I16 -> 0.2941176471 | J16: =B16*$D$20*'ROC (2)'!$N$5 ->  | K16: =$D$20*'ROC (2)'!$N$5*(1-B16) ->  | L16: =F16*'ROC (2)'!$N$5*(1-$D$20) ->  | M16: ='ROC (2)'!$N$5*(1-$D$20)*(1-F16) ->  | N16: =((J16+K16)*(J16+M16)+(L16+M16)*(L16+K16))/('ROC (2)'!$N$5^2) ->  | P16: =O16+1.96*(I16*(1-I16))/('ROC (2)'!$N$5*(1-N16)) ->  | Q16: =O16-1.96*(I16*(1-I16))/('ROC (2)'!$N$5*(1-N16)) -> 
A17: 15 | B17: =IF(ISBLANK('ROC (2)'!H17),NA(),'ROC (2)'!I17+'ROC (2)'!J17) ->  | C17: =IF(AND(ISNUMBER('ROC (2)'!H17),ISNUMBER('ROC (2)'!H18)),ABS(('ROC (2)'!I18-'ROC (2)'!I17)*(B17+B18)/2),0) -> 0 | D17: ='ROC (2)'!P12 -> 0 | F17: =1-'ROC (2)'!I17 -> 0.3529411765 | J17: =B17*$D$20*'ROC (2)'!$N$5 ->  | K17: =$D$20*'ROC (2)'!$N$5*(1-B17) ->  | L17: =F17*'ROC (2)'!$N$5*(1-$D$20) ->  | M17: ='ROC (2)'!$N$5*(1-$D$20)*(1-F17) ->  | N17: =((J17+K17)*(J17+M17)+(L17+M17)*(L17+K17))/('ROC (2)'!$N$5^2) ->  | P17: =O17+1.96*(I17*(1-I17))/('ROC (2)'!$N$5*(1-N17)) ->  | Q17: =O17-1.96*(I17*(1-I17))/('ROC (2)'!$N$5*(1-N17)) -> 
A18: 16 | B18: =IF(ISBLANK('ROC (2)'!H18),NA(),'ROC (2)'!I18+'ROC (2)'!J18) ->  | C18: =IF(AND(ISNUMBER('ROC (2)'!H18),ISNUMBER('ROC (2)'!H19)),ABS(('ROC (2)'!I19-'ROC (2)'!I18)*(B18+B19)/2),0) -> 0 | D18: =D17&"; "&D15 -> 0; Predictive values; | F18: =1-'ROC (2)'!I18 -> 0.3529411765 | J18: =B18*$D$20*'ROC (2)'!$N$5 ->  | K18: =$D$20*'ROC (2)'!$N$5*(1-B18) ->  | L18: =F18*'ROC (2)'!$N$5*(1-$D$20) ->  | M18: ='ROC (2)'!$N$5*(1-$D$20)*(1-F18) ->  | N18: =((J18+K18)*(J18+M18)+(L18+M18)*(L18+K18))/('ROC (2)'!$N$5^2) ->  | P18: =O18+1.96*(I18*(1-I18))/('ROC (2)'!$N$5*(1-N18)) ->  | Q18: =O18-1.96*(I18*(1-I18))/('ROC (2)'!$N$5*(1-N18)) -> 
A19: 17 | B19: =IF(ISBLANK('ROC (2)'!H19),NA(),'ROC (2)'!I19+'ROC (2)'!J19) ->  | C19: =IF(AND(ISNUMBER('ROC (2)'!H19),ISNUMBER('ROC (2)'!H20)),ABS(('ROC (2)'!I20-'ROC (2)'!I19)*(B19+B20)/2),0) -> 0 | D19: ='ROC (2)'!O3&" "&ROUND(D20,3) ->  | F19: =1-'ROC (2)'!I19 -> 0.3823529412 | J19: =B19*$D$20*'ROC (2)'!$N$5 ->  | K19: =$D$20*'ROC (2)'!$N$5*(1-B19) ->  | L19: =F19*'ROC (2)'!$N$5*(1-$D$20) ->  | M19: ='ROC (2)'!$N$5*(1-$D$20)*(1-F19) ->  | N19: =((J19+K19)*(J19+M19)+(L19+M19)*(L19+K19))/('ROC (2)'!$N$5^2) ->  | P19: =O19+1.96*(I19*(1-I19))/('ROC (2)'!$N$5*(1-N19)) ->  | Q19: =O19-1.96*(I19*(1-I19))/('ROC (2)'!$N$5*(1-N19)) -> 
A20: 18 | B20: =IF(ISBLANK('ROC (2)'!H20),NA(),'ROC (2)'!I20+'ROC (2)'!J20) ->  | C20: =IF(AND(ISNUMBER('ROC (2)'!H20),ISNUMBER('ROC (2)'!H21)),ABS(('ROC (2)'!I21-'ROC (2)'!I20)*(B20+B21)/2),0) -> 0 | D20: =IF(ISNUMBER('ROC (2)'!P3),'ROC (2)'!P3,'ROC (2)'!T3) ->  | F20: =1-'ROC (2)'!I20 -> 0.5 | J20: =B20*$D$20*'ROC (2)'!$N$5 ->  | K20: =$D$20*'ROC (2)'!$N$5*(1-B20) ->  | L20: =F20*'ROC (2)'!$N$5*(1-$D$20) ->  | M20: ='ROC (2)'!$N$5*(1-$D$20)*(1-F20) ->  | N20: =((J20+K20)*(J20+M20)+(L20+M20)*(L20+K20))/('ROC (2)'!$N$5^2) ->  | P20: =O20+1.96*(I20*(1-I20))/('ROC (2)'!$N$5*(1-N20)) ->  | Q20: =O20-1.96*(I20*(1-I20))/('ROC (2)'!$N$5*(1-N20)) -> 
A21: 19 | B21: =IF(ISBLANK('ROC (2)'!H21),NA(),'ROC (2)'!I21+'ROC (2)'!J21) ->  | C21: =IF(AND(ISNUMBER('ROC (2)'!H21),ISNUMBER('ROC (2)'!H22)),ABS(('ROC (2)'!I22-'ROC (2)'!I21)*(B21+B22)/2),0) -> 0 | F21: =1-'ROC (2)'!I21 -> 0.5588235294 | J21: =B21*$D$20*'ROC (2)'!$N$5 ->  | K21: =$D$20*'ROC (2)'!$N$5*(1-B21) ->  | L21: =F21*'ROC (2)'!$N$5*(1-$D$20) ->  | M21: ='ROC (2)'!$N$5*(1-$D$20)*(1-F21) ->  | N21: =((J21+K21)*(J21+M21)+(L21+M21)*(L21+K21))/('ROC (2)'!$N$5^2) ->  | P21: =O21+1.96*(I21*(1-I21))/('ROC (2)'!$N$5*(1-N21)) ->  | Q21: =O21-1.96*(I21*(1-I21))/('ROC (2)'!$N$5*(1-N21)) -> 
A22: 20 | B22: =IF(ISBLANK('ROC (2)'!H22),NA(),'ROC (2)'!I22+'ROC (2)'!J22) ->  | C22: =IF(AND(ISNUMBER('ROC (2)'!H22),ISNUMBER('ROC (2)'!H23)),ABS(('ROC (2)'!I23-'ROC (2)'!I22)*(B22+B23)/2),0) -> 0 | D22: Diseased (D) | F22: =1-'ROC (2)'!I22 -> 0.5588235294 | J22: =B22*$D$20*'ROC (2)'!$N$5 ->  | K22: =$D$20*'ROC (2)'!$N$5*(1-B22) ->  | L22: =F22*'ROC (2)'!$N$5*(1-$D$20) ->  | M22: ='ROC (2)'!$N$5*(1-$D$20)*(1-F22) ->  | N22: =((J22+K22)*(J22+M22)+(L22+M22)*(L22+K22))/('ROC (2)'!$N$5^2) ->  | P22: =O22+1.96*(I22*(1-I22))/('ROC (2)'!$N$5*(1-N22)) ->  | Q22: =O22-1.96*(I22*(1-I22))/('ROC (2)'!$N$5*(1-N22)) -> 
A23: 21 | B23: =IF(ISBLANK('ROC (2)'!H23),NA(),'ROC (2)'!I23+'ROC (2)'!J23) ->  | C23: =IF(AND(ISNUMBER('ROC (2)'!H23),ISNUMBER('ROC (2)'!H24)),ABS(('ROC (2)'!I24-'ROC (2)'!I23)*(B23+B24)/2),0) -> 0 | D23: Healthy (H) | F23: =1-'ROC (2)'!I23 -> 0.5588235294 | J23: =B23*$D$20*'ROC (2)'!$N$5 ->  | K23: =$D$20*'ROC (2)'!$N$5*(1-B23) ->  | L23: =F23*'ROC (2)'!$N$5*(1-$D$20) ->  | M23: ='ROC (2)'!$N$5*(1-$D$20)*(1-F23) ->  | N23: =((J23+K23)*(J23+M23)+(L23+M23)*(L23+K23))/('ROC (2)'!$N$5^2) ->  | P23: =O23+1.96*(I23*(1-I23))/('ROC (2)'!$N$5*(1-N23)) ->  | Q23: =O23-1.96*(I23*(1-I23))/('ROC (2)'!$N$5*(1-N23)) -> 
A24: 22 | B24: =IF(ISBLANK('ROC (2)'!H24),NA(),'ROC (2)'!I24+'ROC (2)'!J24) ->  | C24: =IF(AND(ISNUMBER('ROC (2)'!H24),ISNUMBER('ROC (2)'!H25)),ABS(('ROC (2)'!I25-'ROC (2)'!I24)*(B24+B25)/2),0) -> 0 | F24: =1-'ROC (2)'!I24 -> 0.5588235294 | J24: =B24*$D$20*'ROC (2)'!$N$5 ->  | K24: =$D$20*'ROC (2)'!$N$5*(1-B24) ->  | L24: =F24*'ROC (2)'!$N$5*(1-$D$20) ->  | M24: ='ROC (2)'!$N$5*(1-$D$20)*(1-F24) ->  | N24: =((J24+K24)*(J24+M24)+(L24+M24)*(L24+K24))/('ROC (2)'!$N$5^2) ->  | P24: =O24+1.96*(I24*(1-I24))/('ROC (2)'!$N$5*(1-N24)) ->  | Q24: =O24-1.96*(I24*(1-I24))/('ROC (2)'!$N$5*(1-N24)) -> 
A25: 23 | B25: =IF(ISBLANK('ROC (2)'!H25),NA(),'ROC (2)'!I25+'ROC (2)'!J25) ->  | C25: =IF(AND(ISNUMBER('ROC (2)'!H25),ISNUMBER('ROC (2)'!H26)),ABS(('ROC (2)'!I26-'ROC (2)'!I25)*(B25+B26)/2),0) -> 0 | F25: =1-'ROC (2)'!I25 -> 0.5588235294 | J25: =B25*$D$20*'ROC (2)'!$N$5 ->  | K25: =$D$20*'ROC (2)'!$N$5*(1-B25) ->  | L25: =F25*'ROC (2)'!$N$5*(1-$D$20) ->  | M25: ='ROC (2)'!$N$5*(1-$D$20)*(1-F25) ->  | N25: =((J25+K25)*(J25+M25)+(L25+M25)*(L25+K25))/('ROC (2)'!$N$5^2) ->  | P25: =O25+1.96*(I25*(1-I25))/('ROC (2)'!$N$5*(1-N25)) ->  | Q25: =O25-1.96*(I25*(1-I25))/('ROC (2)'!$N$5*(1-N25)) ->  | V25: =SQRT((1-B25)^2+(1-F25)^2) -> 
A26: 24 | B26: =IF(ISBLANK('ROC (2)'!H26),NA(),'ROC (2)'!I26+'ROC (2)'!J26) ->  | C26: =IF(AND(ISNUMBER('ROC (2)'!H26),ISNUMBER('ROC (2)'!H27)),ABS(('ROC (2)'!I27-'ROC (2)'!I26)*(B26+B27)/2),0) -> 0 | F26: =1-'ROC (2)'!I26 -> 0.6176470588 | J26: =B26*$D$20*'ROC (2)'!$N$5 ->  | K26: =$D$20*'ROC (2)'!$N$5*(1-B26) ->  | L26: =F26*'ROC (2)'!$N$5*(1-$D$20) ->  | M26: ='ROC (2)'!$N$5*(1-$D$20)*(1-F26) ->  | N26: =((J26+K26)*(J26+M26)+(L26+M26)*(L26+K26))/('ROC (2)'!$N$5^2) ->  | P26: =O26+1.96*(I26*(1-I26))/('ROC (2)'!$N$5*(1-N26)) ->  | Q26: =O26-1.96*(I26*(1-I26))/('ROC (2)'!$N$5*(1-N26)) -> 
A27: 25 | B27: =IF(ISBLANK('ROC (2)'!H27),NA(),'ROC (2)'!I27+'ROC (2)'!J27) ->  | C27: =IF(AND(ISNUMBER('ROC (2)'!H27),ISNUMBER('ROC (2)'!H28)),ABS(('ROC (2)'!I28-'ROC (2)'!I27)*(B27+B28)/2),0) -> 0 | F27: =1-'ROC (2)'!I27 -> 0.6470588235 | J27: =B27*$D$20*'ROC (2)'!$N$5 ->  | K27: =$D$20*'ROC (2)'!$N$5*(1-B27) ->  | L27: =F27*'ROC (2)'!$N$5*(1-$D$20) ->  | M27: ='ROC (2)'!$N$5*(1-$D$20)*(1-F27) ->  | N27: =((J27+K27)*(J27+M27)+(L27+M27)*(L27+K27))/('ROC (2)'!$N$5^2) ->  | P27: =O27+1.96*(I27*(1-I27))/('ROC (2)'!$N$5*(1-N27)) ->  | Q27: =O27-1.96*(I27*(1-I27))/('ROC (2)'!$N$5*(1-N27)) -> 
A28: 26 | B28: =IF(ISBLANK('ROC (2)'!H28),NA(),'ROC (2)'!I28+'ROC (2)'!J28) ->  | C28: =IF(AND(ISNUMBER('ROC (2)'!H28),ISNUMBER('ROC (2)'!H29)),ABS(('ROC (2)'!I29-'ROC (2)'!I28)*(B28+B29)/2),0) -> 0 | F28: =1-'ROC (2)'!I28 -> 0.6764705882 | J28: =B28*$D$20*'ROC (2)'!$N$5 ->  | K28: =$D$20*'ROC (2)'!$N$5*(1-B28) ->  | L28: =F28*'ROC (2)'!$N$5*(1-$D$20) ->  | M28: ='ROC (2)'!$N$5*(1-$D$20)*(1-F28) ->  | N28: =((J28+K28)*(J28+M28)+(L28+M28)*(L28+K28))/('ROC (2)'!$N$5^2) ->  | P28: =O28+1.96*(I28*(1-I28))/('ROC (2)'!$N$5*(1-N28)) ->  | Q28: =O28-1.96*(I28*(1-I28))/('ROC (2)'!$N$5*(1-N28)) -> 
A29: 27 | B29: =IF(ISBLANK('ROC (2)'!H29),NA(),'ROC (2)'!I29+'ROC (2)'!J29) ->  | C29: =IF(AND(ISNUMBER('ROC (2)'!H29),ISNUMBER('ROC (2)'!H30)),ABS(('ROC (2)'!I30-'ROC (2)'!I29)*(B29+B30)/2),0) -> 0 | F29: =1-'ROC (2)'!I29 -> 0.6764705882 | J29: =B29*$D$20*'ROC (2)'!$N$5 ->  | K29: =$D$20*'ROC (2)'!$N$5*(1-B29) ->  | L29: =F29*'ROC (2)'!$N$5*(1-$D$20) ->  | M29: ='ROC (2)'!$N$5*(1-$D$20)*(1-F29) ->  | N29: =((J29+K29)*(J29+M29)+(L29+M29)*(L29+K29))/('ROC (2)'!$N$5^2) ->  | P29: =O29+1.96*(I29*(1-I29))/('ROC (2)'!$N$5*(1-N29)) ->  | Q29: =O29-1.96*(I29*(1-I29))/('ROC (2)'!$N$5*(1-N29)) -> 
A30: 28 | B30: =IF(ISBLANK('ROC (2)'!H30),NA(),'ROC (2)'!I30+'ROC (2)'!J30) ->  | C30: =IF(AND(ISNUMBER('ROC (2)'!H30),ISNUMBER('ROC (2)'!H31)),ABS(('ROC (2)'!I31-'ROC (2)'!I30)*(B30+B31)/2),0) -> 0 | F30: =1-'ROC (2)'!I30 -> 0.7058823529 | J30: =B30*$D$20*'ROC (2)'!$N$5 ->  | K30: =$D$20*'ROC (2)'!$N$5*(1-B30) ->  | L30: =F30*'ROC (2)'!$N$5*(1-$D$20) ->  | M30: ='ROC (2)'!$N$5*(1-$D$20)*(1-F30) ->  | N30: =((J30+K30)*(J30+M30)+(L30+M30)*(L30+K30))/('ROC (2)'!$N$5^2) ->  | P30: =O30+1.96*(I30*(1-I30))/('ROC (2)'!$N$5*(1-N30)) ->  | Q30: =O30-1.96*(I30*(1-I30))/('ROC (2)'!$N$5*(1-N30)) -> 
A31: 29 | B31: =IF(ISBLANK('ROC (2)'!H31),NA(),'ROC (2)'!I31+'ROC (2)'!J31) ->  | C31: =IF(AND(ISNUMBER('ROC (2)'!H31),ISNUMBER('ROC (2)'!H32)),ABS(('ROC (2)'!I32-'ROC (2)'!I31)*(B31+B32)/2),0) -> 0 | F31: =1-'ROC (2)'!I31 -> 0.7058823529 | J31: =B31*$D$20*'ROC (2)'!$N$5 ->  | K31: =$D$20*'ROC (2)'!$N$5*(1-B31) ->  | L31: =F31*'ROC (2)'!$N$5*(1-$D$20) ->  | M31: ='ROC (2)'!$N$5*(1-$D$20)*(1-F31) ->  | N31: =((J31+K31)*(J31+M31)+(L31+M31)*(L31+K31))/('ROC (2)'!$N$5^2) ->  | P31: =O31+1.96*(I31*(1-I31))/('ROC (2)'!$N$5*(1-N31)) ->  | Q31: =O31-1.96*(I31*(1-I31))/('ROC (2)'!$N$5*(1-N31)) -> 
A32: 30 | B32: =IF(ISBLANK('ROC (2)'!H32),NA(),'ROC (2)'!I32+'ROC (2)'!J32) ->  | C32: =IF(AND(ISNUMBER('ROC (2)'!H32),ISNUMBER('ROC (2)'!H33)),ABS(('ROC (2)'!I33-'ROC (2)'!I32)*(B32+B33)/2),0) -> 0 | F32: =1-'ROC (2)'!I32 -> 0.7058823529 | J32: =B32*$D$20*'ROC (2)'!$N$5 ->  | K32: =$D$20*'ROC (2)'!$N$5*(1-B32) ->  | L32: =F32*'ROC (2)'!$N$5*(1-$D$20) ->  | M32: ='ROC (2)'!$N$5*(1-$D$20)*(1-F32) ->  | N32: =((J32+K32)*(J32+M32)+(L32+M32)*(L32+K32))/('ROC (2)'!$N$5^2) ->  | P32: =O32+1.96*(I32*(1-I32))/('ROC (2)'!$N$5*(1-N32)) ->  | Q32: =O32-1.96*(I32*(1-I32))/('ROC (2)'!$N$5*(1-N32)) -> 
A33: 31 | B33: =IF(ISBLANK('ROC (2)'!H33),NA(),'ROC (2)'!I33+'ROC (2)'!J33) ->  | C33: =IF(AND(ISNUMBER('ROC (2)'!H33),ISNUMBER('ROC (2)'!H34)),ABS(('ROC (2)'!I34-'ROC (2)'!I33)*(B33+B34)/2),0) -> 0 | F33: =1-'ROC (2)'!I33 -> 0.7058823529 | J33: =B33*$D$20*'ROC (2)'!$N$5 ->  | K33: =$D$20*'ROC (2)'!$N$5*(1-B33) ->  | L33: =F33*'ROC (2)'!$N$5*(1-$D$20) ->  | M33: ='ROC (2)'!$N$5*(1-$D$20)*(1-F33) ->  | N33: =((J33+K33)*(J33+M33)+(L33+M33)*(L33+K33))/('ROC (2)'!$N$5^2) ->  | P33: =O33+1.96*(I33*(1-I33))/('ROC (2)'!$N$5*(1-N33)) ->  | Q33: =O33-1.96*(I33*(1-I33))/('ROC (2)'!$N$5*(1-N33)) -> 
A34: 32 | B34: =IF(ISBLANK('ROC (2)'!H34),NA(),'ROC (2)'!I34+'ROC (2)'!J34) ->  | C34: =IF(AND(ISNUMBER('ROC (2)'!H34),ISNUMBER('ROC (2)'!H35)),ABS(('ROC (2)'!I35-'ROC (2)'!I34)*(B34+B35)/2),0) -> 0 | F34: =1-'ROC (2)'!I34 -> 0.7058823529 | J34: =B34*$D$20*'ROC (2)'!$N$5 ->  | K34: =$D$20*'ROC (2)'!$N$5*(1-B34) ->  | L34: =F34*'ROC (2)'!$N$5*(1-$D$20) ->  | M34: ='ROC (2)'!$N$5*(1-$D$20)*(1-F34) ->  | N34: =((J34+K34)*(J34+M34)+(L34+M34)*(L34+K34))/('ROC (2)'!$N$5^2) ->  | P34: =O34+1.96*(I34*(1-I34))/('ROC (2)'!$N$5*(1-N34)) ->  | Q34: =O34-1.96*(I34*(1-I34))/('ROC (2)'!$N$5*(1-N34)) -> 
A35: 33 | B35: =IF(ISBLANK('ROC (2)'!H35),NA(),'ROC (2)'!I35+'ROC (2)'!J35) ->  | C35: =IF(AND(ISNUMBER('ROC (2)'!H35),ISNUMBER('ROC (2)'!H36)),ABS(('ROC (2)'!I36-'ROC (2)'!I35)*(B35+B36)/2),0) -> 0 | F35: =1-'ROC (2)'!I35 -> 0.7058823529 | J35: =B35*$D$20*'ROC (2)'!$N$5 ->  | K35: =$D$20*'ROC (2)'!$N$5*(1-B35) ->  | L35: =F35*'ROC (2)'!$N$5*(1-$D$20) ->  | M35: ='ROC (2)'!$N$5*(1-$D$20)*(1-F35) ->  | N35: =((J35+K35)*(J35+M35)+(L35+M35)*(L35+K35))/('ROC (2)'!$N$5^2) ->  | P35: =O35+1.96*(I35*(1-I35))/('ROC (2)'!$N$5*(1-N35)) ->  | Q35: =O35-1.96*(I35*(1-I35))/('ROC (2)'!$N$5*(1-N35)) -> 
A36: 34 | B36: =IF(ISBLANK('ROC (2)'!H36),NA(),'ROC (2)'!I36+'ROC (2)'!J36) ->  | C36: =IF(AND(ISNUMBER('ROC (2)'!H36),ISNUMBER('ROC (2)'!H37)),ABS(('ROC (2)'!I37-'ROC (2)'!I36)*(B36+B37)/2),0) -> 0 | F36: =1-'ROC (2)'!I36 -> 0.7058823529 | J36: =B36*$D$20*'ROC (2)'!$N$5 ->  | K36: =$D$20*'ROC (2)'!$N$5*(1-B36) ->  | L36: =F36*'ROC (2)'!$N$5*(1-$D$20) ->  | M36: ='ROC (2)'!$N$5*(1-$D$20)*(1-F36) ->  | N36: =((J36+K36)*(J36+M36)+(L36+M36)*(L36+K36))/('ROC (2)'!$N$5^2) ->  | P36: =O36+1.96*(I36*(1-I36))/('ROC (2)'!$N$5*(1-N36)) ->  | Q36: =O36-1.96*(I36*(1-I36))/('ROC (2)'!$N$5*(1-N36)) -> 
A37: 35 | B37: =IF(ISBLANK('ROC (2)'!H37),NA(),'ROC (2)'!I37+'ROC (2)'!J37) ->  | C37: =IF(AND(ISNUMBER('ROC (2)'!H37),ISNUMBER('ROC (2)'!H38)),ABS(('ROC (2)'!I38-'ROC (2)'!I37)*(B37+B38)/2),0) -> 0 | F37: =1-'ROC (2)'!I37 -> 0.7058823529 | J37: =B37*$D$20*'ROC (2)'!$N$5 ->  | K37: =$D$20*'ROC (2)'!$N$5*(1-B37) ->  | L37: =F37*'ROC (2)'!$N$5*(1-$D$20) ->  | M37: ='ROC (2)'!$N$5*(1-$D$20)*(1-F37) ->  | N37: =((J37+K37)*(J37+M37)+(L37+M37)*(L37+K37))/('ROC (2)'!$N$5^2) ->  | P37: =O37+1.96*(I37*(1-I37))/('ROC (2)'!$N$5*(1-N37)) ->  | Q37: =O37-1.96*(I37*(1-I37))/('ROC (2)'!$N$5*(1-N37)) -> 
A38: 36 | B38: =IF(ISBLANK('ROC (2)'!H38),NA(),'ROC (2)'!I38+'ROC (2)'!J38) ->  | C38: =IF(AND(ISNUMBER('ROC (2)'!H38),ISNUMBER('ROC (2)'!H39)),ABS(('ROC (2)'!I39-'ROC (2)'!I38)*(B38+B39)/2),0) -> 0 | F38: =1-'ROC (2)'!I38 -> 0.7352941176 | J38: =B38*$D$20*'ROC (2)'!$N$5 ->  | K38: =$D$20*'ROC (2)'!$N$5*(1-B38) ->  | L38: =F38*'ROC (2)'!$N$5*(1-$D$20) ->  | M38: ='ROC (2)'!$N$5*(1-$D$20)*(1-F38) ->  | N38: =((J38+K38)*(J38+M38)+(L38+M38)*(L38+K38))/('ROC (2)'!$N$5^2) ->  | P38: =O38+1.96*(I38*(1-I38))/('ROC (2)'!$N$5*(1-N38)) ->  | Q38: =O38-1.96*(I38*(1-I38))/('ROC (2)'!$N$5*(1-N38)) -> 
A39: 37 | B39: =IF(ISBLANK('ROC (2)'!H39),NA(),'ROC (2)'!I39+'ROC (2)'!J39) ->  | C39: =IF(AND(ISNUMBER('ROC (2)'!H39),ISNUMBER('ROC (2)'!H40)),ABS(('ROC (2)'!I40-'ROC (2)'!I39)*(B39+B40)/2),0) -> 0 | F39: =1-'ROC (2)'!I39 -> 0.7352941176 | J39: =B39*$D$20*'ROC (2)'!$N$5 ->  | K39: =$D$20*'ROC (2)'!$N$5*(1-B39) ->  | L39: =F39*'ROC (2)'!$N$5*(1-$D$20) ->  | M39: ='ROC (2)'!$N$5*(1-$D$20)*(1-F39) ->  | N39: =((J39+K39)*(J39+M39)+(L39+M39)*(L39+K39))/('ROC (2)'!$N$5^2) ->  | P39: =O39+1.96*(I39*(1-I39))/('ROC (2)'!$N$5*(1-N39)) ->  | Q39: =O39-1.96*(I39*(1-I39))/('ROC (2)'!$N$5*(1-N39)) -> 
A40: 38 | B40: =IF(ISBLANK('ROC (2)'!H40),NA(),'ROC (2)'!I40+'ROC (2)'!J40) ->  | C40: =IF(AND(ISNUMBER('ROC (2)'!H40),ISNUMBER('ROC (2)'!H41)),ABS(('ROC (2)'!I41-'ROC (2)'!I40)*(B40+B41)/2),0) -> 0 | F40: =1-'ROC (2)'!I40 -> 0.7647058824 | J40: =B40*$D$20*'ROC (2)'!$N$5 ->  | K40: =$D$20*'ROC (2)'!$N$5*(1-B40) ->  | L40: =F40*'ROC (2)'!$N$5*(1-$D$20) ->  | M40: ='ROC (2)'!$N$5*(1-$D$20)*(1-F40) ->  | N40: =((J40+K40)*(J40+M40)+(L40+M40)*(L40+K40))/('ROC (2)'!$N$5^2) ->  | P40: =O40+1.96*(I40*(1-I40))/('ROC (2)'!$N$5*(1-N40)) ->  | Q40: =O40-1.96*(I40*(1-I40))/('ROC (2)'!$N$5*(1-N40)) -> 
A41: 39 | B41: =IF(ISBLANK('ROC (2)'!H41),NA(),'ROC (2)'!I41+'ROC (2)'!J41) ->  | C41: =IF(AND(ISNUMBER('ROC (2)'!H41),ISNUMBER('ROC (2)'!H42)),ABS(('ROC (2)'!I42-'ROC (2)'!I41)*(B41+B42)/2),0) -> 0 | F41: =1-'ROC (2)'!I41 -> 0.7941176471 | J41: =B41*$D$20*'ROC (2)'!$N$5 ->  | K41: =$D$20*'ROC (2)'!$N$5*(1-B41) ->  | L41: =F41*'ROC (2)'!$N$5*(1-$D$20) ->  | M41: ='ROC (2)'!$N$5*(1-$D$20)*(1-F41) ->  | N41: =((J41+K41)*(J41+M41)+(L41+M41)*(L41+K41))/('ROC (2)'!$N$5^2) ->  | P41: =O41+1.96*(I41*(1-I41))/('ROC (2)'!$N$5*(1-N41)) ->  | Q41: =O41-1.96*(I41*(1-I41))/('ROC (2)'!$N$5*(1-N41)) -> 
A42: 40 | B42: =IF(ISBLANK('ROC (2)'!H42),NA(),'ROC (2)'!I42+'ROC (2)'!J42) ->  | C42: =IF(AND(ISNUMBER('ROC (2)'!H42),ISNUMBER('ROC (2)'!H43)),ABS(('ROC (2)'!I43-'ROC (2)'!I42)*(B42+B43)/2),0) -> 0 | F42: =1-'ROC (2)'!I42 -> 0.8235294118 | J42: =B42*$D$20*'ROC (2)'!$N$5 ->  | K42: =$D$20*'ROC (2)'!$N$5*(1-B42) ->  | L42: =F42*'ROC (2)'!$N$5*(1-$D$20) ->  | M42: ='ROC (2)'!$N$5*(1-$D$20)*(1-F42) ->  | N42: =((J42+K42)*(J42+M42)+(L42+M42)*(L42+K42))/('ROC (2)'!$N$5^2) ->  | P42: =O42+1.96*(I42*(1-I42))/('ROC (2)'!$N$5*(1-N42)) ->  | Q42: =O42-1.96*(I42*(1-I42))/('ROC (2)'!$N$5*(1-N42)) -> 
A43: 41 | B43: =IF(ISBLANK('ROC (2)'!H43),NA(),'ROC (2)'!I43+'ROC (2)'!J43) ->  | C43: =IF(AND(ISNUMBER('ROC (2)'!H43),ISNUMBER('ROC (2)'!H44)),ABS(('ROC (2)'!I44-'ROC (2)'!I43)*(B43+B44)/2),0) -> 0 | F43: =1-'ROC (2)'!I43 -> 0.8529411765 | J43: =B43*$D$20*'ROC (2)'!$N$5 ->  | K43: =$D$20*'ROC (2)'!$N$5*(1-B43) ->  | L43: =F43*'ROC (2)'!$N$5*(1-$D$20) ->  | M43: ='ROC (2)'!$N$5*(1-$D$20)*(1-F43) ->  | N43: =((J43+K43)*(J43+M43)+(L43+M43)*(L43+K43))/('ROC (2)'!$N$5^2) ->  | P43: =O43+1.96*(I43*(1-I43))/('ROC (2)'!$N$5*(1-N43)) ->  | Q43: =O43-1.96*(I43*(1-I43))/('ROC (2)'!$N$5*(1-N43)) -> 
A44: 42 | B44: =IF(ISBLANK('ROC (2)'!H44),NA(),'ROC (2)'!I44+'ROC (2)'!J44) ->  | C44: =IF(AND(ISNUMBER('ROC (2)'!H44),ISNUMBER('ROC (2)'!H45)),ABS(('ROC (2)'!I45-'ROC (2)'!I44)*(B44+B45)/2),0) -> 0 | F44: =1-'ROC (2)'!I44 -> 0.8823529412 | J44: =B44*$D$20*'ROC (2)'!$N$5 ->  | K44: =$D$20*'ROC (2)'!$N$5*(1-B44) ->  | L44: =F44*'ROC (2)'!$N$5*(1-$D$20) ->  | M44: ='ROC (2)'!$N$5*(1-$D$20)*(1-F44) ->  | N44: =((J44+K44)*(J44+M44)+(L44+M44)*(L44+K44))/('ROC (2)'!$N$5^2) ->  | P44: =O44+1.96*(I44*(1-I44))/('ROC (2)'!$N$5*(1-N44)) ->  | Q44: =O44-1.96*(I44*(1-I44))/('ROC (2)'!$N$5*(1-N44)) -> 
A45: 43 | B45: =IF(ISBLANK('ROC (2)'!H45),NA(),'ROC (2)'!I45+'ROC (2)'!J45) ->  | C45: =IF(AND(ISNUMBER('ROC (2)'!H45),ISNUMBER('ROC (2)'!H46)),ABS(('ROC (2)'!I46-'ROC (2)'!I45)*(B45+B46)/2),0) -> 0 | F45: =1-'ROC (2)'!I45 -> 0.9117647059 | J45: =B45*$D$20*'ROC (2)'!$N$5 ->  | K45: =$D$20*'ROC (2)'!$N$5*(1-B45) ->  | L45: =F45*'ROC (2)'!$N$5*(1-$D$20) ->  | M45: ='ROC (2)'!$N$5*(1-$D$20)*(1-F45) ->  | N45: =((J45+K45)*(J45+M45)+(L45+M45)*(L45+K45))/('ROC (2)'!$N$5^2) ->  | P45: =O45+1.96*(I45*(1-I45))/('ROC (2)'!$N$5*(1-N45)) ->  | Q45: =O45-1.96*(I45*(1-I45))/('ROC (2)'!$N$5*(1-N45)) -> 
A46: 44 | B46: =IF(ISBLANK('ROC (2)'!H46),NA(),'ROC (2)'!I46+'ROC (2)'!J46) ->  | C46: =IF(AND(ISNUMBER('ROC (2)'!H46),ISNUMBER('ROC (2)'!H47)),ABS(('ROC (2)'!I47-'ROC (2)'!I46)*(B46+B47)/2),0) -> 0 | F46: =1-'ROC (2)'!I46 -> 0.9117647059 | J46: =B46*$D$20*'ROC (2)'!$N$5 ->  | K46: =$D$20*'ROC (2)'!$N$5*(1-B46) ->  | L46: =F46*'ROC (2)'!$N$5*(1-$D$20) ->  | M46: ='ROC (2)'!$N$5*(1-$D$20)*(1-F46) ->  | N46: =((J46+K46)*(J46+M46)+(L46+M46)*(L46+K46))/('ROC (2)'!$N$5^2) ->  | P46: =O46+1.96*(I46*(1-I46))/('ROC (2)'!$N$5*(1-N46)) ->  | Q46: =O46-1.96*(I46*(1-I46))/('ROC (2)'!$N$5*(1-N46)) -> 
A47: 45 | B47: =IF(ISBLANK('ROC (2)'!H47),NA(),'ROC (2)'!I47+'ROC (2)'!J47) ->  | C47: =IF(AND(ISNUMBER('ROC (2)'!H47),ISNUMBER('ROC (2)'!H48)),ABS(('ROC (2)'!I48-'ROC (2)'!I47)*(B47+B48)/2),0) -> 0 | F47: =1-'ROC (2)'!I47 -> 0.9411764706 | J47: =B47*$D$20*'ROC (2)'!$N$5 ->  | K47: =$D$20*'ROC (2)'!$N$5*(1-B47) ->  | L47: =F47*'ROC (2)'!$N$5*(1-$D$20) ->  | M47: ='ROC (2)'!$N$5*(1-$D$20)*(1-F47) ->  | N47: =((J47+K47)*(J47+M47)+(L47+M47)*(L47+K47))/('ROC (2)'!$N$5^2) ->  | P47: =O47+1.96*(I47*(1-I47))/('ROC (2)'!$N$5*(1-N47)) ->  | Q47: =O47-1.96*(I47*(1-I47))/('ROC (2)'!$N$5*(1-N47)) -> 
A48: 46 | B48: =IF(ISBLANK('ROC (2)'!H48),NA(),'ROC (2)'!I48+'ROC (2)'!J48) ->  | C48: =IF(AND(ISNUMBER('ROC (2)'!H48),ISNUMBER('ROC (2)'!H49)),ABS(('ROC (2)'!I49-'ROC (2)'!I48)*(B48+B49)/2),0) -> 0 | F48: =1-'ROC (2)'!I48 -> 0.9705882353 | J48: =B48*$D$20*'ROC (2)'!$N$5 ->  | K48: =$D$20*'ROC (2)'!$N$5*(1-B48) ->  | L48: =F48*'ROC (2)'!$N$5*(1-$D$20) ->  | M48: ='ROC (2)'!$N$5*(1-$D$20)*(1-F48) ->  | N48: =((J48+K48)*(J48+M48)+(L48+M48)*(L48+K48))/('ROC (2)'!$N$5^2) ->  | P48: =O48+1.96*(I48*(1-I48))/('ROC (2)'!$N$5*(1-N48)) ->  | Q48: =O48-1.96*(I48*(1-I48))/('ROC (2)'!$N$5*(1-N48)) -> 
A49: 47 | B49: =IF(ISBLANK('ROC (2)'!H49),NA(),'ROC (2)'!I49+'ROC (2)'!J49) ->  | C49: =IF(AND(ISNUMBER('ROC (2)'!H49),ISNUMBER('ROC (2)'!H50)),ABS(('ROC (2)'!I50-'ROC (2)'!I49)*(B49+B50)/2),0) -> 0 | F49: =1-'ROC (2)'!I49 -> 0.9705882353 | J49: =B49*$D$20*'ROC (2)'!$N$5 ->  | K49: =$D$20*'ROC (2)'!$N$5*(1-B49) ->  | L49: =F49*'ROC (2)'!$N$5*(1-$D$20) ->  | M49: ='ROC (2)'!$N$5*(1-$D$20)*(1-F49) ->  | N49: =((J49+K49)*(J49+M49)+(L49+M49)*(L49+K49))/('ROC (2)'!$N$5^2) ->  | P49: =O49+1.96*(I49*(1-I49))/('ROC (2)'!$N$5*(1-N49)) ->  | Q49: =O49-1.96*(I49*(1-I49))/('ROC (2)'!$N$5*(1-N49)) -> 
A50: 48 | B50: =IF(ISBLANK('ROC (2)'!H50),NA(),'ROC (2)'!I50+'ROC (2)'!J50) ->  | C50: =IF(AND(ISNUMBER('ROC (2)'!H50),ISNUMBER('ROC (2)'!H51)),ABS(('ROC (2)'!I51-'ROC (2)'!I50)*(B50+B51)/2),0) -> 0 | F50: =1-'ROC (2)'!I50 -> 1 | J50: =B50*$D$20*'ROC (2)'!$N$5 ->  | K50: =$D$20*'ROC (2)'!$N$5*(1-B50) ->  | L50: =F50*'ROC (2)'!$N$5*(1-$D$20) ->  | M50: ='ROC (2)'!$N$5*(1-$D$20)*(1-F50) ->  | N50: =((J50+K50)*(J50+M50)+(L50+M50)*(L50+K50))/('ROC (2)'!$N$5^2) ->  | P50: =O50+1.96*(I50*(1-I50))/('ROC (2)'!$N$5*(1-N50)) ->  | Q50: =O50-1.96*(I50*(1-I50))/('ROC (2)'!$N$5*(1-N50)) -> 
A51: 49 | B51: =IF(ISBLANK('ROC (2)'!H51),NA(),'ROC (2)'!I51+'ROC (2)'!J51) ->  | C51: =IF(AND(ISNUMBER('ROC (2)'!H51),ISNUMBER('ROC (2)'!H52)),ABS(('ROC (2)'!I52-'ROC (2)'!I51)*(B51+B52)/2),0) -> 0 | F51: =1-'ROC (2)'!I51 -> 0 | J51: =B51*$D$20*'ROC (2)'!$N$5 ->  | K51: =$D$20*'ROC (2)'!$N$5*(1-B51) ->  | L51: =F51*'ROC (2)'!$N$5*(1-$D$20) ->  | M51: ='ROC (2)'!$N$5*(1-$D$20)*(1-F51) ->  | N51: =((J51+K51)*(J51+M51)+(L51+M51)*(L51+K51))/('ROC (2)'!$N$5^2) ->  | P51: =O51+1.96*(I51*(1-I51))/('ROC (2)'!$N$5*(1-N51)) ->  | Q51: =O51-1.96*(I51*(1-I51))/('ROC (2)'!$N$5*(1-N51)) -> 
A52: 50 | B52: =IF(ISBLANK('ROC (2)'!H52),NA(),'ROC (2)'!I52+'ROC (2)'!J52) ->  | C52: =IF(AND(ISNUMBER('ROC (2)'!H52),ISNUMBER('ROC (2)'!H53)),ABS(('ROC (2)'!I53-'ROC (2)'!I52)*(B52+B53)/2),0) -> 0 | F52: =1-'ROC (2)'!I52 -> 0 | J52: =B52*$D$20*'ROC (2)'!$N$5 ->  | K52: =$D$20*'ROC (2)'!$N$5*(1-B52) ->  | L52: =F52*'ROC (2)'!$N$5*(1-$D$20) ->  | M52: ='ROC (2)'!$N$5*(1-$D$20)*(1-F52) ->  | N52: =((J52+K52)*(J52+M52)+(L52+M52)*(L52+K52))/('ROC (2)'!$N$5^2) ->  | P52: =O52+1.96*(I52*(1-I52))/('ROC (2)'!$N$5*(1-N52)) ->  | Q52: =O52-1.96*(I52*(1-I52))/('ROC (2)'!$N$5*(1-N52)) -> 
C53: =SUM(C3:C52) -> 0
A54: EOF | B54: EOF | C54: EOF | D54: EOF | E54: EOF | F54: EOF | G54: EOF | H54: EOF | I54: EOF | J54: EOF | K54: EOF | L54: EOF | M54: EOF | N54: EOF | O54: EOF | P54: EOF | Q54: EOF | R54: EOF | S54: EOF | T54: EOF | U54: EOF

Sheet ROC (1) calc (hidden)
K1: =$D$20 ->  | L1: ='ROC (1)'!#REF!*(1-B12) ->  | W1: =ROUND(MIN(W3:W52),2) -> 0 | X1: =MATCH(W1,W3:W52,0) -> 
B2: Sens | C2: AUC | D2: =D3&"; "&'ROC (1)'!P12 -> ROC; | F2: Spec | G2: PV(+) | H2: PV(-) | I2: Efficiency | J2: TP | K2: FN | L2: TN | M2: FP | N2: pe | O2: kappa | P2: +err | Q2: -err | R2: LR(+) | S2: LR(-) | V2: k-index | W2: k-index
A3: 1 | B3: =IF(ISBLANK('ROC (1)'!H3),NA(),'ROC (1)'!I3+'ROC (1)'!J3) ->  | C3: =IF(AND(ISNUMBER('ROC (1)'!H3),ISNUMBER('ROC (1)'!H4)),ABS(('ROC (1)'!I4-'ROC (1)'!I3)*(B3+B4)/2),0) -> 0 | D3: ROC | F3: =1-'ROC (1)'!I3 -> 0 | G3: =IF(F3=1,NA(),IF($D$20*B3/($D$20*B3+(1-F3)*(1-$D$20))=$D$20,NA(),$D$20*B3/($D$20*B3+(1-F3)*(1-$D$20)))) ->  | H3: =IF(F3=1,NA(),IF(((1-$D$20)*F3+(1-B3)*$D$20)=0,NA(),(1-$D$20)*F3/((1-$D$20)*F3+(1-B3)*$D$20))) ->  | I3: =IF($D$20*B3+F3*(1-$D$20)=$D$20,NA(),$D$20*B3+F3*(1-$D$20)) ->  | J3: =B3*$D$20*'ROC (1)'!$N$5 ->  | K3: =$D$20*'ROC (1)'!$N$5*(1-B3) ->  | L3: =F3*'ROC (1)'!$N$5*(1-$D$20) ->  | M3: ='ROC (1)'!$N$5*(1-$D$20)*(1-F3) ->  | N3: =((J3+K3)*(J3+M3)+(L3+M3)*(L3+K3))/('ROC (1)'!$N$5^2) ->  | O3: =(I3-N3)/(1-N3) ->  | P3: =O3+1.96*(I3*(1-I3))/('ROC (1)'!$N$5*(1-N3)) ->  | Q3: =O3-1.96*(I3*(1-I3))/('ROC (1)'!$N$5*(1-N3)) ->  | R3: =IF(1-F3=0,NA(),B3/(1-F3)) ->  | S3: =IF(F3=0,"",(1-B3)/F3) ->  | V3: =SQRT((1-B3)^2+(1-F3)^2) ->  | W3: =IF(ISNUMBER(V3),ROUND(V3,2),"") -> 
A4: 2 | B4: =IF(ISBLANK('ROC (1)'!H4),NA(),'ROC (1)'!I4+'ROC (1)'!J4) ->  | C4: =IF(AND(ISNUMBER('ROC (1)'!H4),ISNUMBER('ROC (1)'!H5)),ABS(('ROC (1)'!I5-'ROC (1)'!I4)*(B4+B5)/2),0) -> 0 | D4: CDA | F4: =1-'ROC (1)'!I4 -> 0 | G4: =IF(F4=1,NA(),IF($D$20*B4/($D$20*B4+(1-F4)*(1-$D$20))=$D$20,NA(),$D$20*B4/($D$20*B4+(1-F4)*(1-$D$20)))) ->  | H4: =IF(F4=1,NA(),IF(((1-$D$20)*F4+(1-B4)*$D$20)=0,NA(),(1-$D$20)*F4/((1-$D$20)*F4+(1-B4)*$D$20))) ->  | I4: =IF($D$20*B4+F4*(1-$D$20)=$D$20,NA(),$D$20*B4+F4*(1-$D$20)) ->  | J4: =B4*$D$20*'ROC (1)'!$N$5 ->  | K4: =$D$20*'ROC (1)'!$N$5*(1-B4) ->  | L4: =F4*'ROC (1)'!$N$5*(1-$D$20) ->  | M4: ='ROC (1)'!$N$5*(1-$D$20)*(1-F4) ->  | N4: =((J4+K4)*(J4+M4)+(L4+M4)*(L4+K4))/('ROC (1)'!$N$5^2) ->  | P4: =O4+1.96*(I4*(1-I4))/('ROC (1)'!$N$5*(1-N4)) ->  | Q4: =O4-1.96*(I4*(1-I4))/('ROC (1)'!$N$5*(1-N4)) ->  | R4: =IF(1-F4=0,NA(),B4/(1-F4)) ->  | S4: =IF(F4=0,"",(1-B4)/F4) ->  | V4: =SQRT((1-B4)^2+(1-F4)^2) ->  | W4: =IF(ISNUMBER(V4),ROUND(V4,2),"") -> 
A5: 3 | B5: =IF(ISBLANK('ROC (1)'!H5),NA(),'ROC (1)'!I5+'ROC (1)'!J5) ->  | C5: =IF(AND(ISNUMBER('ROC (1)'!H5),ISNUMBER('ROC (1)'!H6)),ABS(('ROC (1)'!I6-'ROC (1)'!I5)*(B5+B6)/2),0) -> 0 | D5: =D4&"; "&'ROC (1)'!$P$12 -> CDA; | F5: =1-'ROC (1)'!I5 -> 0.0244 | J5: =B5*$D$20*'ROC (1)'!$N$5 ->  | K5: =$D$20*'ROC (1)'!$N$5*(1-B5) ->  | L5: =F5*'ROC (1)'!$N$5*(1-$D$20) ->  | M5: ='ROC (1)'!$N$5*(1-$D$20)*(1-F5) ->  | N5: =((J5+K5)*(J5+M5)+(L5+M5)*(L5+K5))/('ROC (1)'!$N$5^2) ->  | P5: =O5+1.96*(I5*(1-I5))/('ROC (1)'!$N$5*(1-N5)) ->  | Q5: =O5-1.96*(I5*(1-I5))/('ROC (1)'!$N$5*(1-N5)) -> 
A6: 4 | B6: =IF(ISBLANK('ROC (1)'!H6),NA(),'ROC (1)'!I6+'ROC (1)'!J6) ->  | C6: =IF(AND(ISNUMBER('ROC (1)'!H6),ISNUMBER('ROC (1)'!H7)),ABS(('ROC (1)'!I7-'ROC (1)'!I6)*(B6+B7)/2),0) -> 0 | F6: =1-'ROC (1)'!I6 -> 0.052 | J6: =B6*$D$20*'ROC (1)'!$N$5 ->  | K6: =$D$20*'ROC (1)'!$N$5*(1-B6) ->  | L6: =F6*'ROC (1)'!$N$5*(1-$D$20) ->  | M6: ='ROC (1)'!$N$5*(1-$D$20)*(1-F6) ->  | N6: =((J6+K6)*(J6+M6)+(L6+M6)*(L6+K6))/('ROC (1)'!$N$5^2) ->  | P6: =O6+1.96*(I6*(1-I6))/('ROC (1)'!$N$5*(1-N6)) ->  | Q6: =O6-1.96*(I6*(1-I6))/('ROC (1)'!$N$5*(1-N6)) -> 
A7: 5 | B7: =IF(ISBLANK('ROC (1)'!H7),NA(),'ROC (1)'!I7+'ROC (1)'!J7) ->  | C7: =IF(AND(ISNUMBER('ROC (1)'!H7),ISNUMBER('ROC (1)'!H8)),ABS(('ROC (1)'!I8-'ROC (1)'!I7)*(B7+B8)/2),0) -> 0 | F7: =1-'ROC (1)'!I7 -> 0.0852 | J7: =B7*$D$20*'ROC (1)'!$N$5 ->  | K7: =$D$20*'ROC (1)'!$N$5*(1-B7) ->  | L7: =F7*'ROC (1)'!$N$5*(1-$D$20) ->  | M7: ='ROC (1)'!$N$5*(1-$D$20)*(1-F7) ->  | N7: =((J7+K7)*(J7+M7)+(L7+M7)*(L7+K7))/('ROC (1)'!$N$5^2) ->  | P7: =O7+1.96*(I7*(1-I7))/('ROC (1)'!$N$5*(1-N7)) ->  | Q7: =O7-1.96*(I7*(1-I7))/('ROC (1)'!$N$5*(1-N7)) -> 
A8: 6 | B8: =IF(ISBLANK('ROC (1)'!H8),NA(),'ROC (1)'!I8+'ROC (1)'!J8) ->  | C8: =IF(AND(ISNUMBER('ROC (1)'!H8),ISNUMBER('ROC (1)'!H9)),ABS(('ROC (1)'!I9-'ROC (1)'!I8)*(B8+B9)/2),0) -> 0 | F8: =1-'ROC (1)'!I8 -> 0.1312 | J8: =B8*$D$20*'ROC (1)'!$N$5 ->  | K8: =$D$20*'ROC (1)'!$N$5*(1-B8) ->  | L8: =F8*'ROC (1)'!$N$5*(1-$D$20) ->  | M8: ='ROC (1)'!$N$5*(1-$D$20)*(1-F8) ->  | N8: =((J8+K8)*(J8+M8)+(L8+M8)*(L8+K8))/('ROC (1)'!$N$5^2) ->  | P8: =O8+1.96*(I8*(1-I8))/('ROC (1)'!$N$5*(1-N8)) ->  | Q8: =O8-1.96*(I8*(1-I8))/('ROC (1)'!$N$5*(1-N8)) -> 
A9: 7 | B9: =IF(ISBLANK('ROC (1)'!H9),NA(),'ROC (1)'!I9+'ROC (1)'!J9) ->  | C9: =IF(AND(ISNUMBER('ROC (1)'!H9),ISNUMBER('ROC (1)'!H10)),ABS(('ROC (1)'!I10-'ROC (1)'!I9)*(B9+B10)/2),0) -> 0 | D9: J-max: | F9: =1-'ROC (1)'!I9 -> 0.1792 | J9: =B9*$D$20*'ROC (1)'!$N$5 ->  | K9: =$D$20*'ROC (1)'!$N$5*(1-B9) ->  | L9: =F9*'ROC (1)'!$N$5*(1-$D$20) ->  | M9: ='ROC (1)'!$N$5*(1-$D$20)*(1-F9) ->  | N9: =((J9+K9)*(J9+M9)+(L9+M9)*(L9+K9))/('ROC (1)'!$N$5^2) ->  | P9: =O9+1.96*(I9*(1-I9))/('ROC (1)'!$N$5*(1-N9)) ->  | Q9: =O9-1.96*(I9*(1-I9))/('ROC (1)'!$N$5*(1-N9)) -> 
A10: 8 | B10: =IF(ISBLANK('ROC (1)'!H10),NA(),'ROC (1)'!I10+'ROC (1)'!J10) ->  | C10: =IF(AND(ISNUMBER('ROC (1)'!H10),ISNUMBER('ROC (1)'!H11)),ABS(('ROC (1)'!I11-'ROC (1)'!I10)*(B10+B11)/2),0) -> 0 | D10: =MAX('ROC (1)'!J3:J52) -> 0.4204 | F10: =1-'ROC (1)'!I10 -> 0.2296 | J10: =B10*$D$20*'ROC (1)'!$N$5 ->  | K10: =$D$20*'ROC (1)'!$N$5*(1-B10) ->  | L10: =F10*'ROC (1)'!$N$5*(1-$D$20) ->  | M10: ='ROC (1)'!$N$5*(1-$D$20)*(1-F10) ->  | N10: =((J10+K10)*(J10+M10)+(L10+M10)*(L10+K10))/('ROC (1)'!$N$5^2) ->  | P10: =O10+1.96*(I10*(1-I10))/('ROC (1)'!$N$5*(1-N10)) ->  | Q10: =O10-1.96*(I10*(1-I10))/('ROC (1)'!$N$5*(1-N10)) -> 
A11: 9 | B11: =IF(ISBLANK('ROC (1)'!H11),NA(),'ROC (1)'!I11+'ROC (1)'!J11) ->  | C11: =IF(AND(ISNUMBER('ROC (1)'!H11),ISNUMBER('ROC (1)'!H12)),ABS(('ROC (1)'!I12-'ROC (1)'!I11)*(B11+B12)/2),0) -> 0 | D11: Q1: | E11: ='ROC (1)'!L14/(2-'ROC (1)'!L14) ->  | F11: =1-'ROC (1)'!I11 -> 0.2788 | J11: =B11*$D$20*'ROC (1)'!$N$5 ->  | K11: =$D$20*'ROC (1)'!$N$5*(1-B11) ->  | L11: =F11*'ROC (1)'!$N$5*(1-$D$20) ->  | M11: ='ROC (1)'!$N$5*(1-$D$20)*(1-F11) ->  | N11: =((J11+K11)*(J11+M11)+(L11+M11)*(L11+K11))/('ROC (1)'!$N$5^2) ->  | P11: =O11+1.96*(I11*(1-I11))/('ROC (1)'!$N$5*(1-N11)) ->  | Q11: =O11-1.96*(I11*(1-I11))/('ROC (1)'!$N$5*(1-N11)) -> 
A12: 10 | B12: =IF(ISBLANK('ROC (1)'!H12),NA(),'ROC (1)'!I12+'ROC (1)'!J12) ->  | C12: =IF(AND(ISNUMBER('ROC (1)'!H12),ISNUMBER('ROC (1)'!H13)),ABS(('ROC (1)'!I13-'ROC (1)'!I12)*(B12+B13)/2),0) -> 0 | D12: Q2 | E12: =2*'ROC (1)'!L14^2/(1+'ROC (1)'!L14) ->  | F12: =1-'ROC (1)'!I12 -> 0.2788 | J12: =B12*$D$20*'ROC (1)'!$N$5 ->  | K12: =$D$20*'ROC (1)'!$N$5*(1-B12) ->  | L12: =F12*'ROC (1)'!$N$5*(1-$D$20) ->  | M12: ='ROC (1)'!$N$5*(1-$D$20)*(1-F12) ->  | N12: =((J12+K12)*(J12+M12)+(L12+M12)*(L12+K12))/('ROC (1)'!$N$5^2) ->  | P12: =O12+1.96*(I12*(1-I12))/('ROC (1)'!$N$5*(1-N12)) ->  | Q12: =O12-1.96*(I12*(1-I12))/('ROC (1)'!$N$5*(1-N12)) -> 
A13: 11 | B13: =IF(ISBLANK('ROC (1)'!H13),NA(),'ROC (1)'!I13+'ROC (1)'!J13) ->  | C13: =IF(AND(ISNUMBER('ROC (1)'!H13),ISNUMBER('ROC (1)'!H14)),ABS(('ROC (1)'!I14-'ROC (1)'!I13)*(B13+B14)/2),0) -> 0 | D13: SE(AUC) | E13: =SQRT(('ROC (1)'!L14*(1-'ROC (1)'!L14)+('ROC (1)'!N3-1)*(E11-'ROC (1)'!L14^2)+('ROC (1)'!N4-1)*(E12-'ROC (1)'!L14^2))/('ROC (1)'!N3*'ROC (1)'!N4)) ->  | F13: =1-'ROC (1)'!I13 -> 0.3344 | J13: =B13*$D$20*'ROC (1)'!$N$5 ->  | K13: =$D$20*'ROC (1)'!$N$5*(1-B13) ->  | L13: =F13*'ROC (1)'!$N$5*(1-$D$20) ->  | M13: ='ROC (1)'!$N$5*(1-$D$20)*(1-F13) ->  | N13: =((J13+K13)*(J13+M13)+(L13+M13)*(L13+K13))/('ROC (1)'!$N$5^2) ->  | P13: =O13+1.96*(I13*(1-I13))/('ROC (1)'!$N$5*(1-N13)) ->  | Q13: =O13-1.96*(I13*(1-I13))/('ROC (1)'!$N$5*(1-N13)) -> 
A14: 12 | B14: =IF(ISBLANK('ROC (1)'!H14),NA(),'ROC (1)'!I14+'ROC (1)'!J14) ->  | C14: =IF(AND(ISNUMBER('ROC (1)'!H14),ISNUMBER('ROC (1)'!H15)),ABS(('ROC (1)'!I15-'ROC (1)'!I14)*(B14+B15)/2),0) -> 0 | F14: =1-'ROC (1)'!I14 -> 0.3344 | J14: =B14*$D$20*'ROC (1)'!$N$5 ->  | K14: =$D$20*'ROC (1)'!$N$5*(1-B14) ->  | L14: =F14*'ROC (1)'!$N$5*(1-$D$20) ->  | M14: ='ROC (1)'!$N$5*(1-$D$20)*(1-F14) ->  | N14: =((J14+K14)*(J14+M14)+(L14+M14)*(L14+K14))/('ROC (1)'!$N$5^2) ->  | P14: =O14+1.96*(I14*(1-I14))/('ROC (1)'!$N$5*(1-N14)) ->  | Q14: =O14-1.96*(I14*(1-I14))/('ROC (1)'!$N$5*(1-N14)) -> 
A15: 13 | B15: =IF(ISBLANK('ROC (1)'!H15),NA(),'ROC (1)'!I15+'ROC (1)'!J15) ->  | C15: =IF(AND(ISNUMBER('ROC (1)'!H15),ISNUMBER('ROC (1)'!H16)),ABS(('ROC (1)'!I16-'ROC (1)'!I15)*(B15+B16)/2),0) -> 0 | D15: ="Predictive values; "&'ROC (1)'!$P$12 -> Predictive values; | F15: =1-'ROC (1)'!I15 -> 0.3884 | J15: =B15*$D$20*'ROC (1)'!$N$5 ->  | K15: =$D$20*'ROC (1)'!$N$5*(1-B15) ->  | L15: =F15*'ROC (1)'!$N$5*(1-$D$20) ->  | M15: ='ROC (1)'!$N$5*(1-$D$20)*(1-F15) ->  | N15: =((J15+K15)*(J15+M15)+(L15+M15)*(L15+K15))/('ROC (1)'!$N$5^2) ->  | P15: =O15+1.96*(I15*(1-I15))/('ROC (1)'!$N$5*(1-N15)) ->  | Q15: =O15-1.96*(I15*(1-I15))/('ROC (1)'!$N$5*(1-N15)) -> 
A16: 14 | B16: =IF(ISBLANK('ROC (1)'!H16),NA(),'ROC (1)'!I16+'ROC (1)'!J16) ->  | C16: =IF(AND(ISNUMBER('ROC (1)'!H16),ISNUMBER('ROC (1)'!H17)),ABS(('ROC (1)'!I17-'ROC (1)'!I16)*(B16+B17)/2),0) -> 0 | F16: =1-'ROC (1)'!I16 -> 0.3884 | J16: =B16*$D$20*'ROC (1)'!$N$5 ->  | K16: =$D$20*'ROC (1)'!$N$5*(1-B16) ->  | L16: =F16*'ROC (1)'!$N$5*(1-$D$20) ->  | M16: ='ROC (1)'!$N$5*(1-$D$20)*(1-F16) ->  | N16: =((J16+K16)*(J16+M16)+(L16+M16)*(L16+K16))/('ROC (1)'!$N$5^2) ->  | P16: =O16+1.96*(I16*(1-I16))/('ROC (1)'!$N$5*(1-N16)) ->  | Q16: =O16-1.96*(I16*(1-I16))/('ROC (1)'!$N$5*(1-N16)) -> 
A17: 15 | B17: =IF(ISBLANK('ROC (1)'!H17),NA(),'ROC (1)'!I17+'ROC (1)'!J17) ->  | C17: =IF(AND(ISNUMBER('ROC (1)'!H17),ISNUMBER('ROC (1)'!H18)),ABS(('ROC (1)'!I18-'ROC (1)'!I17)*(B17+B18)/2),0) -> 0 | D17: ='ROC (1)'!P12 -> 0 | F17: =1-'ROC (1)'!I17 -> 0.4468 | J17: =B17*$D$20*'ROC (1)'!$N$5 ->  | K17: =$D$20*'ROC (1)'!$N$5*(1-B17) ->  | L17: =F17*'ROC (1)'!$N$5*(1-$D$20) ->  | M17: ='ROC (1)'!$N$5*(1-$D$20)*(1-F17) ->  | N17: =((J17+K17)*(J17+M17)+(L17+M17)*(L17+K17))/('ROC (1)'!$N$5^2) ->  | P17: =O17+1.96*(I17*(1-I17))/('ROC (1)'!$N$5*(1-N17)) ->  | Q17: =O17-1.96*(I17*(1-I17))/('ROC (1)'!$N$5*(1-N17)) -> 
A18: 16 | B18: =IF(ISBLANK('ROC (1)'!H18),NA(),'ROC (1)'!I18+'ROC (1)'!J18) ->  | C18: =IF(AND(ISNUMBER('ROC (1)'!H18),ISNUMBER('ROC (1)'!H19)),ABS(('ROC (1)'!I19-'ROC (1)'!I18)*(B18+B19)/2),0) -> 0 | D18: ='ROC (1) calc'!D17&"; "&'ROC (1) calc'!D15 -> 0; Predictive values; | F18: =1-'ROC (1)'!I18 -> 0.4468 | J18: =B18*$D$20*'ROC (1)'!$N$5 ->  | K18: =$D$20*'ROC (1)'!$N$5*(1-B18) ->  | L18: =F18*'ROC (1)'!$N$5*(1-$D$20) ->  | M18: ='ROC (1)'!$N$5*(1-$D$20)*(1-F18) ->  | N18: =((J18+K18)*(J18+M18)+(L18+M18)*(L18+K18))/('ROC (1)'!$N$5^2) ->  | P18: =O18+1.96*(I18*(1-I18))/('ROC (1)'!$N$5*(1-N18)) ->  | Q18: =O18-1.96*(I18*(1-I18))/('ROC (1)'!$N$5*(1-N18)) -> 
A19: 17 | B19: =IF(ISBLANK('ROC (1)'!H19),NA(),'ROC (1)'!I19+'ROC (1)'!J19) ->  | C19: =IF(AND(ISNUMBER('ROC (1)'!H19),ISNUMBER('ROC (1)'!H20)),ABS(('ROC (1)'!I20-'ROC (1)'!I19)*(B19+B20)/2),0) -> 0 | D19: ='ROC (1)'!O3&" "&ROUND('ROC (1) calc'!D20,3) ->  | F19: =1-'ROC (1)'!I19 -> 0.4944 | J19: =B19*$D$20*'ROC (1)'!$N$5 ->  | K19: =$D$20*'ROC (1)'!$N$5*(1-B19) ->  | L19: =F19*'ROC (1)'!$N$5*(1-$D$20) ->  | M19: ='ROC (1)'!$N$5*(1-$D$20)*(1-F19) ->  | N19: =((J19+K19)*(J19+M19)+(L19+M19)*(L19+K19))/('ROC (1)'!$N$5^2) ->  | P19: =O19+1.96*(I19*(1-I19))/('ROC (1)'!$N$5*(1-N19)) ->  | Q19: =O19-1.96*(I19*(1-I19))/('ROC (1)'!$N$5*(1-N19)) -> 
A20: 18 | B20: =IF(ISBLANK('ROC (1)'!H20),NA(),'ROC (1)'!I20+'ROC (1)'!J20) ->  | C20: =IF(AND(ISNUMBER('ROC (1)'!H20),ISNUMBER('ROC (1)'!H21)),ABS(('ROC (1)'!I21-'ROC (1)'!I20)*(B20+B21)/2),0) -> 0 | D20: =IF(ISNUMBER('ROC (1)'!P3),'ROC (1)'!P3,'ROC (1)'!T3) ->  | F20: =1-'ROC (1)'!I20 -> 0.4944 | J20: =B20*$D$20*'ROC (1)'!$N$5 ->  | K20: =$D$20*'ROC (1)'!$N$5*(1-B20) ->  | L20: =F20*'ROC (1)'!$N$5*(1-$D$20) ->  | M20: ='ROC (1)'!$N$5*(1-$D$20)*(1-F20) ->  | N20: =((J20+K20)*(J20+M20)+(L20+M20)*(L20+K20))/('ROC (1)'!$N$5^2) ->  | P20: =O20+1.96*(I20*(1-I20))/('ROC (1)'!$N$5*(1-N20)) ->  | Q20: =O20-1.96*(I20*(1-I20))/('ROC (1)'!$N$5*(1-N20)) -> 
A21: 19 | B21: =IF(ISBLANK('ROC (1)'!H21),NA(),'ROC (1)'!I21+'ROC (1)'!J21) ->  | C21: =IF(AND(ISNUMBER('ROC (1)'!H21),ISNUMBER('ROC (1)'!H22)),ABS(('ROC (1)'!I22-'ROC (1)'!I21)*(B21+B22)/2),0) -> 0 | F21: =1-'ROC (1)'!I21 -> 0.5488 | J21: =B21*$D$20*'ROC (1)'!$N$5 ->  | K21: =$D$20*'ROC (1)'!$N$5*(1-B21) ->  | L21: =F21*'ROC (1)'!$N$5*(1-$D$20) ->  | M21: ='ROC (1)'!$N$5*(1-$D$20)*(1-F21) ->  | N21: =((J21+K21)*(J21+M21)+(L21+M21)*(L21+K21))/('ROC (1)'!$N$5^2) ->  | P21: =O21+1.96*(I21*(1-I21))/('ROC (1)'!$N$5*(1-N21)) ->  | Q21: =O21-1.96*(I21*(1-I21))/('ROC (1)'!$N$5*(1-N21)) -> 
A22: 20 | B22: =IF(ISBLANK('ROC (1)'!H22),NA(),'ROC (1)'!I22+'ROC (1)'!J22) ->  | C22: =IF(AND(ISNUMBER('ROC (1)'!H22),ISNUMBER('ROC (1)'!H23)),ABS(('ROC (1)'!I23-'ROC (1)'!I22)*(B22+B23)/2),0) -> 0 | D22: Diseased (D) | F22: =1-'ROC (1)'!I22 -> 0.5488 | J22: =B22*$D$20*'ROC (1)'!$N$5 ->  | K22: =$D$20*'ROC (1)'!$N$5*(1-B22) ->  | L22: =F22*'ROC (1)'!$N$5*(1-$D$20) ->  | M22: ='ROC (1)'!$N$5*(1-$D$20)*(1-F22) ->  | N22: =((J22+K22)*(J22+M22)+(L22+M22)*(L22+K22))/('ROC (1)'!$N$5^2) ->  | P22: =O22+1.96*(I22*(1-I22))/('ROC (1)'!$N$5*(1-N22)) ->  | Q22: =O22-1.96*(I22*(1-I22))/('ROC (1)'!$N$5*(1-N22)) -> 
A23: 21 | B23: =IF(ISBLANK('ROC (1)'!H23),NA(),'ROC (1)'!I23+'ROC (1)'!J23) ->  | C23: =IF(AND(ISNUMBER('ROC (1)'!H23),ISNUMBER('ROC (1)'!H24)),ABS(('ROC (1)'!I24-'ROC (1)'!I23)*(B23+B24)/2),0) -> 0 | D23: Healthy (H) | F23: =1-'ROC (1)'!I23 -> 0.612 | J23: =B23*$D$20*'ROC (1)'!$N$5 ->  | K23: =$D$20*'ROC (1)'!$N$5*(1-B23) ->  | L23: =F23*'ROC (1)'!$N$5*(1-$D$20) ->  | M23: ='ROC (1)'!$N$5*(1-$D$20)*(1-F23) ->  | N23: =((J23+K23)*(J23+M23)+(L23+M23)*(L23+K23))/('ROC (1)'!$N$5^2) ->  | P23: =O23+1.96*(I23*(1-I23))/('ROC (1)'!$N$5*(1-N23)) ->  | Q23: =O23-1.96*(I23*(1-I23))/('ROC (1)'!$N$5*(1-N23)) -> 
A24: 22 | B24: =IF(ISBLANK('ROC (1)'!H24),NA(),'ROC (1)'!I24+'ROC (1)'!J24) ->  | C24: =IF(AND(ISNUMBER('ROC (1)'!H24),ISNUMBER('ROC (1)'!H25)),ABS(('ROC (1)'!I25-'ROC (1)'!I24)*(B24+B25)/2),0) -> 0 | F24: =1-'ROC (1)'!I24 -> 0.612 | J24: =B24*$D$20*'ROC (1)'!$N$5 ->  | K24: =$D$20*'ROC (1)'!$N$5*(1-B24) ->  | L24: =F24*'ROC (1)'!$N$5*(1-$D$20) ->  | M24: ='ROC (1)'!$N$5*(1-$D$20)*(1-F24) ->  | N24: =((J24+K24)*(J24+M24)+(L24+M24)*(L24+K24))/('ROC (1)'!$N$5^2) ->  | P24: =O24+1.96*(I24*(1-I24))/('ROC (1)'!$N$5*(1-N24)) ->  | Q24: =O24-1.96*(I24*(1-I24))/('ROC (1)'!$N$5*(1-N24)) -> 
A25: 23 | B25: =IF(ISBLANK('ROC (1)'!H25),NA(),'ROC (1)'!I25+'ROC (1)'!J25) ->  | C25: =IF(AND(ISNUMBER('ROC (1)'!H25),ISNUMBER('ROC (1)'!H26)),ABS(('ROC (1)'!I26-'ROC (1)'!I25)*(B25+B26)/2),0) -> 0 | F25: =1-'ROC (1)'!I25 -> 0.6592 | J25: =B25*$D$20*'ROC (1)'!$N$5 ->  | K25: =$D$20*'ROC (1)'!$N$5*(1-B25) ->  | L25: =F25*'ROC (1)'!$N$5*(1-$D$20) ->  | M25: ='ROC (1)'!$N$5*(1-$D$20)*(1-F25) ->  | N25: =((J25+K25)*(J25+M25)+(L25+M25)*(L25+K25))/('ROC (1)'!$N$5^2) ->  | P25: =O25+1.96*(I25*(1-I25))/('ROC (1)'!$N$5*(1-N25)) ->  | Q25: =O25-1.96*(I25*(1-I25))/('ROC (1)'!$N$5*(1-N25)) ->  | V25: =SQRT((1-B25)^2+(1-F25)^2) -> 
A26: 24 | B26: =IF(ISBLANK('ROC (1)'!H26),NA(),'ROC (1)'!I26+'ROC (1)'!J26) ->  | C26: =IF(AND(ISNUMBER('ROC (1)'!H26),ISNUMBER('ROC (1)'!H27)),ABS(('ROC (1)'!I27-'ROC (1)'!I26)*(B26+B27)/2),0) -> 0 | F26: =1-'ROC (1)'!I26 -> 0.6592 | J26: =B26*$D$20*'ROC (1)'!$N$5 ->  | K26: =$D$20*'ROC (1)'!$N$5*(1-B26) ->  | L26: =F26*'ROC (1)'!$N$5*(1-$D$20) ->  | M26: ='ROC (1)'!$N$5*(1-$D$20)*(1-F26) ->  | N26: =((J26+K26)*(J26+M26)+(L26+M26)*(L26+K26))/('ROC (1)'!$N$5^2) ->  | P26: =O26+1.96*(I26*(1-I26))/('ROC (1)'!$N$5*(1-N26)) ->  | Q26: =O26-1.96*(I26*(1-I26))/('ROC (1)'!$N$5*(1-N26)) -> 
A27: 25 | B27: =IF(ISBLANK('ROC (1)'!H27),NA(),'ROC (1)'!I27+'ROC (1)'!J27) ->  | C27: =IF(AND(ISNUMBER('ROC (1)'!H27),ISNUMBER('ROC (1)'!H28)),ABS(('ROC (1)'!I28-'ROC (1)'!I27)*(B27+B28)/2),0) -> 0 | F27: =1-'ROC (1)'!I27 -> 0.6972 | J27: =B27*$D$20*'ROC (1)'!$N$5 ->  | K27: =$D$20*'ROC (1)'!$N$5*(1-B27) ->  | L27: =F27*'ROC (1)'!$N$5*(1-$D$20) ->  | M27: ='ROC (1)'!$N$5*(1-$D$20)*(1-F27) ->  | N27: =((J27+K27)*(J27+M27)+(L27+M27)*(L27+K27))/('ROC (1)'!$N$5^2) ->  | P27: =O27+1.96*(I27*(1-I27))/('ROC (1)'!$N$5*(1-N27)) ->  | Q27: =O27-1.96*(I27*(1-I27))/('ROC (1)'!$N$5*(1-N27)) -> 
A28: 26 | B28: =IF(ISBLANK('ROC (1)'!H28),NA(),'ROC (1)'!I28+'ROC (1)'!J28) ->  | C28: =IF(AND(ISNUMBER('ROC (1)'!H28),ISNUMBER('ROC (1)'!H29)),ABS(('ROC (1)'!I29-'ROC (1)'!I28)*(B28+B29)/2),0) -> 0 | F28: =1-'ROC (1)'!I28 -> 0.6972 | J28: =B28*$D$20*'ROC (1)'!$N$5 ->  | K28: =$D$20*'ROC (1)'!$N$5*(1-B28) ->  | L28: =F28*'ROC (1)'!$N$5*(1-$D$20) ->  | M28: ='ROC (1)'!$N$5*(1-$D$20)*(1-F28) ->  | N28: =((J28+K28)*(J28+M28)+(L28+M28)*(L28+K28))/('ROC (1)'!$N$5^2) ->  | P28: =O28+1.96*(I28*(1-I28))/('ROC (1)'!$N$5*(1-N28)) ->  | Q28: =O28-1.96*(I28*(1-I28))/('ROC (1)'!$N$5*(1-N28)) -> 
A29: 27 | B29: =IF(ISBLANK('ROC (1)'!H29),NA(),'ROC (1)'!I29+'ROC (1)'!J29) ->  | C29: =IF(AND(ISNUMBER('ROC (1)'!H29),ISNUMBER('ROC (1)'!H30)),ABS(('ROC (1)'!I30-'ROC (1)'!I29)*(B29+B30)/2),0) -> 0 | F29: =1-'ROC (1)'!I29 -> 0.7344 | J29: =B29*$D$20*'ROC (1)'!$N$5 ->  | K29: =$D$20*'ROC (1)'!$N$5*(1-B29) ->  | L29: =F29*'ROC (1)'!$N$5*(1-$D$20) ->  | M29: ='ROC (1)'!$N$5*(1-$D$20)*(1-F29) ->  | N29: =((J29+K29)*(J29+M29)+(L29+M29)*(L29+K29))/('ROC (1)'!$N$5^2) ->  | P29: =O29+1.96*(I29*(1-I29))/('ROC (1)'!$N$5*(1-N29)) ->  | Q29: =O29-1.96*(I29*(1-I29))/('ROC (1)'!$N$5*(1-N29)) -> 
A30: 28 | B30: =IF(ISBLANK('ROC (1)'!H30),NA(),'ROC (1)'!I30+'ROC (1)'!J30) ->  | C30: =IF(AND(ISNUMBER('ROC (1)'!H30),ISNUMBER('ROC (1)'!H31)),ABS(('ROC (1)'!I31-'ROC (1)'!I30)*(B30+B31)/2),0) -> 0 | F30: =1-'ROC (1)'!I30 -> 0.7344 | J30: =B30*$D$20*'ROC (1)'!$N$5 ->  | K30: =$D$20*'ROC (1)'!$N$5*(1-B30) ->  | L30: =F30*'ROC (1)'!$N$5*(1-$D$20) ->  | M30: ='ROC (1)'!$N$5*(1-$D$20)*(1-F30) ->  | N30: =((J30+K30)*(J30+M30)+(L30+M30)*(L30+K30))/('ROC (1)'!$N$5^2) ->  | P30: =O30+1.96*(I30*(1-I30))/('ROC (1)'!$N$5*(1-N30)) ->  | Q30: =O30-1.96*(I30*(1-I30))/('ROC (1)'!$N$5*(1-N30)) -> 
A31: 29 | B31: =IF(ISBLANK('ROC (1)'!H31),NA(),'ROC (1)'!I31+'ROC (1)'!J31) ->  | C31: =IF(AND(ISNUMBER('ROC (1)'!H31),ISNUMBER('ROC (1)'!H32)),ABS(('ROC (1)'!I32-'ROC (1)'!I31)*(B31+B32)/2),0) -> 0 | F31: =1-'ROC (1)'!I31 -> 0.7732 | J31: =B31*$D$20*'ROC (1)'!$N$5 ->  | K31: =$D$20*'ROC (1)'!$N$5*(1-B31) ->  | L31: =F31*'ROC (1)'!$N$5*(1-$D$20) ->  | M31: ='ROC (1)'!$N$5*(1-$D$20)*(1-F31) ->  | N31: =((J31+K31)*(J31+M31)+(L31+M31)*(L31+K31))/('ROC (1)'!$N$5^2) ->  | P31: =O31+1.96*(I31*(1-I31))/('ROC (1)'!$N$5*(1-N31)) ->  | Q31: =O31-1.96*(I31*(1-I31))/('ROC (1)'!$N$5*(1-N31)) -> 
A32: 30 | B32: =IF(ISBLANK('ROC (1)'!H32),NA(),'ROC (1)'!I32+'ROC (1)'!J32) ->  | C32: =IF(AND(ISNUMBER('ROC (1)'!H32),ISNUMBER('ROC (1)'!H33)),ABS(('ROC (1)'!I33-'ROC (1)'!I32)*(B32+B33)/2),0) -> 0 | F32: =1-'ROC (1)'!I32 -> 0.7732 | J32: =B32*$D$20*'ROC (1)'!$N$5 ->  | K32: =$D$20*'ROC (1)'!$N$5*(1-B32) ->  | L32: =F32*'ROC (1)'!$N$5*(1-$D$20) ->  | M32: ='ROC (1)'!$N$5*(1-$D$20)*(1-F32) ->  | N32: =((J32+K32)*(J32+M32)+(L32+M32)*(L32+K32))/('ROC (1)'!$N$5^2) ->  | P32: =O32+1.96*(I32*(1-I32))/('ROC (1)'!$N$5*(1-N32)) ->  | Q32: =O32-1.96*(I32*(1-I32))/('ROC (1)'!$N$5*(1-N32)) -> 
A33: 31 | B33: =IF(ISBLANK('ROC (1)'!H33),NA(),'ROC (1)'!I33+'ROC (1)'!J33) ->  | C33: =IF(AND(ISNUMBER('ROC (1)'!H33),ISNUMBER('ROC (1)'!H34)),ABS(('ROC (1)'!I34-'ROC (1)'!I33)*(B33+B34)/2),0) -> 0 | F33: =1-'ROC (1)'!I33 -> 0.8076 | J33: =B33*$D$20*'ROC (1)'!$N$5 ->  | K33: =$D$20*'ROC (1)'!$N$5*(1-B33) ->  | L33: =F33*'ROC (1)'!$N$5*(1-$D$20) ->  | M33: ='ROC (1)'!$N$5*(1-$D$20)*(1-F33) ->  | N33: =((J33+K33)*(J33+M33)+(L33+M33)*(L33+K33))/('ROC (1)'!$N$5^2) ->  | P33: =O33+1.96*(I33*(1-I33))/('ROC (1)'!$N$5*(1-N33)) ->  | Q33: =O33-1.96*(I33*(1-I33))/('ROC (1)'!$N$5*(1-N33)) -> 
A34: 32 | B34: =IF(ISBLANK('ROC (1)'!H34),NA(),'ROC (1)'!I34+'ROC (1)'!J34) ->  | C34: =IF(AND(ISNUMBER('ROC (1)'!H34),ISNUMBER('ROC (1)'!H35)),ABS(('ROC (1)'!I35-'ROC (1)'!I34)*(B34+B35)/2),0) -> 0 | F34: =1-'ROC (1)'!I34 -> 0.8076 | J34: =B34*$D$20*'ROC (1)'!$N$5 ->  | K34: =$D$20*'ROC (1)'!$N$5*(1-B34) ->  | L34: =F34*'ROC (1)'!$N$5*(1-$D$20) ->  | M34: ='ROC (1)'!$N$5*(1-$D$20)*(1-F34) ->  | N34: =((J34+K34)*(J34+M34)+(L34+M34)*(L34+K34))/('ROC (1)'!$N$5^2) ->  | P34: =O34+1.96*(I34*(1-I34))/('ROC (1)'!$N$5*(1-N34)) ->  | Q34: =O34-1.96*(I34*(1-I34))/('ROC (1)'!$N$5*(1-N34)) -> 
A35: 33 | B35: =IF(ISBLANK('ROC (1)'!H35),NA(),'ROC (1)'!I35+'ROC (1)'!J35) ->  | C35: =IF(AND(ISNUMBER('ROC (1)'!H35),ISNUMBER('ROC (1)'!H36)),ABS(('ROC (1)'!I36-'ROC (1)'!I35)*(B35+B36)/2),0) -> 0 | F35: =1-'ROC (1)'!I35 -> 0.8436 | J35: =B35*$D$20*'ROC (1)'!$N$5 ->  | K35: =$D$20*'ROC (1)'!$N$5*(1-B35) ->  | L35: =F35*'ROC (1)'!$N$5*(1-$D$20) ->  | M35: ='ROC (1)'!$N$5*(1-$D$20)*(1-F35) ->  | N35: =((J35+K35)*(J35+M35)+(L35+M35)*(L35+K35))/('ROC (1)'!$N$5^2) ->  | O35: =(I35-N35)/(1-N35) ->  | P35: =O35+1.96*(I35*(1-I35))/('ROC (1)'!$N$5*(1-N35)) ->  | Q35: =O35-1.96*(I35*(1-I35))/('ROC (1)'!$N$5*(1-N35)) -> 
A36: 34 | B36: =IF(ISBLANK('ROC (1)'!H36),NA(),'ROC (1)'!I36+'ROC (1)'!J36) ->  | C36: =IF(AND(ISNUMBER('ROC (1)'!H36),ISNUMBER('ROC (1)'!H37)),ABS(('ROC (1)'!I37-'ROC (1)'!I36)*(B36+B37)/2),0) -> 0 | F36: =1-'ROC (1)'!I36 -> 0.8436 | J36: =B36*$D$20*'ROC (1)'!$N$5 ->  | K36: =$D$20*'ROC (1)'!$N$5*(1-B36) ->  | L36: =F36*'ROC (1)'!$N$5*(1-$D$20) ->  | M36: ='ROC (1)'!$N$5*(1-$D$20)*(1-F36) ->  | N36: =((J36+K36)*(J36+M36)+(L36+M36)*(L36+K36))/('ROC (1)'!$N$5^2) ->  | P36: =O36+1.96*(I36*(1-I36))/('ROC (1)'!$N$5*(1-N36)) ->  | Q36: =O36-1.96*(I36*(1-I36))/('ROC (1)'!$N$5*(1-N36)) -> 
A37: 35 | B37: =IF(ISBLANK('ROC (1)'!H37),NA(),'ROC (1)'!I37+'ROC (1)'!J37) ->  | C37: =IF(AND(ISNUMBER('ROC (1)'!H37),ISNUMBER('ROC (1)'!H38)),ABS(('ROC (1)'!I38-'ROC (1)'!I37)*(B37+B38)/2),0) -> 0 | F37: =1-'ROC (1)'!I37 -> 0.8748 | J37: =B37*$D$20*'ROC (1)'!$N$5 ->  | K37: =$D$20*'ROC (1)'!$N$5*(1-B37) ->  | L37: =F37*'ROC (1)'!$N$5*(1-$D$20) ->  | M37: ='ROC (1)'!$N$5*(1-$D$20)*(1-F37) ->  | N37: =((J37+K37)*(J37+M37)+(L37+M37)*(L37+K37))/('ROC (1)'!$N$5^2) ->  | P37: =O37+1.96*(I37*(1-I37))/('ROC (1)'!$N$5*(1-N37)) ->  | Q37: =O37-1.96*(I37*(1-I37))/('ROC (1)'!$N$5*(1-N37)) -> 
A38: 36 | B38: =IF(ISBLANK('ROC (1)'!H38),NA(),'ROC (1)'!I38+'ROC (1)'!J38) ->  | C38: =IF(AND(ISNUMBER('ROC (1)'!H38),ISNUMBER('ROC (1)'!H39)),ABS(('ROC (1)'!I39-'ROC (1)'!I38)*(B38+B39)/2),0) -> 0 | F38: =1-'ROC (1)'!I38 -> 0.8748 | J38: =B38*$D$20*'ROC (1)'!$N$5 ->  | K38: =$D$20*'ROC (1)'!$N$5*(1-B38) ->  | L38: =F38*'ROC (1)'!$N$5*(1-$D$20) ->  | M38: ='ROC (1)'!$N$5*(1-$D$20)*(1-F38) ->  | N38: =((J38+K38)*(J38+M38)+(L38+M38)*(L38+K38))/('ROC (1)'!$N$5^2) ->  | P38: =O38+1.96*(I38*(1-I38))/('ROC (1)'!$N$5*(1-N38)) ->  | Q38: =O38-1.96*(I38*(1-I38))/('ROC (1)'!$N$5*(1-N38)) -> 
A39: 37 | B39: =IF(ISBLANK('ROC (1)'!H39),NA(),'ROC (1)'!I39+'ROC (1)'!J39) ->  | C39: =IF(AND(ISNUMBER('ROC (1)'!H39),ISNUMBER('ROC (1)'!H40)),ABS(('ROC (1)'!I40-'ROC (1)'!I39)*(B39+B40)/2),0) -> 0 | F39: =1-'ROC (1)'!I39 -> 0.9048 | J39: =B39*$D$20*'ROC (1)'!$N$5 ->  | K39: =$D$20*'ROC (1)'!$N$5*(1-B39) ->  | L39: =F39*'ROC (1)'!$N$5*(1-$D$20) ->  | M39: ='ROC (1)'!$N$5*(1-$D$20)*(1-F39) ->  | N39: =((J39+K39)*(J39+M39)+(L39+M39)*(L39+K39))/('ROC (1)'!$N$5^2) ->  | P39: =O39+1.96*(I39*(1-I39))/('ROC (1)'!$N$5*(1-N39)) ->  | Q39: =O39-1.96*(I39*(1-I39))/('ROC (1)'!$N$5*(1-N39)) -> 
A40: 38 | B40: =IF(ISBLANK('ROC (1)'!H40),NA(),'ROC (1)'!I40+'ROC (1)'!J40) ->  | C40: =IF(AND(ISNUMBER('ROC (1)'!H40),ISNUMBER('ROC (1)'!H41)),ABS(('ROC (1)'!I41-'ROC (1)'!I40)*(B40+B41)/2),0) -> 0 | F40: =1-'ROC (1)'!I40 -> 0.9048 | J40: =B40*$D$20*'ROC (1)'!$N$5 ->  | K40: =$D$20*'ROC (1)'!$N$5*(1-B40) ->  | L40: =F40*'ROC (1)'!$N$5*(1-$D$20) ->  | M40: ='ROC (1)'!$N$5*(1-$D$20)*(1-F40) ->  | N40: =((J40+K40)*(J40+M40)+(L40+M40)*(L40+K40))/('ROC (1)'!$N$5^2) ->  | P40: =O40+1.96*(I40*(1-I40))/('ROC (1)'!$N$5*(1-N40)) ->  | Q40: =O40-1.96*(I40*(1-I40))/('ROC (1)'!$N$5*(1-N40)) -> 
A41: 39 | B41: =IF(ISBLANK('ROC (1)'!H41),NA(),'ROC (1)'!I41+'ROC (1)'!J41) ->  | C41: =IF(AND(ISNUMBER('ROC (1)'!H41),ISNUMBER('ROC (1)'!H42)),ABS(('ROC (1)'!I42-'ROC (1)'!I41)*(B41+B42)/2),0) -> 0 | F41: =1-'ROC (1)'!I41 -> 0.93 | J41: =B41*$D$20*'ROC (1)'!$N$5 ->  | K41: =$D$20*'ROC (1)'!$N$5*(1-B41) ->  | L41: =F41*'ROC (1)'!$N$5*(1-$D$20) ->  | M41: ='ROC (1)'!$N$5*(1-$D$20)*(1-F41) ->  | N41: =((J41+K41)*(J41+M41)+(L41+M41)*(L41+K41))/('ROC (1)'!$N$5^2) ->  | P41: =O41+1.96*(I41*(1-I41))/('ROC (1)'!$N$5*(1-N41)) ->  | Q41: =O41-1.96*(I41*(1-I41))/('ROC (1)'!$N$5*(1-N41)) -> 
A42: 40 | B42: =IF(ISBLANK('ROC (1)'!H42),NA(),'ROC (1)'!I42+'ROC (1)'!J42) ->  | C42: =IF(AND(ISNUMBER('ROC (1)'!H42),ISNUMBER('ROC (1)'!H43)),ABS(('ROC (1)'!I43-'ROC (1)'!I42)*(B42+B43)/2),0) -> 0 | F42: =1-'ROC (1)'!I42 -> 0.93 | J42: =B42*$D$20*'ROC (1)'!$N$5 ->  | K42: =$D$20*'ROC (1)'!$N$5*(1-B42) ->  | L42: =F42*'ROC (1)'!$N$5*(1-$D$20) ->  | M42: ='ROC (1)'!$N$5*(1-$D$20)*(1-F42) ->  | N42: =((J42+K42)*(J42+M42)+(L42+M42)*(L42+K42))/('ROC (1)'!$N$5^2) ->  | P42: =O42+1.96*(I42*(1-I42))/('ROC (1)'!$N$5*(1-N42)) ->  | Q42: =O42-1.96*(I42*(1-I42))/('ROC (1)'!$N$5*(1-N42)) -> 
A43: 41 | B43: =IF(ISBLANK('ROC (1)'!H43),NA(),'ROC (1)'!I43+'ROC (1)'!J43) ->  | C43: =IF(AND(ISNUMBER('ROC (1)'!H43),ISNUMBER('ROC (1)'!H44)),ABS(('ROC (1)'!I44-'ROC (1)'!I43)*(B43+B44)/2),0) -> 0 | F43: =1-'ROC (1)'!I43 -> 0.9516 | J43: =B43*$D$20*'ROC (1)'!$N$5 ->  | K43: =$D$20*'ROC (1)'!$N$5*(1-B43) ->  | L43: =F43*'ROC (1)'!$N$5*(1-$D$20) ->  | M43: ='ROC (1)'!$N$5*(1-$D$20)*(1-F43) ->  | N43: =((J43+K43)*(J43+M43)+(L43+M43)*(L43+K43))/('ROC (1)'!$N$5^2) ->  | P43: =O43+1.96*(I43*(1-I43))/('ROC (1)'!$N$5*(1-N43)) ->  | Q43: =O43-1.96*(I43*(1-I43))/('ROC (1)'!$N$5*(1-N43)) -> 
A44: 42 | B44: =IF(ISBLANK('ROC (1)'!H44),NA(),'ROC (1)'!I44+'ROC (1)'!J44) ->  | C44: =IF(AND(ISNUMBER('ROC (1)'!H44),ISNUMBER('ROC (1)'!H45)),ABS(('ROC (1)'!I45-'ROC (1)'!I44)*(B44+B45)/2),0) -> 0 | F44: =1-'ROC (1)'!I44 -> 0.9516 | J44: =B44*$D$20*'ROC (1)'!$N$5 ->  | K44: =$D$20*'ROC (1)'!$N$5*(1-B44) ->  | L44: =F44*'ROC (1)'!$N$5*(1-$D$20) ->  | M44: ='ROC (1)'!$N$5*(1-$D$20)*(1-F44) ->  | N44: =((J44+K44)*(J44+M44)+(L44+M44)*(L44+K44))/('ROC (1)'!$N$5^2) ->  | P44: =O44+1.96*(I44*(1-I44))/('ROC (1)'!$N$5*(1-N44)) ->  | Q44: =O44-1.96*(I44*(1-I44))/('ROC (1)'!$N$5*(1-N44)) -> 
A45: 43 | B45: =IF(ISBLANK('ROC (1)'!H45),NA(),'ROC (1)'!I45+'ROC (1)'!J45) ->  | C45: =IF(AND(ISNUMBER('ROC (1)'!H45),ISNUMBER('ROC (1)'!H46)),ABS(('ROC (1)'!I46-'ROC (1)'!I45)*(B45+B46)/2),0) -> 0 | F45: =1-'ROC (1)'!I45 -> 0.976 | J45: =B45*$D$20*'ROC (1)'!$N$5 ->  | K45: =$D$20*'ROC (1)'!$N$5*(1-B45) ->  | L45: =F45*'ROC (1)'!$N$5*(1-$D$20) ->  | M45: ='ROC (1)'!$N$5*(1-$D$20)*(1-F45) ->  | N45: =((J45+K45)*(J45+M45)+(L45+M45)*(L45+K45))/('ROC (1)'!$N$5^2) ->  | P45: =O45+1.96*(I45*(1-I45))/('ROC (1)'!$N$5*(1-N45)) ->  | Q45: =O45-1.96*(I45*(1-I45))/('ROC (1)'!$N$5*(1-N45)) -> 
A46: 44 | B46: =IF(ISBLANK('ROC (1)'!H46),NA(),'ROC (1)'!I46+'ROC (1)'!J46) ->  | C46: =IF(AND(ISNUMBER('ROC (1)'!H46),ISNUMBER('ROC (1)'!H47)),ABS(('ROC (1)'!I47-'ROC (1)'!I46)*(B46+B47)/2),0) -> 0 | F46: =1-'ROC (1)'!I46 -> 0.976 | J46: =B46*$D$20*'ROC (1)'!$N$5 ->  | K46: =$D$20*'ROC (1)'!$N$5*(1-B46) ->  | L46: =F46*'ROC (1)'!$N$5*(1-$D$20) ->  | M46: ='ROC (1)'!$N$5*(1-$D$20)*(1-F46) ->  | N46: =((J46+K46)*(J46+M46)+(L46+M46)*(L46+K46))/('ROC (1)'!$N$5^2) ->  | P46: =O46+1.96*(I46*(1-I46))/('ROC (1)'!$N$5*(1-N46)) ->  | Q46: =O46-1.96*(I46*(1-I46))/('ROC (1)'!$N$5*(1-N46)) -> 
A47: 45 | B47: =IF(ISBLANK('ROC (1)'!H47),NA(),'ROC (1)'!I47+'ROC (1)'!J47) ->  | C47: =IF(AND(ISNUMBER('ROC (1)'!H47),ISNUMBER('ROC (1)'!H48)),ABS(('ROC (1)'!I48-'ROC (1)'!I47)*(B47+B48)/2),0) -> 0 | F47: =1-'ROC (1)'!I47 -> 1 | J47: =B47*$D$20*'ROC (1)'!$N$5 ->  | K47: =$D$20*'ROC (1)'!$N$5*(1-B47) ->  | L47: =F47*'ROC (1)'!$N$5*(1-$D$20) ->  | M47: ='ROC (1)'!$N$5*(1-$D$20)*(1-F47) ->  | N47: =((J47+K47)*(J47+M47)+(L47+M47)*(L47+K47))/('ROC (1)'!$N$5^2) ->  | P47: =O47+1.96*(I47*(1-I47))/('ROC (1)'!$N$5*(1-N47)) ->  | Q47: =O47-1.96*(I47*(1-I47))/('ROC (1)'!$N$5*(1-N47)) -> 
A48: 46 | B48: =IF(ISBLANK('ROC (1)'!H48),NA(),'ROC (1)'!I48+'ROC (1)'!J48) ->  | C48: =IF(AND(ISNUMBER('ROC (1)'!H48),ISNUMBER('ROC (1)'!H49)),ABS(('ROC (1)'!I49-'ROC (1)'!I48)*(B48+B49)/2),0) -> 0 | F48: =1-'ROC (1)'!I48 -> 1 | J48: =B48*$D$20*'ROC (1)'!$N$5 ->  | K48: =$D$20*'ROC (1)'!$N$5*(1-B48) ->  | L48: =F48*'ROC (1)'!$N$5*(1-$D$20) ->  | M48: ='ROC (1)'!$N$5*(1-$D$20)*(1-F48) ->  | N48: =((J48+K48)*(J48+M48)+(L48+M48)*(L48+K48))/('ROC (1)'!$N$5^2) ->  | P48: =O48+1.96*(I48*(1-I48))/('ROC (1)'!$N$5*(1-N48)) ->  | Q48: =O48-1.96*(I48*(1-I48))/('ROC (1)'!$N$5*(1-N48)) -> 
A49: 47 | B49: =IF(ISBLANK('ROC (1)'!H49),NA(),'ROC (1)'!I49+'ROC (1)'!J49) ->  | C49: =IF(AND(ISNUMBER('ROC (1)'!H49),ISNUMBER('ROC (1)'!H50)),ABS(('ROC (1)'!I50-'ROC (1)'!I49)*(B49+B50)/2),0) -> 0 | F49: =1-'ROC (1)'!I49 -> 1 | J49: =B49*$D$20*'ROC (1)'!$N$5 ->  | K49: =$D$20*'ROC (1)'!$N$5*(1-B49) ->  | L49: =F49*'ROC (1)'!$N$5*(1-$D$20) ->  | M49: ='ROC (1)'!$N$5*(1-$D$20)*(1-F49) ->  | N49: =((J49+K49)*(J49+M49)+(L49+M49)*(L49+K49))/('ROC (1)'!$N$5^2) ->  | P49: =O49+1.96*(I49*(1-I49))/('ROC (1)'!$N$5*(1-N49)) ->  | Q49: =O49-1.96*(I49*(1-I49))/('ROC (1)'!$N$5*(1-N49)) -> 
A50: 48 | B50: =IF(ISBLANK('ROC (1)'!H50),NA(),'ROC (1)'!I50+'ROC (1)'!J50) ->  | C50: =IF(AND(ISNUMBER('ROC (1)'!H50),ISNUMBER('ROC (1)'!H51)),ABS(('ROC (1)'!I51-'ROC (1)'!I50)*(B50+B51)/2),0) -> 0 | F50: =1-'ROC (1)'!I50 -> 1 | J50: =B50*$D$20*'ROC (1)'!$N$5 ->  | K50: =$D$20*'ROC (1)'!$N$5*(1-B50) ->  | L50: =F50*'ROC (1)'!$N$5*(1-$D$20) ->  | M50: ='ROC (1)'!$N$5*(1-$D$20)*(1-F50) ->  | N50: =((J50+K50)*(J50+M50)+(L50+M50)*(L50+K50))/('ROC (1)'!$N$5^2) ->  | P50: =O50+1.96*(I50*(1-I50))/('ROC (1)'!$N$5*(1-N50)) ->  | Q50: =O50-1.96*(I50*(1-I50))/('ROC (1)'!$N$5*(1-N50)) -> 
A51: 49 | B51: =IF(ISBLANK('ROC (1)'!H51),NA(),'ROC (1)'!I51+'ROC (1)'!J51) ->  | C51: =IF(AND(ISNUMBER('ROC (1)'!H51),ISNUMBER('ROC (1)'!H52)),ABS(('ROC (1)'!I52-'ROC (1)'!I51)*(B51+B52)/2),0) -> 0 | F51: =1-'ROC (1)'!I51 -> 1 | J51: =B51*$D$20*'ROC (1)'!$N$5 ->  | K51: =$D$20*'ROC (1)'!$N$5*(1-B51) ->  | L51: =F51*'ROC (1)'!$N$5*(1-$D$20) ->  | M51: ='ROC (1)'!$N$5*(1-$D$20)*(1-F51) ->  | N51: =((J51+K51)*(J51+M51)+(L51+M51)*(L51+K51))/('ROC (1)'!$N$5^2) ->  | P51: =O51+1.96*(I51*(1-I51))/('ROC (1)'!$N$5*(1-N51)) ->  | Q51: =O51-1.96*(I51*(1-I51))/('ROC (1)'!$N$5*(1-N51)) -> 
A52: 50 | B52: =IF(ISBLANK('ROC (1)'!H52),NA(),'ROC (1)'!I52+'ROC (1)'!J52) ->  | C52: =IF(AND(ISNUMBER('ROC (1)'!H52),ISNUMBER('ROC (1)'!H53)),ABS(('ROC (1)'!I53-'ROC (1)'!I52)*(B52+B53)/2),0) -> 0 | F52: =1-'ROC (1)'!I52 -> 1 | J52: =B52*$D$20*'ROC (1)'!$N$5 ->  | K52: =$D$20*'ROC (1)'!$N$5*(1-B52) ->  | L52: =F52*'ROC (1)'!$N$5*(1-$D$20) ->  | M52: ='ROC (1)'!$N$5*(1-$D$20)*(1-F52) ->  | N52: =((J52+K52)*(J52+M52)+(L52+M52)*(L52+K52))/('ROC (1)'!$N$5^2) ->  | P52: =O52+1.96*(I52*(1-I52))/('ROC (1)'!$N$5*(1-N52)) ->  | Q52: =O52-1.96*(I52*(1-I52))/('ROC (1)'!$N$5*(1-N52)) -> 
C53: =SUM(C3:C52) -> 0
A54: EOF | B54: EOF | C54: EOF | D54: EOF | E54: EOF | F54: EOF | G54: EOF | H54: EOF | I54: EOF | J54: EOF | K54: EOF | L54: EOF | M54: EOF | N54: EOF | O54: EOF | P54: EOF | Q54: EOF | R54: EOF | S54: EOF | T54: EOF | U54: EOF | V54: EOF | W54: EOF | X54: EOF | Y54: EOF | Z54: EOF
C55: =C53-0.5 -> -0.5

Sheet ROC (1)
H1: Warning! Columns I and J are unprotected | N1: Y | O1: N | P1: Licenced to ACB 2018
C2: ID | D2: Result | E2: Outcome | F2: Class | H2: Cut-off | I2: 1-spec | J2: J-index | L2: Negative | M2: Positive | N2: Sum | T2: Likelihood ratio | U2: 0 | V2: 1
B3: 1 | F3: =IF(OR(ISBLANK(D3),ISBLANK(E3)),"",IF(AND($R$8="Y",E3="H",D3<$L$6),"TN",IF(AND($R$8="Y",E3="H",D3>=$L$6),"FP",IF(AND($R$8="Y",E3="D",D3>=$L$6),"TP",IF(AND($R$8="Y",D3<$L$6,E3="D"),"FN",IF(AND($R$8="N",E3="H",D3<$L$6),"FP",IF(AND($R$8="N",E3="H",D3>=$L$6),"TN",IF(AND($R$8="N",E3="D",D3>=$L$6),"FN",IF(AND($R$8="N",D3<$L$6,E3="D"),"TP"))))))))) ->  | I3: 1 | J3: 0 | K3: Diseased (D) | L3: =IF(ISBLANK(P12),"",COUNTIF(F3:F5002,"FN")) ->  | M3: =IF(ISBLANK(P12),"",COUNTIF(F3:F5002,"TP")) ->  | N3: =IF(ISBLANK(P12),"",M3+L3) ->  | O3: Prevalence | P3: =IF(ISBLANK(P12),"",N3/N5) ->  | Q3: Min value | R3: Max value | T3: =IF(ISBLANK(P12),"",N3/N5) ->  | U3: 0 | V3: 0.5
B4: 2 | F4: =IF(OR(ISBLANK(D4),ISBLANK(E4)),"",IF(AND($R$8="Y",E4="H",D4<$L$6),"TN",IF(AND($R$8="Y",E4="H",D4>=$L$6),"FP",IF(AND($R$8="Y",E4="D",D4>=$L$6),"TP",IF(AND($R$8="Y",D4<$L$6,E4="D"),"FN",IF(AND($R$8="N",E4="H",D4<$L$6),"FP",IF(AND($R$8="N",E4="H",D4>=$L$6),"TN",IF(AND($R$8="N",E4="D",D4>=$L$6),"FN",IF(AND($R$8="N",D4<$L$6,E4="D"),"TP"))))))))) ->  | I4: 1 | J4: 0 | K4: Healthy (H) | L4: =IF(ISBLANK(P12),"",COUNTIF(F3:F5002,"TN")) ->  | M4: =IF(ISBLANK(P12),"",COUNTIF(F3:F5002,"FP")) ->  | N4: =IF(ISBLANK(P12),"",M4+L4) ->  | O4: Postt. Prob PV(+) | P4: =IF(ISBLANK(P12),"",IF(M5=0,"Check FN",M3/M5)) ->  | Q4: =IF(ISBLANK(P12),"",MIN(D3:D5002)) ->  | R4: =IF(ISBLANK(P12),"",MAX(D3:D5002)) ->  | U4: 0 | V4: 0.3333333333
B5: 3 | I5: 0.9756 | J5: 0.0244 | K5: Sum | L5: =IF(ISBLANK($P$12),"",L3+L4) ->  | M5: =IF(ISBLANK($P$12),"",M3+M4) ->  | N5: =IF(ISBLANK(P12),"",M3+L3+M4+L4) ->  | O5: Postt. Prob PV(-) | P5: =IF(ISBLANK(P12),"",IF(L5=0,"Check FP",L4/L5)) ->  | U5: 0 | V5: 0.25
B6: 4 | I6: 0.948 | J6: 0.052 | K6: Actual cut-off | M6: CI | O6: Efficiency | P6: =IF(ISBLANK(P12),"",(M3+L4)/N5) ->  | Q6: Ie: | R6: =((M3+M4)*(M3+L3)+(L3+L4)*(L4+M4))/N5^2 ->  | KL6: 1.3
B7: 5 | I7: 0.9148 | J7: 0.0852 | K7: Sensitivity | L7: =IF(ISBLANK(P12),"",M3/(M3+L3)) ->  | M7: =IF(ISBLANK(P12),"",SQRT(L7*(1-L7)/(M3+L3))) ->  | O7: Kappa -value | P7: =IF(ISBLANK(P12),"",(P6-R6)/(1-R6)) ->  | Q7: =IF(P7<=0.01,"Poor agreement",IF(AND(P7>0.01,P7<=0.2),"Slight agreement",IF(AND(P7>0.2,P7<=0.4),"Fair agreement",IF(AND(P7>0.4,7<=0.6),"Moderate agreement",IF(AND(P7>0.6,P7<=0.8),"Substantial agreement",IF(AND(P7>0.8,P7<=1),"Almost perfect agreement","")))))) ->  | U7: © Anders Kallner
B8: 6 | I8: 0.8688 | J8: 0.1312 | K8: Specificity | L8: =IF(ISBLANK(P12),"",L4/(L4+M4)) ->  | M8: =IF(ISBLANK(P12),"",SQRT(L8*(1-L8)/(M4+L4))) ->  | O8: Diseased have high values? | R8: Y | U8: Dept Clinical Chemistry, Karolinska Univ hosp. Stockholm, SWEDEN
B9: 7 | I9: 0.8208 | J9: 0.1792 | K9: 1-Specificity | L9: =IF(ISBLANK(P12),"",1-L8) ->  | M9: =IF(N12="Y",0,"") ->  | N9: 1 | U9: e-mail:anders.kallner@ki.se v 3.2 2018-07-21
B10: 8 | I10: 0.7704 | J10: 0.2272 | K10: J-index | L10: =IF(ISBLANK(P12),"",L7+L8-1) ->  | M10: =1/L12 ->  | P10: =IF(ISNUMBER(M3),"","Enter component name below!") -> Enter component name below! | U10: Phone:+46 707355872
B11: 9 | I11: 0.7212 | J11: 0.2712 | K11: K-index | L11: =IF(ISBLANK(P12),"",SQRT(L9^2+(1-L7)^2)) ->  | M11: Min K-index: | N11: ='ROC (1) calc'!W1&" at row: " -> 0 at row: | O11: =IF(ISNUMBER('ROC (1) calc'!X1),'ROC (1) calc'!X1+2,"") -> 
B12: 10 | I12: 0.7212 | J12: 0.2712 | K12: LR(+) | L12: =IF(ISBLANK(P12),"",IF(L9=0,"Check specificity!",L7/L9)) ->  | M12: Display LR(+)? | N12: N | O12: Component:
B13: 11 | I13: 0.6656 | J13: 0.31 | K13: LR(-) | L13: =IF(ISBLANK(P12),"",IF(L8=0,"Check specificity!",(1-L7)/L8)) -> 
B14: 12 | I14: 0.6656 | J14: 0.31 | K14: AUC | L14: =IF(ISBLANK(P12),"",'ROC (1) calc'!C53) ->  | M14: SE(AUC) | N14: =IF(ISBLANK(P12),"",'ROC (1) calc'!E13) -> 
B15: 13 | I15: 0.6116 | J15: 0.3496
B16: 14 | I16: 0.6116 | J16: 0.3496
B17: 15 | I17: 0.5532 | J17: 0.378
B18: 16 | I18: 0.5532 | J18: 0.378
B19: 17 | I19: 0.5056 | J19: 0.384
B20: 18 | I20: 0.5056 | J20: 0.384
B21: 19 | I21: 0.4512 | J21: 0.3988
B22: 20 | I22: 0.4512 | J22: 0.3988
B23: 21 | I23: 0.388 | J23: 0.4204
B24: 22 | I24: 0.388 | J24: 0.4204
B25: 23 | I25: 0.3408 | J25: 0.4176
B26: 24 | I26: 0.3408 | J26: 0.4176
B27: 25 | I27: 0.3028 | J27: 0.3996
B28: 26 | I28: 0.3028 | J28: 0.3996
B29: 27 | I29: 0.2656 | J29: 0.3712
B30: 28 | I30: 0.2656 | J30: 0.3712
B31: 29 | I31: 0.2268 | J31: 0.3456
B32: 30 | I32: 0.2268 | J32: 0.3456
B33: 31 | I33: 0.1924 | J33: 0.31
B34: 32 | I34: 0.1924 | J34: 0.31
B35: 33 | I35: 0.1564 | J35: 0.2708
B36: 34 | I36: 0.1564 | J36: 0.2708 | L36: 0 | M36: 1
B37: 35 | I37: 0.1252 | J37: 0.2316 | L37: 1 | M37: 0
B38: 36 | I38: 0.1252 | J38: 0.2316
B39: 37 | I39: 0.0952 | J39: 0.1916
B40: 38 | I40: 0.0952 | J40: 0.1916
B41: 39 | I41: 0.07 | J41: 0.1436
B42: 40 | I42: 0.07 | J42: 0.1436 | AD42: =IFERROR($S$51/($S$54*SQRT(PI()*2))*EXP(-((I56-$S$53)^2)/(2*$S$54^2)),NA()) ->  | AE42: x | AF42: 0 | AG42: 0
B43: 41 | I43: 0.0484 | J43: 0.094 | AE43: y | AF43: 1 | AG43: 1
B44: 42 | I44: 0.0484 | J44: 0.094 | AF44: =L11 -> 
B45: 43 | I45: 0.024 | J45: 0.0492 | R45: Max: | S45: =MAX(D3:D5002) -> 0 | AE45: 270 | AF45: =2*PI()*AE45/$AE$51 -> 4.71238898 | AG45: =$AF$44*COS(AF45)+$AF$42 ->  | AH45: =$AF$44*SIN(AF45)+$AF$43 -> 
B46: 44 | I46: 0.024 | J46: 0.0492 | R46: Min: | S46: =MIN(D3:D5002) -> 0 | V46: Bottom | W46: =S58 ->  | AE46: 285 | AF46: 4.974188368
B47: 45 | I47: 0 | J47: 0 | R47: Number obs: | S47: =COUNT(D3:D5002) -> 0 | V47: 75 top | W47: =S56-S57 ->  | AE47: 300 | AF47: 5.235987756
B48: 46 | I48: 0 | J48: 0 | R48: Number bins: | S48: 25 | V48: 75 min | W48: =S57-S58 ->  | AE48: 315 | AF48: 5.497787144
B49: 47 | I49: 0 | J49: 0 | L49: Spec | R49: Bin size: | S49: =(S45-S46)/S48 -> 0 | V49: Whisker min | W49: =S58-S59 ->  | AE49: 330 | AF49: 5.759586532
B50: 48 | I50: 0 | J50: 0 | L50: =1-I3 -> 0 | R50: Low percentile: | S50: 5 | V50: whiser max | W50: =S55-S56 ->  | AE50: 345 | AF50: 6.021385919
B51: 49 | I51: 0 | J51: 0 | L51: 0 | R51: Gauss scaling factor: | S51: 500 | T51: =IF(S48>25,"max 25 bins!","") ->  | AE51: 360 | AF51: 6.283185307
B52: 50 | I52: 0 | J52: 0 | L52: 0.0244 | R52: Skewness: | S52: =IFERROR(SKEW(D3:D5002),"") -> 
B53: 51 | L53: 0.052 | R53: Average: | S53: =IFERROR(AVERAGE(D3:D5002),"") ->  | AE53: 0
B54: 52 | L54: 0.0852 | R54: SD: | S54: =IFERROR(STDEV(D3:D5002),"") ->  | AE54: 1
B55: 53 | I55: Bins | J55: Number | L55: 0.1312 | R55: =100-S50&" -percentile:" -> 95 -percentile: | S55: =IFERROR(PERCENTILE(D4:D5002,0.95),"") ->  | AE55: =L6 -> 0
B56: 54 | H56: 1 | I56: =S46 -> 0 | J56: =FREQUENCY(D3:D5002,I56:I80) -> 0 | L56: 0.1792 | R56: =75&" -percentile:" -> 75 -percentile: | S56: =IFERROR(PERCENTILE(D4:D5002,0.75),"") ->  | AE56: =AE55 -> 0
B57: 55 | H57: 2 | I57: =IF(H57>$S$48," ",$I$56+(H57-1)*$S$49) -> 0 | J57: 0 | L57: 0.2296 | R57: Median: | S57: =IFERROR(MEDIAN(D3:D5002),"") -> 
B58: 56 | H58: 3 | I58: 0 | J58: 0 | L58: 0.2788 | R58: =25&" -percentile:" -> 25 -percentile: | S58: =IFERROR(PERCENTILE(D4:D5002,0.25),"") ->  | AE58: PV(+), PV(-), Efficiency & kappa
B59: 57 | H59: 4 | I59: 0 | J59: 0 | L59: 0.2788 | R59: =S50&" -percentile:" -> 5 -percentile: | S59: =IFERROR(PERCENTILE(D3:D5002,0.05),"") ->  | AE59: Cut-off
B60: 58 | H60: 5 | I60: 0 | J60: 0 | L60: 0.3344 | AE60: Frequency | AF60: Concentration
B61: 59 | H61: 6 | I61: 0 | J61: 0 | L61: 0.3344 | AF61: =AF60 -> Concentration
B62: 60 | H62: 7 | I62: 0 | J62: 0 | L62: 0.3884 | AE62: y: | AF62: =L7 ->  | AG62: =AF63 -> 
B63: 61 | H63: 8 | I63: 0 | J63: 0 | L63: 0.3884 | AE63: x: | AF63: =L9 ->  | AG63: =AF63 -> 
B64: 62 | H64: 9 | I64: 0 | J64: 0 | L64: 0.4468
B65: 63 | H65: 10 | I65: 0 | J65: 0 | L65: 0.4468
B66: 64 | H66: 11 | I66: 0 | J66: 0 | L66: 0.4944
B67: 65 | H67: 12 | I67: 0 | J67: 0 | L67: 0.4944
B68: 66 | F68: =IF(OR(ISBLANK(D68),ISBLANK(E68)),"",IF(AND($R$8="Y",E68="H",D68<$L$6),"TN",IF(AND($R$8="Y",E68="H",D68>=$L$6),"FP",IF(AND($R$8="Y",E68="D",D68>=$L$6),"TP",IF(AND($R$8="Y",D68<$L$6,E68="D"),"FN",IF(AND($R$8="N",E68="H",D68<$L$6),"FP",IF(AND($R$8="N",E68="H",D68>=$L$6),"TN",IF(AND($R$8="N",E68="D",D68>=$L$6),"FN",IF(AND($R$8="N",D68<$L$6,E68="D"),"TP"))))))))) ->  | H68: 13 | I68: 0 | J68: 0 | L68: 0.5488
B69: 67 | H69: 14 | I69: 0 | J69: 0 | L69: 0.5488
B70: 68 | H70: 15 | I70: 0 | J70: 0
B71: 69 | H71: 16 | I71: 0 | J71: 0
B72: 70 | H72: 17 | I72: 0 | J72: 0
B73: 71 | H73: 18 | I73: 0 | J73: 0
B74: 72 | H74: 19 | I74: 0 | J74: 0
B75: 73 | H75: 20 | I75: 0 | J75: 0
B76: 74 | H76: 21 | I76: 0 | J76: 0
B77: 75 | H77: 22 | I77: 0 | J77: 0
B78: 76 | H78: 23 | I78: 0 | J78: 0
B79: 77 | H79: 24 | I79: 0 | J79: 0
B80: 78 | H80: 25 | I80: 0 | J80: 0
B81: 79 | I81: More | J81: 0
B82: 80
B83: 81
B84: 82
B85: 83
B86: 84
B87: 85
B88: 86
B89: 87
B90: 88
B91: 89
B92: 90
B93: 91
B94: 92
B95: 93
B96: 94
B97: 95
B98: 96
B99: 97
B100: 98
B101: 99
B102: 100
B103: 101
B104: 102
B105: 103
B106: 104
B107: 105
B108: 106
B109: 107
B110: 108
B111: 109
B112: 110
B113: 111
B114: 112
B115: 113
B116: 114
B117: 115
B118: 116
B119: 117
B120: 118
B121: 119
B122: 120
B123: 121
B124: 122
B125: 123
B126: 124
B127: 125
B128: 126
B129: 127
B130: 128
B131: 129
B132: 130 | F132: =IF(OR(ISBLANK(D132),ISBLANK(E132)),"",IF(AND($R$8="Y",E132="H",D132<$L$6),"TN",IF(AND($R$8="Y",E132="H",D132>=$L$6),"FP",IF(AND($R$8="Y",E132="D",D132>=$L$6),"TP",IF(AND($R$8="Y",D132<$L$6,E132="D"),"FN",IF(AND($R$8="N",E132="H",D132<$L$6),"FP",IF(AND($R$8="N",E132="H",D132>=$L$6),"TN",IF(AND($R$8="N",E132="D",D132>=$L$6),"FN",IF(AND($R$8="N",D132<$L$6,E132="D"),"TP"))))))))) -> 
B133: 131
B134: 132
B135: 133
B136: 134
B137: 135
B138: 136
B139: 137
B140: 138
B141: 139
B142: 140
B143: 141
B144: 142
B145: 143
B146: 144
B147: 145
B148: 146
B149: 147
B150: 148
B151: 149
B152: 150
B153: 151
B154: 152
B155: 153
B156: 154
B157: 155
B158: 156
B159: 157
B160: 158
B161: 159
B162: 160
B163: 161
B164: 162
B165: 163
B166: 164
B167: 165
B168: 166
B169: 167
B170: 168
B171: 169
B172: 170
B173: 171
B174: 172
B175: 173
B176: 174
B177: 175
B178: 176
B179: 177
B180: 178
B181: 179
B182: 180
B183: 181
B184: 182
B185: 183
B186: 184
B187: 185
B188: 186
B189: 187
B190: 188
B191: 189
B192: 190
B193: 191
B194: 192
B195: 193
B196: 194 | F196: =IF(OR(ISBLANK(D196),ISBLANK(E196)),"",IF(AND($R$8="Y",E196="H",D196<$L$6),"TN",IF(AND($R$8="Y",E196="H",D196>=$L$6),"FP",IF(AND($R$8="Y",E196="D",D196>=$L$6),"TP",IF(AND($R$8="Y",D196<$L$6,E196="D"),"FN",IF(AND($R$8="N",E196="H",D196<$L$6),"FP",IF(AND($R$8="N",E196="H",D196>=$L$6),"TN",IF(AND($R$8="N",E196="D",D196>=$L$6),"FN",IF(AND($R$8="N",D196<$L$6,E196="D"),"TP"))))))))) -> 
B197: 195
B198: 196
B199: 197
B200: 198
... 4803 more rows

Sheet ROC (2)
H1: Warning! Columns I and J are unprotected | N1: Y | O1: N | T1: © Anders Kallner
C2: ID | D2: Result | E2: Outcome | F2: Class | H2: Cut-off | I2: 1-spec | J2: J-index | L2: Negative | M2: Positive | N2: Sum | T2: Likelihood ratio
B3: 1 | F3: =IF(OR(ISBLANK(D3),ISBLANK(E3)),"",IF(AND($R$8="Y",E3="H",D3<$L$6),"TN",IF(AND($R$8="Y",E3="H",D3>=$L$6),"FP",IF(AND($R$8="Y",E3="D",D3>=$L$6),"TP",IF(AND($R$8="Y",D3<$L$6,E3="D"),"FN",IF(AND($R$8="N",E3="H",D3<$L$6),"FP",IF(AND($R$8="N",E3="H",D3>=$L$6),"TN",IF(AND($R$8="N",E3="D",D3>=$L$6),"FN",IF(AND($R$8="N",D3<$L$6,E3="D"),"TP"))))))))) ->  | I3: 1 | J3: -0.01515151515 | K3: ='ROC (1) calc'!D22 -> Diseased (D) | L3: =IF(ISBLANK(P12),"",COUNTIF(F3:F5002,"FN")) ->  | M3: =IF(ISBLANK(P12),"",COUNTIF(F3:F5002,"TP")) ->  | N3: =IF(ISBLANK(P12),"",M3+L3) ->  | O3: Prevalence: | P3: =IF(ISBLANK(P12),"",N3/N5) ->  | Q3: Min value | R3: Max value | T3: =IF(ISBLANK(P12),"",N3/N5) ->  | U3: 0 | V3: 1
B4: 2 | I4: 0.9705882353 | J4: -0.01604278075 | K4: ='ROC (1) calc'!D23 -> Healthy (H) | L4: =IF(ISBLANK(P12),"",COUNTIF(F3:F5002,"TN")) ->  | M4: =IF(ISBLANK(P12),"",COUNTIF(F3:F5002,"FP")) ->  | N4: =IF(ISBLANK(P12),"",M4+L4) ->  | O4: Postt. Prob PV(+): | P4: =IF(ISBLANK(P12),"",IF(M5=0,"Check FN",M3/M5)) ->  | Q4: =IF(ISBLANK(P12),"",MIN(D3:D5002)) ->  | R4: =IF(ISBLANK(P12),"",MAX(D3:D5002)) ->  | U4: 0 | V4: 0.5
B5: 3 | I5: 0.9705882353 | J5: -0.0311942959 | K5: Sum | L5: =IF(ISBLANK(P12),"",L3+L4) ->  | M5: =IF(ISBLANK(P12),"",M3+M4) ->  | N5: =IF(ISBLANK(P12),"",M3+L3+M4+L4) ->  | O5: Postt. Prob PV(-): | P5: =IF(ISBLANK(P12),"",IF(L5=0,"Check FP",L4/L5)) ->  | U5: 0 | V5: =1/3 -> 0.3333333333
B6: 4 | I6: 0.9411764706 | J6: -0.01693404635 | K6: Actual cut-off | M6: CI | O6: Efficiency | P6: =IF(ISBLANK(P12),"",(M3+L4)/N5) ->  | Q6: Ie: | R6: =((M3+M4)*(M3+L3)+(L3+L4)*(L4+M4))/(N5^2) ->  | U6: 0 | V6: 0.25
B7: 5 | I7: 0.9117647059 | J7: -0.002673796791 | K7: Sensitivity | L7: =IF(ISBLANK(P12),"",M3/(M3+L3)) ->  | M7: =IF(ISBLANK(P12),"",IF(R8="Y",SQRT(L7*(1-L7)/(M3+L3)),SQRT(L8*(1-L8)/(M4+L4)))) ->  | O7: Kappa-value | P7: =IF(ISBLANK(P12),"",(P6-R6)/(1-R6)) ->  | Q7: =IF(P7<=0.01,"Poor agreement",IF(AND(P7>0.01,P7<=0.2),"Slight agreement",IF(AND(P7>0.2,P7<=0.4),"Fair agreement",IF(AND(P7>0.4,7<=0.6),"Moderate agreement",IF(AND(P7>0.6,P7<=0.8),"Substantial agreement",IF(AND(P7>0.8,P7<=1),"Almost perfect agreement","")))))) -> 
B8: 6 | I8: 0.9117647059 | J8: -0.01782531194 | K8: Specificity | L8: =IF(ISBLANK(P12),"",L4/(L4+M4)) ->  | M8: =IF(ISBLANK(P12),"",IF(R8="Y",SQRT(L8*(1-L8)/(M4+L4)),SQRT(L7*(1-L7)/(M3+L3)))) ->  | O8: Diseased have high values? | R8: Y
B9: 7 | I9: 0.9117647059 | J9: -0.03297682709 | K9: 1-Specificity | L9: =IF(ISBLANK(P12),"",1-L8) ->  | M9: =IF(N12="Y",0,"") ->  | N9: 1
B10: 8 | I10: 0.8823529412 | J10: -0.01871657754 | K10: J-index | L10: =IF(ISBLANK(P12),"",L7+L8-1) ->  | M10: =1/L12 ->  | P10: =IF(ISNUMBER(M3),"","Enter component name below!") -> Enter component name below!
B11: 9 | I11: 0.8529411765 | J11: 0.01069518717 | K11: K-index | L11: =IF(ISBLANK(P12),"",SQRT(L9^2+(1-L7)^2)) ->  | M11: Min K-index: | N11: ='ROC(2) calc'!W1&" at row: " -> 0 at row: | O11: =IF(ISNUMBER('ROC(2) calc'!X1),'ROC(2) calc'!X1+2,"") -> 
B12: 10 | I12: 0.7941176471 | J12: 0.06951871658 | K12: LR(+) | L12: =IF(ISBLANK(P12),"",IF(L9=0,"Check specificity!",L7/L9)) ->  | M12: Display LR(+)? | N12: N | O12: Component:
B13: 11 | I13: 0.7941176471 | J13: 0.03921568627 | K13: LR(-) | L13: =IF(ISBLANK(P12),"",IF(L8=0,"Check specificity!",(1-L7)/L8)) -> 
B14: 12 | I14: 0.7941176471 | J14: 0.008912655971 | K14: AUC | L14: =IF(ISBLANK(P12),"",'ROC(2) calc'!C53) ->  | M14: SE(AUC) | N14: =IF(ISBLANK(P12),"",'ROC(2) calc'!E13) -> 
B15: 13 | I15: 0.7647058824 | J15: 0.02317290553
B16: 14 | I16: 0.7058823529 | J16: 0.03654188948
B17: 15 | I17: 0.6470588235 | J17: 0.08021390374
B18: 16 | I18: 0.6470588235 | J18: 0.03475935829
B19: 17 | I19: 0.6176470588 | J19: 0.06417112299 | Q19: x | R19: 0 | S19: 0
B20: 18 | I20: 0.5 | J20: 0.1818181818 | Q20: y | R20: 1 | S20: 1
B21: 19 | I21: 0.4411764706 | J21: 0.2254901961 | R21: =L11 -> 
B22: 20 | I22: 0.4411764706 | J22: 0.1951871658 | Q22: 270 | R22: =2*PI()*Q22/$Q$28 -> 4.71238898 | S22: =$R$21*COS(R22)+$R$19 ->  | T22: =$R$21*SIN(R22)+$R$20 -> 
B23: 21 | I23: 0.4411764706 | J23: 0.1648841355 | Q23: 285 | R23: 4.974188368
B24: 22 | I24: 0.4411764706 | J24: 0.1497326203 | Q24: 300 | R24: 5.235987756
B25: 23 | I25: 0.4411764706 | J25: 0.1345811052 | Q25: 315 | R25: 5.497787144
B26: 24 | I26: 0.3823529412 | J26: 0.1631016043 | Q26: 330 | R26: 5.759586532
B27: 25 | I27: 0.3529411765 | J27: 0.1773618538 | Q27: 345 | R27: 6.021385919
B28: 26 | I28: 0.3235294118 | J28: 0.2067736185 | Q28: 360 | R28: 6.283185307
B29: 27 | I29: 0.3235294118 | J29: 0.1461675579
B30: 28 | I30: 0.2941176471 | J30: 0.1755793226
B31: 29 | I31: 0.2941176471 | J31: 0.1604278075
B32: 30 | I32: 0.2941176471 | J32: 0.09982174688
B33: 31 | I33: 0.2941176471 | J33: 0.08467023173
B34: 32 | I34: 0.2941176471 | J34: 0.02406417112
B35: 33 | I35: 0.2941176471 | J35: 0.008912655971
B36: 34 | I36: 0.2941176471 | J36: -0.00623885918 | L36: 0 | M36: 1
B37: 35 | I37: 0.2941176471 | J37: -0.02139037433 | L37: 1 | M37: 0
B38: 36 | I38: 0.2647058824 | J38: -0.007130124777
B39: 37 | I39: 0.2647058824 | J39: -0.05258467023
B40: 38 | I40: 0.2352941176 | J40: -0.05347593583
B41: 39 | I41: 0.2058823529 | J41: -0.02406417112
B42: 40 | I42: 0.1764705882 | J42: -0.02495543672 | AD42: =IFERROR($S$51/($S$54*SQRT(PI()*2))*EXP(-((I56-$S$53)^2)/(2*$S$54^2)),NA()) ->  | AE42: x | AF42: 0 | AG42: 0
B43: 41 | I43: 0.1470588235 | J43: -0.04099821747 | AE43: y | AF43: 1 | AG43: 1
B44: 42 | I44: 0.1176470588 | J44: -0.01158645276 | AF44: =L11 -> 
B45: 43 | I45: 0.08823529412 | J45: 0.002673796791 | R45: Max: | S45: =MAX(D3:D5002) -> 0 | AE45: 270 | AF45: =2*PI()*AE45/$Q$28 -> 4.71238898 | AG45: =$R$21*COS(AF45)+$R$19 ->  | AH45: =$R$21*SIN(AF45)+$R$20 -> 
B46: 44 | I46: 0.08823529412 | J46: -0.02762923351 | R46: Min: | S46: =MIN(D3:D5002) -> 0 | V46: Bottom | W46: =S58 ->  | AE46: 285 | AF46: 4.974188368
B47: 45 | I47: 0.05882352941 | J47: -0.01336898396 | R47: Number obs: | S47: =COUNT(D3:D5002) -> 0 | V47: 75 top | W47: =S56-S57 ->  | AE47: 300 | AF47: 5.235987756
B48: 46 | I48: 0.02941176471 | J48: 0.01604278075 | R48: Number bins: | S48: 25 | V48: 75 min | W48: =S57-S58 ->  | AE48: 315 | AF48: 5.497787144
B49: 47 | I49: 0.02941176471 | J49: -0.01426024955 | L49: Spec | R49: Bin size: | S49: =(S45-S46)/S48 -> 0 | V49: Whisker min | W49: =S58-S59 ->  | AE49: 330 | AF49: 5.759586532
B50: 48 | I50: 0 | J50: 0.01515151515 | L50: =1-I3 -> 0 | R50: Low percentile: | S50: 5 | V50: whiser max | W50: =S55-S56 ->  | AE50: 345 | AF50: 6.021385919
B51: 49 | I51: 1 | J51: 0 | L51: 0.02941176471 | R51: Gauss scaling factor: | S51: 100 | T51: =IF(S48>25,"max 25 bins!","") ->  | AE51: 360 | AF51: 6.283185307
B52: 50 | I52: 1 | J52: 0 | L52: 0.02941176471 | R52: Skewness: | S52: =IFERROR(SKEW(D3:D5002),"") -> 
B53: 51 | L53: 0.05882352941 | R53: Average: | S53: =IFERROR(AVERAGE(D3:D5002),"") ->  | AE53: 0
B54: 52 | L54: 0.08823529412 | R54: SD: | S54: =IFERROR(STDEV(D3:D5002),"") ->  | AE54: 1
B55: 53 | I55: Bins | J55: Number | L55: 0.08823529412 | R55: =100-S50&" -percentile:" -> 95 -percentile: | S55: =IFERROR(PERCENTILE(D4:D5002,0.95),"") ->  | AE55: =L6 -> 0
B56: 54 | H56: 1 | I56: =S46 -> 0 | J56: =FREQUENCY(D3:D5002,I56:I80) -> 0 | L56: 0.08823529412 | R56: =75&" -percentile:" -> 75 -percentile: | S56: =IFERROR(PERCENTILE(D4:D5002,0.75),"") ->  | AE56: =AE55 -> 0
B57: 55 | H57: 2 | I57: =IF(H57>$S$48," ",$I$56+(H57-1)*$S$49) -> 0 | J57: 0 | L57: 0.1176470588 | R57: Median: | S57: =IFERROR(MEDIAN(D3:D5002),"") -> 
B58: 56 | H58: 3 | I58: 0 | J58: 0 | L58: 0.1470588235 | R58: =25&" -percentile:" -> 25 -percentile: | S58: =IFERROR(PERCENTILE(D4:D5002,0.25),"") -> 
B59: 57 | H59: 4 | I59: 0 | J59: 0 | L59: 0.2058823529 | R59: =S50&" -percentile:" -> 5 -percentile: | S59: =IFERROR(PERCENTILE(D3:D5002,0.05),"") -> 
B60: 58 | H60: 5 | I60: 0 | J60: 0 | L60: 0.2058823529 | AE60: PV(+), PV(-) & Efficiency
B61: 59 | H61: 6 | I61: 0 | J61: 0 | L61: 0.2058823529 | AE61: Cut-off
B62: 60 | H62: 7 | I62: 0 | J62: 0 | L62: 0.2352941176 | AE62: y: | AF62: =L7 ->  | AG62: =AF63 -> 
B63: 61 | H63: 8 | I63: 0 | J63: 0 | L63: 0.2941176471 | AE63: x: | AF63: =L9 ->  | AG63: =AF63 -> 
B64: 62 | H64: 9 | I64: 0 | J64: 0 | L64: 0.3529411765
B65: 63 | H65: 10 | I65: 0 | J65: 0 | L65: 0.3529411765
B66: 64 | H66: 11 | I66: 0 | J66: 0 | L66: 0.3823529412
B67: 65 | F67: =IF(OR(ISBLANK(D67),ISBLANK(E67)),"",IF(AND($R$8="Y",E67="H",D67<$L$6),"TN",IF(AND($R$8="Y",E67="H",D67>=$L$6),"FP",IF(AND($R$8="Y",E67="D",D67>=$L$6),"TP",IF(AND($R$8="Y",D67<$L$6,E67="D"),"FN",IF(AND($R$8="N",E67="H",D67<$L$6),"FP",IF(AND($R$8="N",E67="H",D67>=$L$6),"TN",IF(AND($R$8="N",E67="D",D67>=$L$6),"FN",IF(AND($R$8="N",D67<$L$6,E67="D"),"TP"))))))))) ->  | H67: 12 | I67: 0 | J67: 0 | L67: 0.5
B68: 66 | H68: 13 | I68: 0 | J68: 0 | L68: 0.5588235294
B69: 67 | H69: 14 | I69: 0 | J69: 0 | L69: 0.5588235294
B70: 68 | H70: 15 | I70: 0 | J70: 0
B71: 69 | H71: 16 | I71: 0 | J71: 0
B72: 70 | H72: 17 | I72: 0 | J72: 0
B73: 71 | H73: 18 | I73: 0 | J73: 0
B74: 72 | H74: 19 | I74: 0 | J74: 0
B75: 73 | H75: 20 | I75: 0 | J75: 0
B76: 74 | H76: 21 | I76: 0 | J76: 0
B77: 75 | H77: 22 | I77: 0 | J77: 0
B78: 76 | H78: 23 | I78: 0 | J78: 0
B79: 77 | H79: 24 | I79: 0 | J79: 0
B80: 78 | H80: 25 | I80: 0 | J80: 0
B81: 79 | I81: More | J81: 0
B82: 80
B83: 81
B84: 82
B85: 83
B86: 84
B87: 85
B88: 86
B89: 87
B90: 88
B91: 89
B92: 90
B93: 91
B94: 92
B95: 93
B96: 94
B97: 95
B98: 96
B99: 97
B100: 98
B101: 99
B102: 100
B103: 101
B104: 102
B105: 103
B106: 104
B107: 105
B108: 106
B109: 107
B110: 108
B111: 109
B112: 110
B113: 111
B114: 112
B115: 113
B116: 114
B117: 115
B118: 116
B119: 117
B120: 118
B121: 119
B122: 120
B123: 121
B124: 122
B125: 123
B126: 124
B127: 125
B128: 126
B129: 127
B130: 128
B131: 129 | F131: =IF(OR(ISBLANK(D131),ISBLANK(E131)),"",IF(AND($R$8="Y",E131="H",D131<$L$6),"TN",IF(AND($R$8="Y",E131="H",D131>=$L$6),"FP",IF(AND($R$8="Y",E131="D",D131>=$L$6),"TP",IF(AND($R$8="Y",D131<$L$6,E131="D"),"FN",IF(AND($R$8="N",E131="H",D131<$L$6),"FP",IF(AND($R$8="N",E131="H",D131>=$L$6),"TN",IF(AND($R$8="N",E131="D",D131>=$L$6),"FN",IF(AND($R$8="N",D131<$L$6,E131="D"),"TP"))))))))) -> 
B132: 130
B133: 131
B134: 132
B135: 133
B136: 134
B137: 135
B138: 136
B139: 137
B140: 138
B141: 139
B142: 140
B143: 141
B144: 142
B145: 143
B146: 144
B147: 145
B148: 146
B149: 147
B150: 148
B151: 149
B152: 150
B153: 151
B154: 152
B155: 153
B156: 154
B157: 155
B158: 156
B159: 157
B160: 158
B161: 159
B162: 160
B163: 161
B164: 162
B165: 163
B166: 164
B167: 165
B168: 166
B169: 167
B170: 168
B171: 169
B172: 170
B173: 171
B174: 172
B175: 173
B176: 174
B177: 175
B178: 176
B179: 177
B180: 178
B181: 179
B182: 180
B183: 181
B184: 182
B185: 183
B186: 184
B187: 185
B188: 186
B189: 187
B190: 188
B191: 189
B192: 190
B193: 191
B194: 192
B195: 193 | F195: =IF(OR(ISBLANK(D195),ISBLANK(E195)),"",IF(AND($R$8="Y",E195="H",D195<$L$6),"TN",IF(AND($R$8="Y",E195="H",D195>=$L$6),"FP",IF(AND($R$8="Y",E195="D",D195>=$L$6),"TP",IF(AND($R$8="Y",D195<$L$6,E195="D"),"FN",IF(AND($R$8="N",E195="H",D195<$L$6),"FP",IF(AND($R$8="N",E195="H",D195>=$L$6),"TN",IF(AND($R$8="N",E195="D",D195>=$L$6),"FN",IF(AND($R$8="N",D195<$L$6,E195="D"),"TP"))))))))) -> 
B196: 194
B197: 195
B198: 196
B199: 197
B200: 198
... 4803 more rows

Sheet Comparison
Q1: =IF(Histograms!C4+Histograms!D4<>Histograms!K4+Histograms!L4,"Unequal number of observations!","") ->  | AA1: =SUM(AA3:AA5002) -> 
B2: Formulas from CLSI EP 24 and
B3: Zhou, Xiao-Hua, Obuchowski Nancy A and | H3: ='ROC (1)'!$P$12&" "&'ROC (2)'!P12 ->  | AA3: =IF(AND('ROC (2)'!D3>('ROC (1)'!D3*Comparison!$C$9*(1-Comparison!$Y$6/100)+Comparison!$C$10),'ROC (2)'!D3<=('ROC (1)'!D3*Comparison!$C$9*(1+Comparison!$Y$6/100)+Comparison!$C$10)),1,"") -> 
B4: McClish, Donna K: Statistical Methods in Diagnostic Medicine, 2nd Ed. | H4: De Long et al. Biometrics 1988;44:837-845. | AA4: =IF(AND('ROC (2)'!D4>('ROC (1)'!D4*Comparison!$C$9*(1-Comparison!$Y$6/100)+Comparison!$C$10),'ROC (2)'!D4<=('ROC (1)'!D4*Comparison!$C$9*(1+Comparison!$Y$6/100)+Comparison!$C$10)),1,"") -> 
B5: Hanley JA et al. Radiology 1983;148:839-43. | AA5: =IF(AND('ROC (2)'!D5>('ROC (1)'!D5*Comparison!$C$9*(1-Comparison!$Y$6/100)+Comparison!$C$10),'ROC (2)'!D5<=('ROC (1)'!D5*Comparison!$C$9*(1+Comparison!$Y$6/100)+Comparison!$C$10)),1,"") -> 
E6: C | X6: Change A-zone (%): | Y6: 5 | AA6: =IF(AND('ROC (2)'!D6>('ROC (1)'!D6*Comparison!$C$9*(1-Comparison!$Y$6/100)+Comparison!$C$10),'ROC (2)'!D6<=('ROC (1)'!D6*Comparison!$C$9*(1+Comparison!$Y$6/100)+Comparison!$C$10)),1,"") -> 
E7: U | W7: Percent in A-zone: | Y7: =IFERROR(100*AA1/(C4+D4),"") ->  | AA7: =IF(AND('ROC (2)'!D7>('ROC (1)'!D7*Comparison!$C$9*(1-Comparison!$Y$6/100)+Comparison!$C$10),'ROC (2)'!D7<=('ROC (1)'!D7*Comparison!$C$9*(1+Comparison!$Y$6/100)+Comparison!$C$10)),1,"") -> 
B8: ROC (1 )vs ROC (2) | AA8: =IF(AND('ROC (2)'!D8>('ROC (1)'!D8*Comparison!$C$9*(1-Comparison!$Y$6/100)+Comparison!$C$10),'ROC (2)'!D8<=('ROC (1)'!D8*Comparison!$C$9*(1+Comparison!$Y$6/100)+Comparison!$C$10)),1,"") -> 
B9: slope: | C9: =IF(OR(ISBLANK('ROC (1)'!P12),ISBLANK('ROC (2)'!P12)),"",SLOPE('ROC (2)'!D3:D5002,'ROC (1)'!D3:D5002)) ->  | AA9: =IF(AND('ROC (2)'!D9>('ROC (1)'!D9*Comparison!$C$9*(1-Comparison!$Y$6/100)+Comparison!$C$10),'ROC (2)'!D9<=('ROC (1)'!D9*Comparison!$C$9*(1+Comparison!$Y$6/100)+Comparison!$C$10)),1,"") -> 
B10: Intercept: | C10: =IF(OR(ISBLANK('ROC (1)'!P12),ISBLANK('ROC (2)'!P12)),"",INTERCEPT('ROC (2)'!D3:D5002,'ROC (1)'!D3:D5002)) ->  | X10: =C9*(1+ Y6/100) ->  | AA10: =IF(AND('ROC (2)'!D10>('ROC (1)'!D10*Comparison!$C$9*(1-Comparison!$Y$6/100)+Comparison!$C$10),'ROC (2)'!D10<=('ROC (1)'!D10*Comparison!$C$9*(1+Comparison!$Y$6/100)+Comparison!$C$10)),1,"") -> 
B11: Correl coeff: | C11: =IF(OR(ISBLANK('ROC (1)'!P12),ISBLANK('ROC (2)'!P12)),"",CORREL('ROC (1)'!D3:D5002,'ROC (2)'!D3:D5002)) ->  | X11: =C9*(1-Y6/100) ->  | AA11: =IF(AND('ROC (2)'!D11>('ROC (1)'!D11*Comparison!$C$9*(1-Comparison!$Y$6/100)+Comparison!$C$10),'ROC (2)'!D11<=('ROC (1)'!D11*Comparison!$C$9*(1+Comparison!$Y$6/100)+Comparison!$C$10)),1,"") -> 
B12: Covariance: | C12: =IF(OR(ISBLANK('ROC (1)'!P12),ISBLANK('ROC (2)'!P12)),"",C11*C17*D17) ->  | X12: =C10 ->  | AA12: =IF(AND('ROC (2)'!D12>('ROC (1)'!D12*Comparison!$C$9*(1-Comparison!$Y$6/100)+Comparison!$C$10),'ROC (2)'!D12<=('ROC (1)'!D12*Comparison!$C$9*(1+Comparison!$Y$6/100)+Comparison!$C$10)),1,"") -> 
E13: Correlated or | X13: =X10*Z13+C10 ->  | Y13: 0 | Z13: =1.05*MAX('ROC (1)'!R4,'ROC (2)'!R4) -> 0 | AA13: =IF(AND('ROC (2)'!D13>('ROC (1)'!D13*Comparison!$C$9*(1-Comparison!$Y$6/100)+Comparison!$C$10),'ROC (2)'!D13<=('ROC (1)'!D13*Comparison!$C$9*(1+Comparison!$Y$6/100)+Comparison!$C$10)),1,"") -> 
E14: Uncorrerlated? | X14: =C10 ->  | Y14: =Y13 -> 0 | Z14: =Z13 -> 0 | AA14: =IF(AND('ROC (2)'!D14>('ROC (1)'!D14*Comparison!$C$9*(1-Comparison!$Y$6/100)+Comparison!$C$10),'ROC (2)'!D14<=('ROC (1)'!D14*Comparison!$C$9*(1+Comparison!$Y$6/100)+Comparison!$C$10)),1,"") -> 
C15: ROC 1 | D15: ROC 2 | F15: C | X15: =X11*Z14+C10 ->  | AA15: =IF(AND('ROC (2)'!D15>('ROC (1)'!D15*Comparison!$C$9*(1-Comparison!$Y$6/100)+Comparison!$C$10),'ROC (2)'!D15<=('ROC (1)'!D15*Comparison!$C$9*(1+Comparison!$Y$6/100)+Comparison!$C$10)),1,"") -> 
B16: AUC: | C16: =IF(ISNUMBER('ROC (1)'!L14),'ROC (1)'!L14,"") ->  | D16: =IF(ISNUMBER('ROC (2)'!L14),'ROC (2)'!L14,"") ->  | E16: DiffAUC | F16: =IF(ISNUMBER(ABS(C16-D16)),ABS(C16-D16),"") ->  | AA16: =IF(AND('ROC (2)'!D16>('ROC (1)'!D16*Comparison!$C$9*(1-Comparison!$Y$6/100)+Comparison!$C$10),'ROC (2)'!D16<=('ROC (1)'!D16*Comparison!$C$9*(1+Comparison!$Y$6/100)+Comparison!$C$10)),1,"") -> 
B17: SE(AUC): | C17: =IF(ISNUMBER('ROC (1)'!N14),'ROC (1)'!N14,"") ->  | D17: =IF(ISNUMBER('ROC (2)'!N14),'ROC (2)'!N14,"") ->  | E17: u(DiffAUC) | F17: =IF(AND(ISNUMBER(C16),ISNUMBER(D16)),IF(F15="C",SQRT(C18+D18-2*C12*C17*D17),IF(F15="U",SQRT(C18+D18),""))) -> FALSE | AA17: =IF(AND('ROC (2)'!D17>('ROC (1)'!D17*Comparison!$C$9*(1-Comparison!$Y$6/100)+Comparison!$C$10),'ROC (2)'!D17<=('ROC (1)'!D17*Comparison!$C$9*(1+Comparison!$Y$6/100)+Comparison!$C$10)),1,"") -> 
B18: VAR(AUC): | C18: =IF(ISNUMBER(C17^2),C17^2,"") ->  | D18: =IF(ISNUMBER(D17^2),D17^2,"") ->  | AA18: =IF(AND('ROC (2)'!D18>('ROC (1)'!D18*Comparison!$C$9*(1-Comparison!$Y$6/100)+Comparison!$C$10),'ROC (2)'!D18<=('ROC (1)'!D18*Comparison!$C$9*(1+Comparison!$Y$6/100)+Comparison!$C$10)),1,"") -> 
B19: nD: | C19: ='ROC (1)'!N3 ->  | D19: ='ROC (2)'!N3 ->  | E19: z: | F19: =IF(ISNUMBER(F16),F16/F17,"") ->  | AA19: =IF(AND('ROC (2)'!D19>('ROC (1)'!D19*Comparison!$C$9*(1-Comparison!$Y$6/100)+Comparison!$C$10),'ROC (2)'!D19<=('ROC (1)'!D19*Comparison!$C$9*(1+Comparison!$Y$6/100)+Comparison!$C$10)),1,"") -> 
B20: nH: | C20: ='ROC (1)'!N4 ->  | D20: ='ROC (2)'!N4 ->  | E20: p: | F20: =IF(ISNUMBER(F16),2*(1-NORMSDIST(F19)),"") ->  | AA20: =IF(AND('ROC (2)'!D20>'ROC (1)'!D20*Comparison!$C$9*(1-Comparison!$Y$6/100)+Comparison!$C$10,'ROC (2)'!D20<='ROC (1)'!D20*Comparison!$C$9*(1+Comparison!$Y$6/100)+Comparison!$C$10),1,"") -> 
B21: Q1: | C21: =IF(ISNUMBER(C16),C16/(2-C16),"") ->  | D21: =IF(ISNUMBER(C16),D16/(2-D16),"") ->  | AA21: =IF(AND('ROC (2)'!D21>'ROC (1)'!D21*Comparison!$C$9*(1-Comparison!$Y$6/100)+Comparison!$C$10,'ROC (2)'!D21<='ROC (1)'!D21*Comparison!$C$9*(1+Comparison!$Y$6/100)+Comparison!$C$10),1,"") -> 
B22: Q2: | C22: =IF(ISNUMBER(C16),2*C16^2/(1+C16),"") ->  | D22: =IF(ISNUMBER(D16),2*D16^2/(1+D16),"") ->  | AA22: =IF(AND('ROC (2)'!D22>'ROC (1)'!D22*Comparison!$C$9*(1-Comparison!$Y$6/100)+Comparison!$C$10,'ROC (2)'!D22<='ROC (1)'!D22*Comparison!$C$9*(1+Comparison!$Y$6/100)+Comparison!$C$10),1,"") -> 
AA23: =IF(AND('ROC (2)'!D23>'ROC (1)'!D23*Comparison!$C$9*(1-Comparison!$Y$6/100)+Comparison!$C$10,'ROC (2)'!D23<='ROC (1)'!D23*Comparison!$C$9*(1+Comparison!$Y$6/100)+Comparison!$C$10),1,"") -> 
A24: ='ROC (1)'!U7 -> © Anders Kallner | AA24: =IF(AND('ROC (2)'!D24>'ROC (1)'!D24*Comparison!$C$9*(1-Comparison!$Y$6/100)+Comparison!$C$10,'ROC (2)'!D24<='ROC (1)'!D24*Comparison!$C$9*(1+Comparison!$Y$6/100)+Comparison!$C$10),1,"") -> 
AA25: =IF(AND('ROC (2)'!D25>'ROC (1)'!D25*Comparison!$C$9*(1-Comparison!$Y$6/100)+Comparison!$C$10,'ROC (2)'!D25<='ROC (1)'!D25*Comparison!$C$9*(1+Comparison!$Y$6/100)+Comparison!$C$10),1,"") -> 
AA26: =IF(AND('ROC (2)'!D26>'ROC (1)'!D26*Comparison!$C$9*(1-Comparison!$Y$6/100)+Comparison!$C$10,'ROC (2)'!D26<='ROC (1)'!D26*Comparison!$C$9*(1+Comparison!$Y$6/100)+Comparison!$C$10),1,"") -> 
AA27: =IF(AND('ROC (2)'!D27>'ROC (1)'!D27*Comparison!$C$9*(1-Comparison!$Y$6/100)+Comparison!$C$10,'ROC (2)'!D27<='ROC (1)'!D27*Comparison!$C$9*(1+Comparison!$Y$6/100)+Comparison!$C$10),1,"") -> 
AA28: =IF(AND('ROC (2)'!D28>'ROC (1)'!D28*Comparison!$C$9*(1-Comparison!$Y$6/100)+Comparison!$C$10,'ROC (2)'!D28<='ROC (1)'!D28*Comparison!$C$9*(1+Comparison!$Y$6/100)+Comparison!$C$10),1,"") -> 
AA29: =IF(AND('ROC (2)'!D29>'ROC (1)'!D29*Comparison!$C$9*(1-Comparison!$Y$6/100)+Comparison!$C$10,'ROC (2)'!D29<='ROC (1)'!D29*Comparison!$C$9*(1+Comparison!$Y$6/100)+Comparison!$C$10),1,"") -> 
AA30: =IF(AND('ROC (2)'!D30>'ROC (1)'!D30*Comparison!$C$9*(1-Comparison!$Y$6/100)+Comparison!$C$10,'ROC (2)'!D30<='ROC (1)'!D30*Comparison!$C$9*(1+Comparison!$Y$6/100)+Comparison!$C$10),1,"") -> 
AA31: =IF(AND('ROC (2)'!D31>'ROC (1)'!D31*Comparison!$C$9*(1-Comparison!$Y$6/100)+Comparison!$C$10,'ROC (2)'!D31<='ROC (1)'!D31*Comparison!$C$9*(1+Comparison!$Y$6/100)+Comparison!$C$10),1,"") -> 
AA32: =IF(AND('ROC (2)'!D32>'ROC (1)'!D32*Comparison!$C$9*(1-Comparison!$Y$6/100)+Comparison!$C$10,'ROC (2)'!D32<='ROC (1)'!D32*Comparison!$C$9*(1+Comparison!$Y$6/100)+Comparison!$C$10),1,"") -> 
AA33: =IF(AND('ROC (2)'!D33>'ROC (1)'!D33*Comparison!$C$9*(1-Comparison!$Y$6/100)+Comparison!$C$10,'ROC (2)'!D33<='ROC (1)'!D33*Comparison!$C$9*(1+Comparison!$Y$6/100)+Comparison!$C$10),1,"") -> 
AA34: =IF(AND('ROC (2)'!D34>'ROC (1)'!D34*Comparison!$C$9*(1-Comparison!$Y$6/100)+Comparison!$C$10,'ROC (2)'!D34<='ROC (1)'!D34*Comparison!$C$9*(1+Comparison!$Y$6/100)+Comparison!$C$10),1,"") -> 
AA35: =IF(AND('ROC (2)'!D35>'ROC (1)'!D35*Comparison!$C$9*(1-Comparison!$Y$6/100)+Comparison!$C$10,'ROC (2)'!D35<='ROC (1)'!D35*Comparison!$C$9*(1+Comparison!$Y$6/100)+Comparison!$C$10),1,"") -> 
AA36: =IF(AND('ROC (2)'!D36>'ROC (1)'!D36*Comparison!$C$9*(1-Comparison!$Y$6/100)+Comparison!$C$10,'ROC (2)'!D36<='ROC (1)'!D36*Comparison!$C$9*(1+Comparison!$Y$6/100)+Comparison!$C$10),1,"") -> 
AA37: =IF(AND('ROC (2)'!D37>'ROC (1)'!D37*Comparison!$C$9*(1-Comparison!$Y$6/100)+Comparison!$C$10,'ROC (2)'!D37<='ROC (1)'!D37*Comparison!$C$9*(1+Comparison!$Y$6/100)+Comparison!$C$10),1,"") -> 
AA38: =IF(AND('ROC (2)'!D38>'ROC (1)'!D38*Comparison!$C$9*(1-Comparison!$Y$6/100)+Comparison!$C$10,'ROC (2)'!D38<='ROC (1)'!D38*Comparison!$C$9*(1+Comparison!$Y$6/100)+Comparison!$C$10),1,"") -> 
AA39: =IF(AND('ROC (2)'!D39>'ROC (1)'!D39*Comparison!$C$9*(1-Comparison!$Y$6/100)+Comparison!$C$10,'ROC (2)'!D39<='ROC (1)'!D39*Comparison!$C$9*(1+Comparison!$Y$6/100)+Comparison!$C$10),1,"") -> 
AA40: =IF(AND('ROC (2)'!D40>'ROC (1)'!D40*Comparison!$C$9*(1-Comparison!$Y$6/100)+Comparison!$C$10,'ROC (2)'!D40<='ROC (1)'!D40*Comparison!$C$9*(1+Comparison!$Y$6/100)+Comparison!$C$10),1,"") -> 
AA41: =IF(AND('ROC (2)'!D41>'ROC (1)'!D41*Comparison!$C$9*(1-Comparison!$Y$6/100)+Comparison!$C$10,'ROC (2)'!D41<='ROC (1)'!D41*Comparison!$C$9*(1+Comparison!$Y$6/100)+Comparison!$C$10),1,"") -> 
AA42: =IF(AND('ROC (2)'!D42>'ROC (1)'!D42*Comparison!$C$9*(1-Comparison!$Y$6/100)+Comparison!$C$10,'ROC (2)'!D42<='ROC (1)'!D42*Comparison!$C$9*(1+Comparison!$Y$6/100)+Comparison!$C$10),1,"") -> 
AA43: =IF(AND('ROC (2)'!D43>'ROC (1)'!D43*Comparison!$C$9*(1-Comparison!$Y$6/100)+Comparison!$C$10,'ROC (2)'!D43<='ROC (1)'!D43*Comparison!$C$9*(1+Comparison!$Y$6/100)+Comparison!$C$10),1,"") -> 
AA44: =IF(AND('ROC (2)'!D44>'ROC (1)'!D44*Comparison!$C$9*(1-Comparison!$Y$6/100)+Comparison!$C$10,'ROC (2)'!D44<='ROC (1)'!D44*Comparison!$C$9*(1+Comparison!$Y$6/100)+Comparison!$C$10),1,"") -> 
AA45: =IF(AND('ROC (2)'!D45>'ROC (1)'!D45*Comparison!$C$9*(1-Comparison!$Y$6/100)+Comparison!$C$10,'ROC (2)'!D45<='ROC (1)'!D45*Comparison!$C$9*(1+Comparison!$Y$6/100)+Comparison!$C$10),1,"") -> 
AA46: =IF(AND('ROC (2)'!D46>'ROC (1)'!D46*Comparison!$C$9*(1-Comparison!$Y$6/100)+Comparison!$C$10,'ROC (2)'!D46<='ROC (1)'!D46*Comparison!$C$9*(1+Comparison!$Y$6/100)+Comparison!$C$10),1,"") -> 
AA47: =IF(AND('ROC (2)'!D47>'ROC (1)'!D47*Comparison!$C$9*(1-Comparison!$Y$6/100)+Comparison!$C$10,'ROC (2)'!D47<='ROC (1)'!D47*Comparison!$C$9*(1+Comparison!$Y$6/100)+Comparison!$C$10),1,"") -> 
AA48: =IF(AND('ROC (2)'!D48>'ROC (1)'!D48*Comparison!$C$9*(1-Comparison!$Y$6/100)+Comparison!$C$10,'ROC (2)'!D48<='ROC (1)'!D48*Comparison!$C$9*(1+Comparison!$Y$6/100)+Comparison!$C$10),1,"") -> 
AA49: =IF(AND('ROC (2)'!D49>'ROC (1)'!D49*Comparison!$C$9*(1-Comparison!$Y$6/100)+Comparison!$C$10,'ROC (2)'!D49<='ROC (1)'!D49*Comparison!$C$9*(1+Comparison!$Y$6/100)+Comparison!$C$10),1,"") -> 
AA50: =IF(AND('ROC (2)'!D50>'ROC (1)'!D50*Comparison!$C$9*(1-Comparison!$Y$6/100)+Comparison!$C$10,'ROC (2)'!D50<='ROC (1)'!D50*Comparison!$C$9*(1+Comparison!$Y$6/100)+Comparison!$C$10),1,"") -> 
AA51: =IF(AND('ROC (2)'!D51>'ROC (1)'!D51*Comparison!$C$9*(1-Comparison!$Y$6/100)+Comparison!$C$10,'ROC (2)'!D51<='ROC (1)'!D51*Comparison!$C$9*(1+Comparison!$Y$6/100)+Comparison!$C$10),1,"") -> 
AA52: =IF(AND('ROC (2)'!D52>'ROC (1)'!D52*Comparison!$C$9*(1-Comparison!$Y$6/100)+Comparison!$C$10,'ROC (2)'!D52<='ROC (1)'!D52*Comparison!$C$9*(1+Comparison!$Y$6/100)+Comparison!$C$10),1,"") -> 
AA53: =IF(AND('ROC (2)'!D53>'ROC (1)'!D53*Comparison!$C$9*(1-Comparison!$Y$6/100)+Comparison!$C$10,'ROC (2)'!D53<='ROC (1)'!D53*Comparison!$C$9*(1+Comparison!$Y$6/100)+Comparison!$C$10),1,"") -> 
AA54: =IF(AND('ROC (2)'!D54>'ROC (1)'!D54*Comparison!$C$9*(1-Comparison!$Y$6/100)+Comparison!$C$10,'ROC (2)'!D54<='ROC (1)'!D54*Comparison!$C$9*(1+Comparison!$Y$6/100)+Comparison!$C$10),1,"") -> 
AA55: =IF(AND('ROC (2)'!D55>'ROC (1)'!D55*Comparison!$C$9*(1-Comparison!$Y$6/100)+Comparison!$C$10,'ROC (2)'!D55<='ROC (1)'!D55*Comparison!$C$9*(1+Comparison!$Y$6/100)+Comparison!$C$10),1,"") -> 
AA56: =IF(AND('ROC (2)'!D56>'ROC (1)'!D56*Comparison!$C$9*(1-Comparison!$Y$6/100)+Comparison!$C$10,'ROC (2)'!D56<='ROC (1)'!D56*Comparison!$C$9*(1+Comparison!$Y$6/100)+Comparison!$C$10),1,"") -> 
AA57: =IF(AND('ROC (2)'!D57>'ROC (1)'!D57*Comparison!$C$9*(1-Comparison!$Y$6/100)+Comparison!$C$10,'ROC (2)'!D57<='ROC (1)'!D57*Comparison!$C$9*(1+Comparison!$Y$6/100)+Comparison!$C$10),1,"") -> 
AA58: =IF(AND('ROC (2)'!D58>'ROC (1)'!D58*Comparison!$C$9*(1-Comparison!$Y$6/100)+Comparison!$C$10,'ROC (2)'!D58<='ROC (1)'!D58*Comparison!$C$9*(1+Comparison!$Y$6/100)+Comparison!$C$10),1,"") -> 
AA59: =IF(AND('ROC (2)'!D59>'ROC (1)'!D59*Comparison!$C$9*(1-Comparison!$Y$6/100)+Comparison!$C$10,'ROC (2)'!D59<='ROC (1)'!D59*Comparison!$C$9*(1+Comparison!$Y$6/100)+Comparison!$C$10),1,"") -> 
AA60: =IF(AND('ROC (2)'!D60>'ROC (1)'!D60*Comparison!$C$9*(1-Comparison!$Y$6/100)+Comparison!$C$10,'ROC (2)'!D60<='ROC (1)'!D60*Comparison!$C$9*(1+Comparison!$Y$6/100)+Comparison!$C$10),1,"") -> 
AA61: =IF(AND('ROC (2)'!D61>'ROC (1)'!D61*Comparison!$C$9*(1-Comparison!$Y$6/100)+Comparison!$C$10,'ROC (2)'!D61<='ROC (1)'!D61*Comparison!$C$9*(1+Comparison!$Y$6/100)+Comparison!$C$10),1,"") -> 
AA62: =IF(AND('ROC (2)'!D62>'ROC (1)'!D62*Comparison!$C$9*(1-Comparison!$Y$6/100)+Comparison!$C$10,'ROC (2)'!D62<='ROC (1)'!D62*Comparison!$C$9*(1+Comparison!$Y$6/100)+Comparison!$C$10),1,"") -> 
AA63: =IF(AND('ROC (2)'!D63>'ROC (1)'!D63*Comparison!$C$9*(1-Comparison!$Y$6/100)+Comparison!$C$10,'ROC (2)'!D63<='ROC (1)'!D63*Comparison!$C$9*(1+Comparison!$Y$6/100)+Comparison!$C$10),1,"") -> 
AA64: =IF(AND('ROC (2)'!D64>'ROC (1)'!D64*Comparison!$C$9*(1-Comparison!$Y$6/100)+Comparison!$C$10,'ROC (2)'!D64<='ROC (1)'!D64*Comparison!$C$9*(1+Comparison!$Y$6/100)+Comparison!$C$10),1,"") -> 
AA65: =IF(AND('ROC (2)'!D65>'ROC (1)'!D65*Comparison!$C$9*(1-Comparison!$Y$6/100)+Comparison!$C$10,'ROC (2)'!D65<='ROC (1)'!D65*Comparison!$C$9*(1+Comparison!$Y$6/100)+Comparison!$C$10),1,"") -> 
AA66: =IF(AND('ROC (2)'!D66>'ROC (1)'!D66*Comparison!$C$9*(1-Comparison!$Y$6/100)+Comparison!$C$10,'ROC (2)'!D66<='ROC (1)'!D66*Comparison!$C$9*(1+Comparison!$Y$6/100)+Comparison!$C$10),1,"") -> 
AA67: =IF(AND('ROC (2)'!D67>'ROC (1)'!D67*Comparison!$C$9*(1-Comparison!$Y$6/100)+Comparison!$C$10,'ROC (2)'!D67<='ROC (1)'!D67*Comparison!$C$9*(1+Comparison!$Y$6/100)+Comparison!$C$10),1,"") -> 
AA68: =IF(AND('ROC (2)'!D68>'ROC (1)'!D68*Comparison!$C$9*(1-Comparison!$Y$6/100)+Comparison!$C$10,'ROC (2)'!D68<='ROC (1)'!D68*Comparison!$C$9*(1+Comparison!$Y$6/100)+Comparison!$C$10),1,"") -> 
AA69: =IF(AND('ROC (2)'!D69>'ROC (1)'!D69*Comparison!$C$9*(1-Comparison!$Y$6/100)+Comparison!$C$10,'ROC (2)'!D69<='ROC (1)'!D69*Comparison!$C$9*(1+Comparison!$Y$6/100)+Comparison!$C$10),1,"") -> 
AA70: =IF(AND('ROC (2)'!D70>'ROC (1)'!D70*Comparison!$C$9*(1-Comparison!$Y$6/100)+Comparison!$C$10,'ROC (2)'!D70<='ROC (1)'!D70*Comparison!$C$9*(1+Comparison!$Y$6/100)+Comparison!$C$10),1,"") -> 
AA71: =IF(AND('ROC (2)'!D71>'ROC (1)'!D71*Comparison!$C$9*(1-Comparison!$Y$6/100)+Comparison!$C$10,'ROC (2)'!D71<='ROC (1)'!D71*Comparison!$C$9*(1+Comparison!$Y$6/100)+Comparison!$C$10),1,"") -> 
AA72: =IF(AND('ROC (2)'!D72>'ROC (1)'!D72*Comparison!$C$9*(1-Comparison!$Y$6/100)+Comparison!$C$10,'ROC (2)'!D72<='ROC (1)'!D72*Comparison!$C$9*(1+Comparison!$Y$6/100)+Comparison!$C$10),1,"") -> 
AA73: =IF(AND('ROC (2)'!D73>'ROC (1)'!D73*Comparison!$C$9*(1-Comparison!$Y$6/100)+Comparison!$C$10,'ROC (2)'!D73<='ROC (1)'!D73*Comparison!$C$9*(1+Comparison!$Y$6/100)+Comparison!$C$10),1,"") -> 
AA74: =IF(AND('ROC (2)'!D74>'ROC (1)'!D74*Comparison!$C$9*(1-Comparison!$Y$6/100)+Comparison!$C$10,'ROC (2)'!D74<='ROC (1)'!D74*Comparison!$C$9*(1+Comparison!$Y$6/100)+Comparison!$C$10),1,"") -> 
AA75: =IF(AND('ROC (2)'!D75>'ROC (1)'!D75*Comparison!$C$9*(1-Comparison!$Y$6/100)+Comparison!$C$10,'ROC (2)'!D75<='ROC (1)'!D75*Comparison!$C$9*(1+Comparison!$Y$6/100)+Comparison!$C$10),1,"") -> 
AA76: =IF(AND('ROC (2)'!D76>'ROC (1)'!D76*Comparison!$C$9*(1-Comparison!$Y$6/100)+Comparison!$C$10,'ROC (2)'!D76<='ROC (1)'!D76*Comparison!$C$9*(1+Comparison!$Y$6/100)+Comparison!$C$10),1,"") -> 
AA77: =IF(AND('ROC (2)'!D77>'ROC (1)'!D77*Comparison!$C$9*(1-Comparison!$Y$6/100)+Comparison!$C$10,'ROC (2)'!D77<='ROC (1)'!D77*Comparison!$C$9*(1+Comparison!$Y$6/100)+Comparison!$C$10),1,"") -> 
AA78: =IF(AND('ROC (2)'!D78>'ROC (1)'!D78*Comparison!$C$9*(1-Comparison!$Y$6/100)+Comparison!$C$10,'ROC (2)'!D78<='ROC (1)'!D78*Comparison!$C$9*(1+Comparison!$Y$6/100)+Comparison!$C$10),1,"") -> 
AA79: =IF(AND('ROC (2)'!D79>'ROC (1)'!D79*Comparison!$C$9*(1-Comparison!$Y$6/100)+Comparison!$C$10,'ROC (2)'!D79<='ROC (1)'!D79*Comparison!$C$9*(1+Comparison!$Y$6/100)+Comparison!$C$10),1,"") -> 
AA80: =IF(AND('ROC (2)'!D80>'ROC (1)'!D80*Comparison!$C$9*(1-Comparison!$Y$6/100)+Comparison!$C$10,'ROC (2)'!D80<='ROC (1)'!D80*Comparison!$C$9*(1+Comparison!$Y$6/100)+Comparison!$C$10),1,"") -> 
AA81: =IF(AND('ROC (2)'!D81>'ROC (1)'!D81*Comparison!$C$9*(1-Comparison!$Y$6/100)+Comparison!$C$10,'ROC (2)'!D81<='ROC (1)'!D81*Comparison!$C$9*(1+Comparison!$Y$6/100)+Comparison!$C$10),1,"") -> 
AA82: =IF(AND('ROC (2)'!D82>'ROC (1)'!D82*Comparison!$C$9*(1-Comparison!$Y$6/100)+Comparison!$C$10,'ROC (2)'!D82<='ROC (1)'!D82*Comparison!$C$9*(1+Comparison!$Y$6/100)+Comparison!$C$10),1,"") -> 
AA83: =IF(AND('ROC (2)'!D83>'ROC (1)'!D83*Comparison!$C$9*(1-Comparison!$Y$6/100)+Comparison!$C$10,'ROC (2)'!D83<='ROC (1)'!D83*Comparison!$C$9*(1+Comparison!$Y$6/100)+Comparison!$C$10),1,"") -> 
AA84: =IF(AND('ROC (2)'!D84>'ROC (1)'!D84*Comparison!$C$9*(1-Comparison!$Y$6/100)+Comparison!$C$10,'ROC (2)'!D84<='ROC (1)'!D84*Comparison!$C$9*(1+Comparison!$Y$6/100)+Comparison!$C$10),1,"") -> 
AA85: =IF(AND('ROC (2)'!D85>'ROC (1)'!D85*Comparison!$C$9*(1-Comparison!$Y$6/100)+Comparison!$C$10,'ROC (2)'!D85<='ROC (1)'!D85*Comparison!$C$9*(1+Comparison!$Y$6/100)+Comparison!$C$10),1,"") -> 
AA86: =IF(AND('ROC (2)'!D86>'ROC (1)'!D86*Comparison!$C$9*(1-Comparison!$Y$6/100)+Comparison!$C$10,'ROC (2)'!D86<='ROC (1)'!D86*Comparison!$C$9*(1+Comparison!$Y$6/100)+Comparison!$C$10),1,"") -> 
AA87: =IF(AND('ROC (2)'!D87>'ROC (1)'!D87*Comparison!$C$9*(1-Comparison!$Y$6/100)+Comparison!$C$10,'ROC (2)'!D87<='ROC (1)'!D87*Comparison!$C$9*(1+Comparison!$Y$6/100)+Comparison!$C$10),1,"") -> 
AA88: =IF(AND('ROC (2)'!D88>'ROC (1)'!D88*Comparison!$C$9*(1-Comparison!$Y$6/100)+Comparison!$C$10,'ROC (2)'!D88<='ROC (1)'!D88*Comparison!$C$9*(1+Comparison!$Y$6/100)+Comparison!$C$10),1,"") -> 
AA89: =IF(AND('ROC (2)'!D89>'ROC (1)'!D89*Comparison!$C$9*(1-Comparison!$Y$6/100)+Comparison!$C$10,'ROC (2)'!D89<='ROC (1)'!D89*Comparison!$C$9*(1+Comparison!$Y$6/100)+Comparison!$C$10),1,"") -> 
AA90: =IF(AND('ROC (2)'!D90>'ROC (1)'!D90*Comparison!$C$9*(1-Comparison!$Y$6/100)+Comparison!$C$10,'ROC (2)'!D90<='ROC (1)'!D90*Comparison!$C$9*(1+Comparison!$Y$6/100)+Comparison!$C$10),1,"") -> 
AA91: =IF(AND('ROC (2)'!D91>'ROC (1)'!D91*Comparison!$C$9*(1-Comparison!$Y$6/100)+Comparison!$C$10,'ROC (2)'!D91<='ROC (1)'!D91*Comparison!$C$9*(1+Comparison!$Y$6/100)+Comparison!$C$10),1,"") -> 
AA92: =IF(AND('ROC (2)'!D92>'ROC (1)'!D92*Comparison!$C$9*(1-Comparison!$Y$6/100)+Comparison!$C$10,'ROC (2)'!D92<='ROC (1)'!D92*Comparison!$C$9*(1+Comparison!$Y$6/100)+Comparison!$C$10),1,"") -> 
AA93: =IF(AND('ROC (2)'!D93>'ROC (1)'!D93*Comparison!$C$9*(1-Comparison!$Y$6/100)+Comparison!$C$10,'ROC (2)'!D93<='ROC (1)'!D93*Comparison!$C$9*(1+Comparison!$Y$6/100)+Comparison!$C$10),1,"") -> 
AA94: =IF(AND('ROC (2)'!D94>'ROC (1)'!D94*Comparison!$C$9*(1-Comparison!$Y$6/100)+Comparison!$C$10,'ROC (2)'!D94<='ROC (1)'!D94*Comparison!$C$9*(1+Comparison!$Y$6/100)+Comparison!$C$10),1,"") -> 
AA95: =IF(AND('ROC (2)'!D95>'ROC (1)'!D95*Comparison!$C$9*(1-Comparison!$Y$6/100)+Comparison!$C$10,'ROC (2)'!D95<='ROC (1)'!D95*Comparison!$C$9*(1+Comparison!$Y$6/100)+Comparison!$C$10),1,"") -> 
AA96: =IF(AND('ROC (2)'!D96>'ROC (1)'!D96*Comparison!$C$9*(1-Comparison!$Y$6/100)+Comparison!$C$10,'ROC (2)'!D96<='ROC (1)'!D96*Comparison!$C$9*(1+Comparison!$Y$6/100)+Comparison!$C$10),1,"") -> 
AA97: =IF(AND('ROC (2)'!D97>'ROC (1)'!D97*Comparison!$C$9*(1-Comparison!$Y$6/100)+Comparison!$C$10,'ROC (2)'!D97<='ROC (1)'!D97*Comparison!$C$9*(1+Comparison!$Y$6/100)+Comparison!$C$10),1,"") -> 
AA98: =IF(AND('ROC (2)'!D98>'ROC (1)'!D98*Comparison!$C$9*(1-Comparison!$Y$6/100)+Comparison!$C$10,'ROC (2)'!D98<='ROC (1)'!D98*Comparison!$C$9*(1+Comparison!$Y$6/100)+Comparison!$C$10),1,"") -> 
AA99: =IF(AND('ROC (2)'!D99>'ROC (1)'!D99*Comparison!$C$9*(1-Comparison!$Y$6/100)+Comparison!$C$10,'ROC (2)'!D99<='ROC (1)'!D99*Comparison!$C$9*(1+Comparison!$Y$6/100)+Comparison!$C$10),1,"") -> 
AA100: =IF(AND('ROC (2)'!D100>'ROC (1)'!D100*Comparison!$C$9*(1-Comparison!$Y$6/100)+Comparison!$C$10,'ROC (2)'!D100<='ROC (1)'!D100*Comparison!$C$9*(1+Comparison!$Y$6/100)+Comparison!$C$10),1,"") -> 
AA101: =IF(AND('ROC (2)'!D101>'ROC (1)'!D101*Comparison!$C$9*(1-Comparison!$Y$6/100)+Comparison!$C$10,'ROC (2)'!D101<='ROC (1)'!D101*Comparison!$C$9*(1+Comparison!$Y$6/100)+Comparison!$C$10),1,"") -> 
AA102: =IF(AND('ROC (2)'!D102>'ROC (1)'!D102*Comparison!$C$9*(1-Comparison!$Y$6/100)+Comparison!$C$10,'ROC (2)'!D102<='ROC (1)'!D102*Comparison!$C$9*(1+Comparison!$Y$6/100)+Comparison!$C$10),1,"") -> 
AA103: =IF(AND('ROC (2)'!D103>'ROC (1)'!D103*Comparison!$C$9*(1-Comparison!$Y$6/100)+Comparison!$C$10,'ROC (2)'!D103<='ROC (1)'!D103*Comparison!$C$9*(1+Comparison!$Y$6/100)+Comparison!$C$10),1,"") -> 
AA104: =IF(AND('ROC (2)'!D104>'ROC (1)'!D104*Comparison!$C$9*(1-Comparison!$Y$6/100)+Comparison!$C$10,'ROC (2)'!D104<='ROC (1)'!D104*Comparison!$C$9*(1+Comparison!$Y$6/100)+Comparison!$C$10),1,"") -> 
AA105: =IF(AND('ROC (2)'!D105>'ROC (1)'!D105*Comparison!$C$9*(1-Comparison!$Y$6/100)+Comparison!$C$10,'ROC (2)'!D105<='ROC (1)'!D105*Comparison!$C$9*(1+Comparison!$Y$6/100)+Comparison!$C$10),1,"") -> 
AA106: =IF(AND('ROC (2)'!D106>'ROC (1)'!D106*Comparison!$C$9*(1-Comparison!$Y$6/100)+Comparison!$C$10,'ROC (2)'!D106<='ROC (1)'!D106*Comparison!$C$9*(1+Comparison!$Y$6/100)+Comparison!$C$10),1,"") -> 
AA107: =IF(AND('ROC (2)'!D107>'ROC (1)'!D107*Comparison!$C$9*(1-Comparison!$Y$6/100)+Comparison!$C$10,'ROC (2)'!D107<='ROC (1)'!D107*Comparison!$C$9*(1+Comparison!$Y$6/100)+Comparison!$C$10),1,"") -> 
AA108: =IF(AND('ROC (2)'!D108>'ROC (1)'!D108*Comparison!$C$9*(1-Comparison!$Y$6/100)+Comparison!$C$10,'ROC (2)'!D108<='ROC (1)'!D108*Comparison!$C$9*(1+Comparison!$Y$6/100)+Comparison!$C$10),1,"") -> 
AA109: =IF(AND('ROC (2)'!D109>'ROC (1)'!D109*Comparison!$C$9*(1-Comparison!$Y$6/100)+Comparison!$C$10,'ROC (2)'!D109<='ROC (1)'!D109*Comparison!$C$9*(1+Comparison!$Y$6/100)+Comparison!$C$10),1,"") -> 
AA110: =IF(AND('ROC (2)'!D110>'ROC (1)'!D110*Comparison!$C$9*(1-Comparison!$Y$6/100)+Comparison!$C$10,'ROC (2)'!D110<='ROC (1)'!D110*Comparison!$C$9*(1+Comparison!$Y$6/100)+Comparison!$C$10),1,"") -> 
AA111: =IF(AND('ROC (2)'!D111>'ROC (1)'!D111*Comparison!$C$9*(1-Comparison!$Y$6/100)+Comparison!$C$10,'ROC (2)'!D111<='ROC (1)'!D111*Comparison!$C$9*(1+Comparison!$Y$6/100)+Comparison!$C$10),1,"") -> 
AA112: =IF(AND('ROC (2)'!D112>'ROC (1)'!D112*Comparison!$C$9*(1-Comparison!$Y$6/100)+Comparison!$C$10,'ROC (2)'!D112<='ROC (1)'!D112*Comparison!$C$9*(1+Comparison!$Y$6/100)+Comparison!$C$10),1,"") -> 
AA113: =IF(AND('ROC (2)'!D113>'ROC (1)'!D113*Comparison!$C$9*(1-Comparison!$Y$6/100)+Comparison!$C$10,'ROC (2)'!D113<='ROC (1)'!D113*Comparison!$C$9*(1+Comparison!$Y$6/100)+Comparison!$C$10),1,"") -> 
AA114: =IF(AND('ROC (2)'!D114>'ROC (1)'!D114*Comparison!$C$9*(1-Comparison!$Y$6/100)+Comparison!$C$10,'ROC (2)'!D114<='ROC (1)'!D114*Comparison!$C$9*(1+Comparison!$Y$6/100)+Comparison!$C$10),1,"") -> 
AA115: =IF(AND('ROC (2)'!D115>'ROC (1)'!D115*Comparison!$C$9*(1-Comparison!$Y$6/100)+Comparison!$C$10,'ROC (2)'!D115<='ROC (1)'!D115*Comparison!$C$9*(1+Comparison!$Y$6/100)+Comparison!$C$10),1,"") -> 
AA116: =IF(AND('ROC (2)'!D116>'ROC (1)'!D116*Comparison!$C$9*(1-Comparison!$Y$6/100)+Comparison!$C$10,'ROC (2)'!D116<='ROC (1)'!D116*Comparison!$C$9*(1+Comparison!$Y$6/100)+Comparison!$C$10),1,"") -> 
AA117: =IF(AND('ROC (2)'!D117>'ROC (1)'!D117*Comparison!$C$9*(1-Comparison!$Y$6/100)+Comparison!$C$10,'ROC (2)'!D117<='ROC (1)'!D117*Comparison!$C$9*(1+Comparison!$Y$6/100)+Comparison!$C$10),1,"") -> 
AA118: =IF(AND('ROC (2)'!D118>'ROC (1)'!D118*Comparison!$C$9*(1-Comparison!$Y$6/100)+Comparison!$C$10,'ROC (2)'!D118<='ROC (1)'!D118*Comparison!$C$9*(1+Comparison!$Y$6/100)+Comparison!$C$10),1,"") -> 
AA119: =IF(AND('ROC (2)'!D119>'ROC (1)'!D119*Comparison!$C$9*(1-Comparison!$Y$6/100)+Comparison!$C$10,'ROC (2)'!D119<='ROC (1)'!D119*Comparison!$C$9*(1+Comparison!$Y$6/100)+Comparison!$C$10),1,"") -> 
AA120: =IF(AND('ROC (2)'!D120>'ROC (1)'!D120*Comparison!$C$9*(1-Comparison!$Y$6/100)+Comparison!$C$10,'ROC (2)'!D120<='ROC (1)'!D120*Comparison!$C$9*(1+Comparison!$Y$6/100)+Comparison!$C$10),1,"") -> 
AA121: =IF(AND('ROC (2)'!D121>'ROC (1)'!D121*Comparison!$C$9*(1-Comparison!$Y$6/100)+Comparison!$C$10,'ROC (2)'!D121<='ROC (1)'!D121*Comparison!$C$9*(1+Comparison!$Y$6/100)+Comparison!$C$10),1,"") -> 
AA122: =IF(AND('ROC (2)'!D122>'ROC (1)'!D122*Comparison!$C$9*(1-Comparison!$Y$6/100)+Comparison!$C$10,'ROC (2)'!D122<='ROC (1)'!D122*Comparison!$C$9*(1+Comparison!$Y$6/100)+Comparison!$C$10),1,"") -> 
AA123: =IF(AND('ROC (2)'!D123>'ROC (1)'!D123*Comparison!$C$9*(1-Comparison!$Y$6/100)+Comparison!$C$10,'ROC (2)'!D123<='ROC (1)'!D123*Comparison!$C$9*(1+Comparison!$Y$6/100)+Comparison!$C$10),1,"") -> 
AA124: =IF(AND('ROC (2)'!D124>'ROC (1)'!D124*Comparison!$C$9*(1-Comparison!$Y$6/100)+Comparison!$C$10,'ROC (2)'!D124<='ROC (1)'!D124*Comparison!$C$9*(1+Comparison!$Y$6/100)+Comparison!$C$10),1,"") -> 
AA125: =IF(AND('ROC (2)'!D125>'ROC (1)'!D125*Comparison!$C$9*(1-Comparison!$Y$6/100)+Comparison!$C$10,'ROC (2)'!D125<='ROC (1)'!D125*Comparison!$C$9*(1+Comparison!$Y$6/100)+Comparison!$C$10),1,"") -> 
AA126: =IF(AND('ROC (2)'!D126>'ROC (1)'!D126*Comparison!$C$9*(1-Comparison!$Y$6/100)+Comparison!$C$10,'ROC (2)'!D126<='ROC (1)'!D126*Comparison!$C$9*(1+Comparison!$Y$6/100)+Comparison!$C$10),1,"") -> 
AA127: =IF(AND('ROC (2)'!D127>'ROC (1)'!D127*Comparison!$C$9*(1-Comparison!$Y$6/100)+Comparison!$C$10,'ROC (2)'!D127<='ROC (1)'!D127*Comparison!$C$9*(1+Comparison!$Y$6/100)+Comparison!$C$10),1,"") -> 
AA128: =IF(AND('ROC (2)'!D128>'ROC (1)'!D128*Comparison!$C$9*(1-Comparison!$Y$6/100)+Comparison!$C$10,'ROC (2)'!D128<='ROC (1)'!D128*Comparison!$C$9*(1+Comparison!$Y$6/100)+Comparison!$C$10),1,"") -> 
AA129: =IF(AND('ROC (2)'!D129>'ROC (1)'!D129*Comparison!$C$9*(1-Comparison!$Y$6/100)+Comparison!$C$10,'ROC (2)'!D129<='ROC (1)'!D129*Comparison!$C$9*(1+Comparison!$Y$6/100)+Comparison!$C$10),1,"") -> 
AA130: =IF(AND('ROC (2)'!D130>'ROC (1)'!D130*Comparison!$C$9*(1-Comparison!$Y$6/100)+Comparison!$C$10,'ROC (2)'!D130<='ROC (1)'!D130*Comparison!$C$9*(1+Comparison!$Y$6/100)+Comparison!$C$10),1,"") -> 
AA131: =IF(AND('ROC (2)'!D131>'ROC (1)'!D131*Comparison!$C$9*(1-Comparison!$Y$6/100)+Comparison!$C$10,'ROC (2)'!D131<='ROC (1)'!D131*Comparison!$C$9*(1+Comparison!$Y$6/100)+Comparison!$C$10),1,"") -> 
AA132: =IF(AND('ROC (2)'!D132>'ROC (1)'!D132*Comparison!$C$9*(1-Comparison!$Y$6/100)+Comparison!$C$10,'ROC (2)'!D132<='ROC (1)'!D132*Comparison!$C$9*(1+Comparison!$Y$6/100)+Comparison!$C$10),1,"") -> 
AA133: =IF(AND('ROC (2)'!D133>'ROC (1)'!D133*Comparison!$C$9*(1-Comparison!$Y$6/100)+Comparison!$C$10,'ROC (2)'!D133<='ROC (1)'!D133*Comparison!$C$9*(1+Comparison!$Y$6/100)+Comparison!$C$10),1,"") -> 
AA134: =IF(AND('ROC (2)'!D134>'ROC (1)'!D134*Comparison!$C$9*(1-Comparison!$Y$6/100)+Comparison!$C$10,'ROC (2)'!D134<='ROC (1)'!D134*Comparison!$C$9*(1+Comparison!$Y$6/100)+Comparison!$C$10),1,"") -> 
AA135: =IF(AND('ROC (2)'!D135>'ROC (1)'!D135*Comparison!$C$9*(1-Comparison!$Y$6/100)+Comparison!$C$10,'ROC (2)'!D135<='ROC (1)'!D135*Comparison!$C$9*(1+Comparison!$Y$6/100)+Comparison!$C$10),1,"") -> 
AA136: =IF(AND('ROC (2)'!D136>'ROC (1)'!D136*Comparison!$C$9*(1-Comparison!$Y$6/100)+Comparison!$C$10,'ROC (2)'!D136<='ROC (1)'!D136*Comparison!$C$9*(1+Comparison!$Y$6/100)+Comparison!$C$10),1,"") -> 
AA137: =IF(AND('ROC (2)'!D137>'ROC (1)'!D137*Comparison!$C$9*(1-Comparison!$Y$6/100)+Comparison!$C$10,'ROC (2)'!D137<='ROC (1)'!D137*Comparison!$C$9*(1+Comparison!$Y$6/100)+Comparison!$C$10),1,"") -> 
AA138: =IF(AND('ROC (2)'!D138>'ROC (1)'!D138*Comparison!$C$9*(1-Comparison!$Y$6/100)+Comparison!$C$10,'ROC (2)'!D138<='ROC (1)'!D138*Comparison!$C$9*(1+Comparison!$Y$6/100)+Comparison!$C$10),1,"") -> 
AA139: =IF(AND('ROC (2)'!D139>'ROC (1)'!D139*Comparison!$C$9*(1-Comparison!$Y$6/100)+Comparison!$C$10,'ROC (2)'!D139<='ROC (1)'!D139*Comparison!$C$9*(1+Comparison!$Y$6/100)+Comparison!$C$10),1,"") -> 
AA140: =IF(AND('ROC (2)'!D140>'ROC (1)'!D140*Comparison!$C$9*(1-Comparison!$Y$6/100)+Comparison!$C$10,'ROC (2)'!D140<='ROC (1)'!D140*Comparison!$C$9*(1+Comparison!$Y$6/100)+Comparison!$C$10),1,"") -> 
AA141: =IF(AND('ROC (2)'!D141>'ROC (1)'!D141*Comparison!$C$9*(1-Comparison!$Y$6/100)+Comparison!$C$10,'ROC (2)'!D141<='ROC (1)'!D141*Comparison!$C$9*(1+Comparison!$Y$6/100)+Comparison!$C$10),1,"") -> 
AA142: =IF(AND('ROC (2)'!D142>'ROC (1)'!D142*Comparison!$C$9*(1-Comparison!$Y$6/100)+Comparison!$C$10,'ROC (2)'!D142<='ROC (1)'!D142*Comparison!$C$9*(1+Comparison!$Y$6/100)+Comparison!$C$10),1,"") -> 
AA143: =IF(AND('ROC (2)'!D143>'ROC (1)'!D143*Comparison!$C$9*(1-Comparison!$Y$6/100)+Comparison!$C$10,'ROC (2)'!D143<='ROC (1)'!D143*Comparison!$C$9*(1+Comparison!$Y$6/100)+Comparison!$C$10),1,"") -> 
AA144: =IF(AND('ROC (2)'!D144>'ROC (1)'!D144*Comparison!$C$9*(1-Comparison!$Y$6/100)+Comparison!$C$10,'ROC (2)'!D144<='ROC (1)'!D144*Comparison!$C$9*(1+Comparison!$Y$6/100)+Comparison!$C$10),1,"") -> 
AA145: =IF(AND('ROC (2)'!D145>'ROC (1)'!D145*Comparison!$C$9*(1-Comparison!$Y$6/100)+Comparison!$C$10,'ROC (2)'!D145<='ROC (1)'!D145*Comparison!$C$9*(1+Comparison!$Y$6/100)+Comparison!$C$10),1,"") -> 
AA146: =IF(AND('ROC (2)'!D146>'ROC (1)'!D146*Comparison!$C$9*(1-Comparison!$Y$6/100)+Comparison!$C$10,'ROC (2)'!D146<='ROC (1)'!D146*Comparison!$C$9*(1+Comparison!$Y$6/100)+Comparison!$C$10),1,"") -> 
AA147: =IF(AND('ROC (2)'!D147>'ROC (1)'!D147*Comparison!$C$9*(1-Comparison!$Y$6/100)+Comparison!$C$10,'ROC (2)'!D147<='ROC (1)'!D147*Comparison!$C$9*(1+Comparison!$Y$6/100)+Comparison!$C$10),1,"") -> 
AA148: =IF(AND('ROC (2)'!D148>'ROC (1)'!D148*Comparison!$C$9*(1-Comparison!$Y$6/100)+Comparison!$C$10,'ROC (2)'!D148<='ROC (1)'!D148*Comparison!$C$9*(1+Comparison!$Y$6/100)+Comparison!$C$10),1,"") -> 
AA149: =IF(AND('ROC (2)'!D149>'ROC (1)'!D149*Comparison!$C$9*(1-Comparison!$Y$6/100)+Comparison!$C$10,'ROC (2)'!D149<='ROC (1)'!D149*Comparison!$C$9*(1+Comparison!$Y$6/100)+Comparison!$C$10),1,"") -> 
AA150: =IF(AND('ROC (2)'!D150>'ROC (1)'!D150*Comparison!$C$9*(1-Comparison!$Y$6/100)+Comparison!$C$10,'ROC (2)'!D150<='ROC (1)'!D150*Comparison!$C$9*(1+Comparison!$Y$6/100)+Comparison!$C$10),1,"") -> 
AA151: =IF(AND('ROC (2)'!D151>'ROC (1)'!D151*Comparison!$C$9*(1-Comparison!$Y$6/100)+Comparison!$C$10,'ROC (2)'!D151<='ROC (1)'!D151*Comparison!$C$9*(1+Comparison!$Y$6/100)+Comparison!$C$10),1,"") -> 
AA152: =IF(AND('ROC (2)'!D152>'ROC (1)'!D152*Comparison!$C$9*(1-Comparison!$Y$6/100)+Comparison!$C$10,'ROC (2)'!D152<='ROC (1)'!D152*Comparison!$C$9*(1+Comparison!$Y$6/100)+Comparison!$C$10),1,"") -> 
AA153: =IF(AND('ROC (2)'!D153>'ROC (1)'!D153*Comparison!$C$9*(1-Comparison!$Y$6/100)+Comparison!$C$10,'ROC (2)'!D153<='ROC (1)'!D153*Comparison!$C$9*(1+Comparison!$Y$6/100)+Comparison!$C$10),1,"") -> 
AA154: =IF(AND('ROC (2)'!D154>'ROC (1)'!D154*Comparison!$C$9*(1-Comparison!$Y$6/100)+Comparison!$C$10,'ROC (2)'!D154<='ROC (1)'!D154*Comparison!$C$9*(1+Comparison!$Y$6/100)+Comparison!$C$10),1,"") -> 
AA155: =IF(AND('ROC (2)'!D155>'ROC (1)'!D155*Comparison!$C$9*(1-Comparison!$Y$6/100)+Comparison!$C$10,'ROC (2)'!D155<='ROC (1)'!D155*Comparison!$C$9*(1+Comparison!$Y$6/100)+Comparison!$C$10),1,"") -> 
AA156: =IF(AND('ROC (2)'!D156>'ROC (1)'!D156*Comparison!$C$9*(1-Comparison!$Y$6/100)+Comparison!$C$10,'ROC (2)'!D156<='ROC (1)'!D156*Comparison!$C$9*(1+Comparison!$Y$6/100)+Comparison!$C$10),1,"") -> 
AA157: =IF(AND('ROC (2)'!D157>'ROC (1)'!D157*Comparison!$C$9*(1-Comparison!$Y$6/100)+Comparison!$C$10,'ROC (2)'!D157<='ROC (1)'!D157*Comparison!$C$9*(1+Comparison!$Y$6/100)+Comparison!$C$10),1,"") -> 
AA158: =IF(AND('ROC (2)'!D158>'ROC (1)'!D158*Comparison!$C$9*(1-Comparison!$Y$6/100)+Comparison!$C$10,'ROC (2)'!D158<='ROC (1)'!D158*Comparison!$C$9*(1+Comparison!$Y$6/100)+Comparison!$C$10),1,"") -> 
AA159: =IF(AND('ROC (2)'!D159>'ROC (1)'!D159*Comparison!$C$9*(1-Comparison!$Y$6/100)+Comparison!$C$10,'ROC (2)'!D159<='ROC (1)'!D159*Comparison!$C$9*(1+Comparison!$Y$6/100)+Comparison!$C$10),1,"") -> 
AA160: =IF(AND('ROC (2)'!D160>'ROC (1)'!D160*Comparison!$C$9*(1-Comparison!$Y$6/100)+Comparison!$C$10,'ROC (2)'!D160<='ROC (1)'!D160*Comparison!$C$9*(1+Comparison!$Y$6/100)+Comparison!$C$10),1,"") -> 
AA161: =IF(AND('ROC (2)'!D161>'ROC (1)'!D161*Comparison!$C$9*(1-Comparison!$Y$6/100)+Comparison!$C$10,'ROC (2)'!D161<='ROC (1)'!D161*Comparison!$C$9*(1+Comparison!$Y$6/100)+Comparison!$C$10),1,"") -> 
AA162: =IF(AND('ROC (2)'!D162>'ROC (1)'!D162*Comparison!$C$9*(1-Comparison!$Y$6/100)+Comparison!$C$10,'ROC (2)'!D162<='ROC (1)'!D162*Comparison!$C$9*(1+Comparison!$Y$6/100)+Comparison!$C$10),1,"") -> 
AA163: =IF(AND('ROC (2)'!D163>'ROC (1)'!D163*Comparison!$C$9*(1-Comparison!$Y$6/100)+Comparison!$C$10,'ROC (2)'!D163<='ROC (1)'!D163*Comparison!$C$9*(1+Comparison!$Y$6/100)+Comparison!$C$10),1,"") -> 
AA164: =IF(AND('ROC (2)'!D164>'ROC (1)'!D164*Comparison!$C$9*(1-Comparison!$Y$6/100)+Comparison!$C$10,'ROC (2)'!D164<='ROC (1)'!D164*Comparison!$C$9*(1+Comparison!$Y$6/100)+Comparison!$C$10),1,"") -> 
AA165: =IF(AND('ROC (2)'!D165>'ROC (1)'!D165*Comparison!$C$9*(1-Comparison!$Y$6/100)+Comparison!$C$10,'ROC (2)'!D165<='ROC (1)'!D165*Comparison!$C$9*(1+Comparison!$Y$6/100)+Comparison!$C$10),1,"") -> 
AA166: =IF(AND('ROC (2)'!D166>'ROC (1)'!D166*Comparison!$C$9*(1-Comparison!$Y$6/100)+Comparison!$C$10,'ROC (2)'!D166<='ROC (1)'!D166*Comparison!$C$9*(1+Comparison!$Y$6/100)+Comparison!$C$10),1,"") -> 
AA167: =IF(AND('ROC (2)'!D167>'ROC (1)'!D167*Comparison!$C$9*(1-Comparison!$Y$6/100)+Comparison!$C$10,'ROC (2)'!D167<='ROC (1)'!D167*Comparison!$C$9*(1+Comparison!$Y$6/100)+Comparison!$C$10),1,"") -> 
AA168: =IF(AND('ROC (2)'!D168>'ROC (1)'!D168*Comparison!$C$9*(1-Comparison!$Y$6/100)+Comparison!$C$10,'ROC (2)'!D168<='ROC (1)'!D168*Comparison!$C$9*(1+Comparison!$Y$6/100)+Comparison!$C$10),1,"") -> 
AA169: =IF(AND('ROC (2)'!D169>'ROC (1)'!D169*Comparison!$C$9*(1-Comparison!$Y$6/100)+Comparison!$C$10,'ROC (2)'!D169<='ROC (1)'!D169*Comparison!$C$9*(1+Comparison!$Y$6/100)+Comparison!$C$10),1,"") -> 
AA170: =IF(AND('ROC (2)'!D170>'ROC (1)'!D170*Comparison!$C$9*(1-Comparison!$Y$6/100)+Comparison!$C$10,'ROC (2)'!D170<='ROC (1)'!D170*Comparison!$C$9*(1+Comparison!$Y$6/100)+Comparison!$C$10),1,"") -> 
AA171: =IF(AND('ROC (2)'!D171>'ROC (1)'!D171*Comparison!$C$9*(1-Comparison!$Y$6/100)+Comparison!$C$10,'ROC (2)'!D171<='ROC (1)'!D171*Comparison!$C$9*(1+Comparison!$Y$6/100)+Comparison!$C$10),1,"") -> 
AA172: =IF(AND('ROC (2)'!D172>'ROC (1)'!D172*Comparison!$C$9*(1-Comparison!$Y$6/100)+Comparison!$C$10,'ROC (2)'!D172<='ROC (1)'!D172*Comparison!$C$9*(1+Comparison!$Y$6/100)+Comparison!$C$10),1,"") -> 
AA173: =IF(AND('ROC (2)'!D173>'ROC (1)'!D173*Comparison!$C$9*(1-Comparison!$Y$6/100)+Comparison!$C$10,'ROC (2)'!D173<='ROC (1)'!D173*Comparison!$C$9*(1+Comparison!$Y$6/100)+Comparison!$C$10),1,"") -> 
AA174: =IF(AND('ROC (2)'!D174>'ROC (1)'!D174*Comparison!$C$9*(1-Comparison!$Y$6/100)+Comparison!$C$10,'ROC (2)'!D174<='ROC (1)'!D174*Comparison!$C$9*(1+Comparison!$Y$6/100)+Comparison!$C$10),1,"") -> 
AA175: =IF(AND('ROC (2)'!D175>'ROC (1)'!D175*Comparison!$C$9*(1-Comparison!$Y$6/100)+Comparison!$C$10,'ROC (2)'!D175<='ROC (1)'!D175*Comparison!$C$9*(1+Comparison!$Y$6/100)+Comparison!$C$10),1,"") -> 
AA176: =IF(AND('ROC (2)'!D176>'ROC (1)'!D176*Comparison!$C$9*(1-Comparison!$Y$6/100)+Comparison!$C$10,'ROC (2)'!D176<='ROC (1)'!D176*Comparison!$C$9*(1+Comparison!$Y$6/100)+Comparison!$C$10),1,"") -> 
AA177: =IF(AND('ROC (2)'!D177>'ROC (1)'!D177*Comparison!$C$9*(1-Comparison!$Y$6/100)+Comparison!$C$10,'ROC (2)'!D177<='ROC (1)'!D177*Comparison!$C$9*(1+Comparison!$Y$6/100)+Comparison!$C$10),1,"") -> 
AA178: =IF(AND('ROC (2)'!D178>'ROC (1)'!D178*Comparison!$C$9*(1-Comparison!$Y$6/100)+Comparison!$C$10,'ROC (2)'!D178<='ROC (1)'!D178*Comparison!$C$9*(1+Comparison!$Y$6/100)+Comparison!$C$10),1,"") -> 
AA179: =IF(AND('ROC (2)'!D179>'ROC (1)'!D179*Comparison!$C$9*(1-Comparison!$Y$6/100)+Comparison!$C$10,'ROC (2)'!D179<='ROC (1)'!D179*Comparison!$C$9*(1+Comparison!$Y$6/100)+Comparison!$C$10),1,"") -> 
AA180: =IF(AND('ROC (2)'!D180>'ROC (1)'!D180*Comparison!$C$9*(1-Comparison!$Y$6/100)+Comparison!$C$10,'ROC (2)'!D180<='ROC (1)'!D180*Comparison!$C$9*(1+Comparison!$Y$6/100)+Comparison!$C$10),1,"") -> 
AA181: =IF(AND('ROC (2)'!D181>'ROC (1)'!D181*Comparison!$C$9*(1-Comparison!$Y$6/100)+Comparison!$C$10,'ROC (2)'!D181<='ROC (1)'!D181*Comparison!$C$9*(1+Comparison!$Y$6/100)+Comparison!$C$10),1,"") -> 
AA182: =IF(AND('ROC (2)'!D182>'ROC (1)'!D182*Comparison!$C$9*(1-Comparison!$Y$6/100)+Comparison!$C$10,'ROC (2)'!D182<='ROC (1)'!D182*Comparison!$C$9*(1+Comparison!$Y$6/100)+Comparison!$C$10),1,"") -> 
AA183: =IF(AND('ROC (2)'!D183>'ROC (1)'!D183*Comparison!$C$9*(1-Comparison!$Y$6/100)+Comparison!$C$10,'ROC (2)'!D183<='ROC (1)'!D183*Comparison!$C$9*(1+Comparison!$Y$6/100)+Comparison!$C$10),1,"") -> 
AA184: =IF(AND('ROC (2)'!D184>'ROC (1)'!D184*Comparison!$C$9*(1-Comparison!$Y$6/100)+Comparison!$C$10,'ROC (2)'!D184<='ROC (1)'!D184*Comparison!$C$9*(1+Comparison!$Y$6/100)+Comparison!$C$10),1,"") -> 
AA185: =IF(AND('ROC (2)'!D185>'ROC (1)'!D185*Comparison!$C$9*(1-Comparison!$Y$6/100)+Comparison!$C$10,'ROC (2)'!D185<='ROC (1)'!D185*Comparison!$C$9*(1+Comparison!$Y$6/100)+Comparison!$C$10),1,"") -> 
AA186: =IF(AND('ROC (2)'!D186>'ROC (1)'!D186*Comparison!$C$9*(1-Comparison!$Y$6/100)+Comparison!$C$10,'ROC (2)'!D186<='ROC (1)'!D186*Comparison!$C$9*(1+Comparison!$Y$6/100)+Comparison!$C$10),1,"") -> 
AA187: =IF(AND('ROC (2)'!D187>'ROC (1)'!D187*Comparison!$C$9*(1-Comparison!$Y$6/100)+Comparison!$C$10,'ROC (2)'!D187<='ROC (1)'!D187*Comparison!$C$9*(1+Comparison!$Y$6/100)+Comparison!$C$10),1,"") -> 
AA188: =IF(AND('ROC (2)'!D188>'ROC (1)'!D188*Comparison!$C$9*(1-Comparison!$Y$6/100)+Comparison!$C$10,'ROC (2)'!D188<='ROC (1)'!D188*Comparison!$C$9*(1+Comparison!$Y$6/100)+Comparison!$C$10),1,"") -> 
AA189: =IF(AND('ROC (2)'!D189>'ROC (1)'!D189*Comparison!$C$9*(1-Comparison!$Y$6/100)+Comparison!$C$10,'ROC (2)'!D189<='ROC (1)'!D189*Comparison!$C$9*(1+Comparison!$Y$6/100)+Comparison!$C$10),1,"") -> 
AA190: =IF(AND('ROC (2)'!D190>'ROC (1)'!D190*Comparison!$C$9*(1-Comparison!$Y$6/100)+Comparison!$C$10,'ROC (2)'!D190<='ROC (1)'!D190*Comparison!$C$9*(1+Comparison!$Y$6/100)+Comparison!$C$10),1,"") -> 
AA191: =IF(AND('ROC (2)'!D191>'ROC (1)'!D191*Comparison!$C$9*(1-Comparison!$Y$6/100)+Comparison!$C$10,'ROC (2)'!D191<='ROC (1)'!D191*Comparison!$C$9*(1+Comparison!$Y$6/100)+Comparison!$C$10),1,"") -> 
AA192: =IF(AND('ROC (2)'!D192>'ROC (1)'!D192*Comparison!$C$9*(1-Comparison!$Y$6/100)+Comparison!$C$10,'ROC (2)'!D192<='ROC (1)'!D192*Comparison!$C$9*(1+Comparison!$Y$6/100)+Comparison!$C$10),1,"") -> 
AA193: =IF(AND('ROC (2)'!D193>'ROC (1)'!D193*Comparison!$C$9*(1-Comparison!$Y$6/100)+Comparison!$C$10,'ROC (2)'!D193<='ROC (1)'!D193*Comparison!$C$9*(1+Comparison!$Y$6/100)+Comparison!$C$10),1,"") -> 
AA194: =IF(AND('ROC (2)'!D194>'ROC (1)'!D194*Comparison!$C$9*(1-Comparison!$Y$6/100)+Comparison!$C$10,'ROC (2)'!D194<='ROC (1)'!D194*Comparison!$C$9*(1+Comparison!$Y$6/100)+Comparison!$C$10),1,"") -> 
AA195: =IF(AND('ROC (2)'!D195>'ROC (1)'!D195*Comparison!$C$9*(1-Comparison!$Y$6/100)+Comparison!$C$10,'ROC (2)'!D195<='ROC (1)'!D195*Comparison!$C$9*(1+Comparison!$Y$6/100)+Comparison!$C$10),1,"") -> 
AA196: =IF(AND('ROC (2)'!D196>'ROC (1)'!D196*Comparison!$C$9*(1-Comparison!$Y$6/100)+Comparison!$C$10,'ROC (2)'!D196<='ROC (1)'!D196*Comparison!$C$9*(1+Comparison!$Y$6/100)+Comparison!$C$10),1,"") -> 
AA197: =IF(AND('ROC (2)'!D197>'ROC (1)'!D197*Comparison!$C$9*(1-Comparison!$Y$6/100)+Comparison!$C$10,'ROC (2)'!D197<='ROC (1)'!D197*Comparison!$C$9*(1+Comparison!$Y$6/100)+Comparison!$C$10),1,"") -> 
AA198: =IF(AND('ROC (2)'!D198>'ROC (1)'!D198*Comparison!$C$9*(1-Comparison!$Y$6/100)+Comparison!$C$10,'ROC (2)'!D198<='ROC (1)'!D198*Comparison!$C$9*(1+Comparison!$Y$6/100)+Comparison!$C$10),1,"") -> 
AA199: =IF(AND('ROC (2)'!D199>'ROC (1)'!D199*Comparison!$C$9*(1-Comparison!$Y$6/100)+Comparison!$C$10,'ROC (2)'!D199<='ROC (1)'!D199*Comparison!$C$9*(1+Comparison!$Y$6/100)+Comparison!$C$10),1,"") -> 
AA200: =IF(AND('ROC (2)'!D200>'ROC (1)'!D200*Comparison!$C$9*(1-Comparison!$Y$6/100)+Comparison!$C$10,'ROC (2)'!D200<='ROC (1)'!D200*Comparison!$C$9*(1+Comparison!$Y$6/100)+Comparison!$C$10),1,"") -> 
... 2050 more rows

Sheet Histograms
C1: D1 | D1: H1 | K1: D2 | L1: H2 | V1: Bins D1 | W1: Bins H1 | X1: Bins D2 | Y1: Bins H2 | AD1: Freq D1 | AF1: Freq H1 | AH1: Gauss H1 | AI1: Gauss D1 | AN1: Freq D2 | AP1: Freq H2 | AR1: Gauss D2 | AS1: Gauss H2
B2: Max: | C2: =MAX(Z3:Z5002) -> 0 | D2: =MAX(AA3:AA5002) -> 0 | J2: Max: | K2: =MAX(AJ3:AJ5002) -> 0 | L2: =MAX(AK3:AK5002) -> 0 | N2: Display | V2: =C3 -> 0 | W2: =D3 -> 0 | X2: =K3 -> 0 | Y2: =L3 -> 0 | Z2: D1 | AA2: H1 | AD2: =FREQUENCY(Z3:Z5002,V2:V26) -> 0 | AF2: =FREQUENCY(AA3:AA5002,W2:W26) -> 0 | AH2: =IFERROR(C$9/(C$12*SQRT(2*PI()))*EXP(-((V2-C$11)^2)/(2*C$12^2)),NA()) ->  | AI2: =IFERROR(D$9/(D$12*SQRT(2*PI()))*EXP(-((W2-D$11)^2)/(2*D$12^2)),NA()) ->  | AJ2: D | AK2: H | AN2: =FREQUENCY(AJ3:AJ5002,X2:X26) -> 0 | AP2: =FREQUENCY(AK3:AK5002,Y2:Y26) -> 0 | AR2: =IFERROR($K$9/(K$12*SQRT(2*PI()))*EXP(-((X2-K$11)^2)/(2*K$12^2)),NA()) ->  | AS2: =IFERROR($L$9/(L$12*SQRT(2*PI()))*EXP(-((Y2-L$11)^2)/(2*L$12^2)),NA()) -> 
B3: Min: | C3: =MIN(Z3:Z5002) -> 0 | D3: =MIN(AA3:AA5002) -> 0 | J3: Min: | K3: =MIN(AJ3:AJ5002) -> 0 | L3: =MIN(AK3:AK5002) -> 0 | N3: Bottom | O3: =C16 ->  | P3: =D16 ->  | Q3: =K16 ->  | R3: =L16 ->  | V3: =V2+$C$6 -> 0 | W3: =W2+$D$6 -> 0 | X3: =X2+$K$6 -> 0 | Y3: =Y2+$L$6 -> 0 | Z3: =IF('ROC (1)'!$E3="D",'ROC (1)'!$D3,"") ->  | AA3: =IF('ROC (1)'!$E3="H",'ROC (1)'!$D3,"") ->  | AD3: 0 | AF3: 0 | AJ3: =IF('ROC (2)'!$E3="D",'ROC (2)'!$D3,"") ->  | AK3: =IF('ROC (2)'!$E3="H",'ROC (2)'!$D3,"") ->  | AN3: 0 | AP3: 0
B4: Number obs: | C4: =COUNT(Z3:Z5002) -> 0 | D4: =COUNT(AA3:AA5002) -> 0 | J4: Number obs: | K4: =COUNT(AJ3:AJ5002) -> 0 | L4: =COUNT(AK3:AK5002) -> 0 | N4: 75-perc | O4: =C15-O3 ->  | P4: =D15-P3 ->  | Q4: =K15-K16 ->  | R4: =L15-L16 ->  | V4: 0 | W4: 0 | X4: 0 | Y4: 0 | Z4: =IF('ROC (1)'!$E4="D",'ROC (1)'!$D4,"") ->  | AA4: =IF('ROC (1)'!$E4="H",'ROC (1)'!$D4,"") ->  | AD4: 0 | AF4: 0 | AJ4: =IF('ROC (2)'!$E4="D",'ROC (2)'!$D4,"") ->  | AK4: =IF('ROC (2)'!$E4="H",'ROC (2)'!$D4,"") ->  | AN4: 0 | AP4: 0
B5: Number bins: | C5: 25 | D5: 25 | J5: Number bins: | K5: 25 | L5: 25 | M5: =IF(K5>25,"max 25 bins","") ->  | N5: 25-perc | O5: =C14-C15 ->  | P5: =D14-D15 ->  | Q5: =K14-K15 ->  | R5: =L14-L15 ->  | V5: 0 | W5: 0 | X5: 0 | Y5: 0 | Z5: =IF('ROC (1)'!$E5="D",'ROC (1)'!$D5,"") ->  | AA5: =IF('ROC (1)'!$E5="H",'ROC (1)'!$D5,"") ->  | AD5: 0 | AF5: 0 | AJ5: =IF('ROC (2)'!$E5="D",'ROC (2)'!$D5,"") ->  | AK5: =IF('ROC (2)'!$E5="H",'ROC (2)'!$D5,"") ->  | AN5: 0 | AP5: 0
B6: Bin size: | C6: =(C2-C3)/C5 -> 0 | D6: =(D2-D3)/D5 -> 0 | J6: Bin size: | K6: =(K2-K3)/K5 -> 0 | L6: =(L2-L3)/L5 -> 0 | N6: Whiskers min | O6: =C16-C17 ->  | P6: =D16-D17 ->  | Q6: =K16-K17 ->  | R6: =L16-L17 ->  | V6: 0 | W6: 0 | X6: 0 | Y6: 0 | Z6: =IF('ROC (1)'!$E6="D",'ROC (1)'!$D6,"") ->  | AA6: =IF('ROC (1)'!$E6="H",'ROC (1)'!$D6,"") ->  | AD6: 0 | AF6: 0 | AJ6: =IF('ROC (2)'!$E6="D",'ROC (2)'!$D6,"") ->  | AK6: =IF('ROC (2)'!$E6="H",'ROC (2)'!$D6,"") ->  | AN6: 0 | AP6: 0
B7: Low percentile: | C7: 5 | D7: 5 | J7: Low percentile: | K7: 5 | L7: 5 | N7: Whiskers max | O7: =C13-C14 ->  | P7: =D13-D14 ->  | Q7: =K13-K14 ->  | R7: =L13-L14 ->  | V7: 0 | W7: 0 | X7: 0 | Y7: 0 | Z7: =IF('ROC (1)'!$E7="D",'ROC (1)'!$D7,"") ->  | AA7: =IF('ROC (1)'!$E7="H",'ROC (1)'!$D7,"") ->  | AD7: 0 | AF7: 0 | AJ7: =IF('ROC (2)'!$E7="D",'ROC (2)'!$D7,"") ->  | AK7: =IF('ROC (2)'!$E7="H",'ROC (2)'!$D7,"") ->  | AN7: 0 | AP7: 0
B8: Box lower limit | C8: 25 | D8: 25 | J8: Box lower limit | K8: 25 | L8: 25 | V8: 0 | W8: 0 | X8: 0 | Y8: 0 | Z8: =IF('ROC (1)'!$E8="D",'ROC (1)'!$D8,"") ->  | AA8: =IF('ROC (1)'!$E8="H",'ROC (1)'!$D8,"") ->  | AD8: 0 | AF8: 0 | AJ8: =IF('ROC (2)'!$E8="D",'ROC (2)'!$D8,"") ->  | AK8: =IF('ROC (2)'!$E8="H",'ROC (2)'!$D8,"") ->  | AN8: 0 | AP8: 0
B9: Gauss scaling factor: | C9: 150 | D9: 100 | J9: Gauss scaling factor: | K9: 200 | L9: 80 | V9: 0 | W9: 0 | X9: 0 | Y9: 0 | Z9: =IF('ROC (1)'!$E9="D",'ROC (1)'!$D9,"") ->  | AA9: =IF('ROC (1)'!$E9="H",'ROC (1)'!$D9,"") ->  | AD9: 0 | AF9: 0 | AJ9: =IF('ROC (2)'!$E9="D",'ROC (2)'!$D9,"") ->  | AK9: =IF('ROC (2)'!$E9="H",'ROC (2)'!$D9,"") ->  | AN9: 0 | AP9: 0
B10: Skewness: | C10: =IFERROR(SKEW(Z3:Z5002),"") ->  | D10: =IFERROR(SKEW(AA3:AA5002),"") ->  | J10: Skewness: | K10: =IFERROR(SKEW(AJ3:AJ5002),"") ->  | L10: =IFERROR(SKEW(AK3:AK5002),"") ->  | V10: 0 | W10: 0 | X10: 0 | Y10: 0 | Z10: =IF('ROC (1)'!$E10="D",'ROC (1)'!$D10,"") ->  | AA10: =IF('ROC (1)'!$E10="H",'ROC (1)'!$D10,"") ->  | AD10: 0 | AF10: 0 | AJ10: =IF('ROC (2)'!$E10="D",'ROC (2)'!$D10,"") ->  | AK10: =IF('ROC (2)'!$E10="H",'ROC (2)'!$D10,"") ->  | AN10: 0 | AP10: 0
B11: Average: | C11: =IFERROR(AVERAGE(Z3:Z5002),"") ->  | D11: =IFERROR(AVERAGE(AA3:AA5002),"") ->  | J11: Average: | K11: =IFERROR(AVERAGE(AJ3:AJ5002),"") ->  | L11: =IFERROR(AVERAGE(AK3:AK5002),"") ->  | V11: 0 | W11: 0 | X11: 0 | Y11: 0 | Z11: =IF('ROC (1)'!$E11="D",'ROC (1)'!$D11,"") ->  | AA11: =IF('ROC (1)'!$E11="H",'ROC (1)'!$D11,"") ->  | AD11: 0 | AF11: 0 | AJ11: =IF('ROC (2)'!$E11="D",'ROC (2)'!$D11,"") ->  | AK11: =IF('ROC (2)'!$E11="H",'ROC (2)'!$D11,"") ->  | AN11: 0 | AP11: 0
B12: SD: | C12: =IFERROR(STDEV(Z3:Z5002),"") ->  | D12: =IFERROR(STDEV(AA3:AA5002),"") ->  | J12: SD: | K12: =IFERROR(STDEV(AJ3:AJ5002),"") ->  | L12: =IFERROR(STDEV(AK3:AK5002),"") ->  | V12: 0 | W12: 0 | X12: 0 | Y12: 0 | Z12: =IF('ROC (1)'!$E12="D",'ROC (1)'!$D12,"") ->  | AA12: =IF('ROC (1)'!$E12="H",'ROC (1)'!$D12,"") ->  | AD12: 0 | AF12: 0 | AJ12: =IF('ROC (2)'!$E12="D",'ROC (2)'!$D12,"") ->  | AK12: =IF('ROC (2)'!$E12="H",'ROC (2)'!$D12,"") ->  | AN12: 0 | AP12: 0
B13: =100-C7&" -percentile:" -> 95 -percentile: | C13: =IFERROR(PERCENTILE(Z3:Z5002,(100-C7)/100),"") ->  | D13: =IFERROR(PERCENTILE(AA3:AA5002,(100-D7)/100),"") ->  | J13: =100-K7&" -percentile:" -> 95 -percentile: | K13: =IFERROR(PERCENTILE(AJ3:AJ5002,(100-K7)/100),"") ->  | L13: =IFERROR(PERCENTILE(AK3:AK5002,(100-L7)/100),"") ->  | V13: 0 | W13: 0 | X13: 0 | Y13: 0 | Z13: =IF('ROC (1)'!$E13="D",'ROC (1)'!$D13,"") ->  | AA13: =IF('ROC (1)'!$E13="H",'ROC (1)'!$D13,"") ->  | AD13: 0 | AF13: 0 | AJ13: =IF('ROC (2)'!$E13="D",'ROC (2)'!$D13,"") ->  | AK13: =IF('ROC (2)'!$E13="H",'ROC (2)'!$D13,"") ->  | AN13: 0 | AP13: 0
B14: 75-percentile: | C14: =IFERROR(PERCENTILE(Z3:Z5002,(100-C8)/100),"") ->  | D14: =IFERROR(PERCENTILE(AA3:AA5002,(100-D8)/100),"") ->  | J14: 75-percentile: | K14: =IFERROR(PERCENTILE(AJ3:AJ5002,(100-K8)/100),"") ->  | L14: =IFERROR(PERCENTILE(AK3:AK5002,(100-L8)/100),"") ->  | V14: 0 | W14: 0 | X14: 0 | Y14: 0 | Z14: =IF('ROC (1)'!$E14="D",'ROC (1)'!$D14,"") ->  | AA14: =IF('ROC (1)'!$E14="H",'ROC (1)'!$D14,"") ->  | AD14: 0 | AF14: 0 | AJ14: =IF('ROC (2)'!$E14="D",'ROC (2)'!$D14,"") ->  | AK14: =IF('ROC (2)'!$E14="H",'ROC (2)'!$D14,"") ->  | AN14: 0 | AP14: 0
B15: Median: | C15: =IFERROR(MEDIAN(Z3:Z5002),"") ->  | D15: =IFERROR(MEDIAN(AA3:AA5002),"") ->  | J15: Median: | K15: =IFERROR(MEDIAN(AJ3:AJ5002),"") ->  | L15: =IFERROR(MEDIAN(AK3:AK5002),"") ->  | V15: 0 | W15: 0 | X15: 0 | Y15: 0 | Z15: =IF('ROC (1)'!$E15="D",'ROC (1)'!$D15,"") ->  | AA15: =IF('ROC (1)'!$E15="H",'ROC (1)'!$D15,"") ->  | AD15: 0 | AF15: 0 | AJ15: =IF('ROC (2)'!$E15="D",'ROC (2)'!$D15,"") ->  | AK15: =IF('ROC (2)'!$E15="H",'ROC (2)'!$D15,"") ->  | AN15: 0 | AP15: 0
B16: 25-percentile: | C16: =IFERROR(PERCENTILE(Z3:Z5002,(C8)/100),"") ->  | D16: =IFERROR(PERCENTILE(AA3:AA5002,(D8)/100),"") ->  | J16: 25-percentile: | K16: =IFERROR(PERCENTILE(AJ3:AJ5002,(K8)/100),"") ->  | L16: =IFERROR(PERCENTILE(AK3:AK5002,(L8)/100),"") ->  | V16: 0 | W16: 0 | X16: 0 | Y16: 0 | Z16: =IF('ROC (1)'!$E16="D",'ROC (1)'!$D16,"") ->  | AA16: =IF('ROC (1)'!$E16="H",'ROC (1)'!$D16,"") ->  | AD16: 0 | AF16: 0 | AJ16: =IF('ROC (2)'!$E16="D",'ROC (2)'!$D16,"") ->  | AK16: =IF('ROC (2)'!$E16="H",'ROC (2)'!$D16,"") ->  | AN16: 0 | AP16: 0
B17: =C7&" -percentile:" -> 5 -percentile: | C17: =IFERROR(PERCENTILE(Z3:Z5002,C7/100),"") ->  | D17: =IFERROR(PERCENTILE(AA3:AA5002,D7/100),"") ->  | J17: =K7&" -percentile:" -> 5 -percentile: | K17: =IFERROR(PERCENTILE(AJ3:AJ5002,K7/100),"") ->  | L17: =IFERROR(PERCENTILE(AK3:AK5002,L7/100),"") ->  | V17: 0 | W17: 0 | X17: 0 | Y17: 0 | Z17: =IF('ROC (1)'!$E17="D",'ROC (1)'!$D17,"") ->  | AA17: =IF('ROC (1)'!$E17="H",'ROC (1)'!$D17,"") ->  | AD17: 0 | AF17: 0 | AJ17: =IF('ROC (2)'!$E17="D",'ROC (2)'!$D17,"") ->  | AK17: =IF('ROC (2)'!$E17="H",'ROC (2)'!$D17,"") ->  | AN17: 0 | AP17: 0
V18: 0 | W18: 0 | X18: 0 | Y18: 0 | Z18: =IF('ROC (1)'!$E18="D",'ROC (1)'!$D18,"") ->  | AA18: =IF('ROC (1)'!$E18="H",'ROC (1)'!$D18,"") ->  | AD18: 0 | AF18: 0 | AJ18: =IF('ROC (2)'!$E18="D",'ROC (2)'!$D18,"") ->  | AK18: =IF('ROC (2)'!$E18="H",'ROC (2)'!$D18,"") ->  | AN18: 0 | AP18: 0
O19: =O1&" Diseased" -> Diseased | Q19: =O1&" Healthy" -> Healthy | V19: 0 | W19: 0 | X19: 0 | Y19: 0 | Z19: =IF('ROC (1)'!$E19="D",'ROC (1)'!$D19,"") ->  | AA19: =IF('ROC (1)'!$E19="H",'ROC (1)'!$D19,"") ->  | AD19: 0 | AF19: 0 | AJ19: =IF('ROC (2)'!$E19="D",'ROC (2)'!$D19,"") ->  | AK19: =IF('ROC (2)'!$E19="H",'ROC (2)'!$D19,"") ->  | AN19: 0 | AP19: 0
O20: ='ROC (2)'!P12 -> 0 | P20: ='ROC (1)'!P12 -> 0 | V20: 0 | W20: 0 | X20: 0 | Y20: 0 | Z20: =IF('ROC (1)'!$E20="D",'ROC (1)'!$D20,"") ->  | AA20: =IF('ROC (1)'!$E20="H",'ROC (1)'!$D20,"") ->  | AD20: 0 | AF20: 0 | AJ20: =IF('ROC (2)'!$E20="D",'ROC (2)'!$D20,"") ->  | AK20: =IF('ROC (2)'!$E20="H",'ROC (2)'!$D20,"") ->  | AN20: 0 | AP20: 0
O21: =O20&" Diseased" -> 0 Diseased | Q21: =O20&" Healthy" -> 0 Healthy | V21: 0 | W21: 0 | X21: 0 | Y21: 0 | Z21: =IF('ROC (1)'!$E21="D",'ROC (1)'!$D21,"") ->  | AA21: =IF('ROC (1)'!$E21="H",'ROC (1)'!$D21,"") ->  | AD21: 0 | AF21: 0 | AJ21: =IF('ROC (2)'!$E21="D",'ROC (2)'!$D21,"") ->  | AK21: =IF('ROC (2)'!$E21="H",'ROC (2)'!$D21,"") ->  | AN21: 0 | AP21: 0
O22: =P20&" Diseased" -> 0 Diseased | Q22: =P20&" Healthy" -> 0 Healthy | V22: 0 | W22: 0 | X22: 0 | Y22: 0 | Z22: =IF('ROC (1)'!$E22="D",'ROC (1)'!$D22,"") ->  | AA22: =IF('ROC (1)'!$E22="H",'ROC (1)'!$D22,"") ->  | AD22: 0 | AF22: 0 | AJ22: =IF('ROC (2)'!$E22="D",'ROC (2)'!$D22,"") ->  | AK22: =IF('ROC (2)'!$E22="H",'ROC (2)'!$D22,"") ->  | AN22: 0 | AP22: 0
V23: 0 | W23: 0 | X23: 0 | Y23: 0 | Z23: =IF('ROC (1)'!$E23="D",'ROC (1)'!$D23,"") ->  | AA23: =IF('ROC (1)'!$E23="H",'ROC (1)'!$D23,"") ->  | AD23: 0 | AF23: 0 | AJ23: =IF('ROC (2)'!$E23="D",'ROC (2)'!$D23,"") ->  | AK23: =IF('ROC (2)'!$E23="H",'ROC (2)'!$D23,"") ->  | AN23: 0 | AP23: 0
V24: 0 | W24: 0 | X24: 0 | Y24: 0 | Z24: =IF('ROC (1)'!$E24="D",'ROC (1)'!$D24,"") ->  | AA24: =IF('ROC (1)'!$E24="H",'ROC (1)'!$D24,"") ->  | AD24: 0 | AF24: 0 | AJ24: =IF('ROC (2)'!$E24="D",'ROC (2)'!$D24,"") ->  | AK24: =IF('ROC (2)'!$E24="H",'ROC (2)'!$D24,"") ->  | AN24: 0 | AP24: 0
V25: 0 | W25: 0 | X25: 0 | Y25: 0 | Z25: =IF('ROC (1)'!$E25="D",'ROC (1)'!$D25,"") ->  | AA25: =IF('ROC (1)'!$E25="H",'ROC (1)'!$D25,"") ->  | AD25: 0 | AF25: 0 | AJ25: =IF('ROC (2)'!$E25="D",'ROC (2)'!$D25,"") ->  | AK25: =IF('ROC (2)'!$E25="H",'ROC (2)'!$D25,"") ->  | AN25: 0 | AP25: 0
V26: 0 | W26: 0 | X26: 0 | Y26: 0 | Z26: =IF('ROC (1)'!$E26="D",'ROC (1)'!$D26,"") ->  | AA26: =IF('ROC (1)'!$E26="H",'ROC (1)'!$D26,"") ->  | AD26: 0 | AF26: 0 | AJ26: =IF('ROC (2)'!$E26="D",'ROC (2)'!$D26,"") ->  | AK26: =IF('ROC (2)'!$E26="H",'ROC (2)'!$D26,"") ->  | AN26: 0 | AP26: 0
V27: More | W27: More | X27: More | Y27: More | Z27: =IF('ROC (1)'!$E27="D",'ROC (1)'!$D27,"") ->  | AA27: =IF('ROC (1)'!$E27="H",'ROC (1)'!$D27,"") ->  | AD27: 0 | AF27: 0 | AJ27: =IF('ROC (2)'!$E27="D",'ROC (2)'!$D27,"") ->  | AK27: =IF('ROC (2)'!$E27="H",'ROC (2)'!$D27,"") ->  | AN27: 0 | AP27: 0
Z28: =IF('ROC (1)'!$E28="D",'ROC (1)'!$D28,"") ->  | AA28: =IF('ROC (1)'!$E28="H",'ROC (1)'!$D28,"") ->  | AJ28: =IF('ROC (2)'!$E28="D",'ROC (2)'!$D28,"") ->  | AK28: =IF('ROC (2)'!$E28="H",'ROC (2)'!$D28,"") -> 
Z29: =IF('ROC (1)'!$E29="D",'ROC (1)'!$D29,"") ->  | AA29: =IF('ROC (1)'!$E29="H",'ROC (1)'!$D29,"") ->  | AJ29: =IF('ROC (2)'!$E29="D",'ROC (2)'!$D29,"") ->  | AK29: =IF('ROC (2)'!$E29="H",'ROC (2)'!$D29,"") -> 
Z30: =IF('ROC (1)'!$E30="D",'ROC (1)'!$D30,"") ->  | AA30: =IF('ROC (1)'!$E30="H",'ROC (1)'!$D30,"") ->  | AJ30: =IF('ROC (2)'!$E30="D",'ROC (2)'!$D30,"") ->  | AK30: =IF('ROC (2)'!$E30="H",'ROC (2)'!$D30,"") -> 
Z31: =IF('ROC (1)'!$E31="D",'ROC (1)'!$D31,"") ->  | AA31: =IF('ROC (1)'!$E31="H",'ROC (1)'!$D31,"") ->  | AJ31: =IF('ROC (2)'!$E31="D",'ROC (2)'!$D31,"") ->  | AK31: =IF('ROC (2)'!$E31="H",'ROC (2)'!$D31,"") -> 
Z32: =IF('ROC (1)'!$E32="D",'ROC (1)'!$D32,"") ->  | AA32: =IF('ROC (1)'!$E32="H",'ROC (1)'!$D32,"") ->  | AJ32: =IF('ROC (2)'!$E32="D",'ROC (2)'!$D32,"") ->  | AK32: =IF('ROC (2)'!$E32="H",'ROC (2)'!$D32,"") -> 
Z33: =IF('ROC (1)'!$E33="D",'ROC (1)'!$D33,"") ->  | AA33: =IF('ROC (1)'!$E33="H",'ROC (1)'!$D33,"") ->  | AJ33: =IF('ROC (2)'!$E33="D",'ROC (2)'!$D33,"") ->  | AK33: =IF('ROC (2)'!$E33="H",'ROC (2)'!$D33,"") -> 
Z34: =IF('ROC (1)'!$E34="D",'ROC (1)'!$D34,"") ->  | AA34: =IF('ROC (1)'!$E34="H",'ROC (1)'!$D34,"") ->  | AJ34: =IF('ROC (2)'!$E34="D",'ROC (2)'!$D34,"") ->  | AK34: =IF('ROC (2)'!$E34="H",'ROC (2)'!$D34,"") -> 
Z35: =IF('ROC (1)'!$E35="D",'ROC (1)'!$D35,"") ->  | AA35: =IF('ROC (1)'!$E35="H",'ROC (1)'!$D35,"") ->  | AJ35: =IF('ROC (2)'!$E35="D",'ROC (2)'!$D35,"") ->  | AK35: =IF('ROC (2)'!$E35="H",'ROC (2)'!$D35,"") -> 
Z36: =IF('ROC (1)'!$E36="D",'ROC (1)'!$D36,"") ->  | AA36: =IF('ROC (1)'!$E36="H",'ROC (1)'!$D36,"") ->  | AJ36: =IF('ROC (2)'!$E36="D",'ROC (2)'!$D36,"") ->  | AK36: =IF('ROC (2)'!$E36="H",'ROC (2)'!$D36,"") -> 
Z37: =IF('ROC (1)'!$E37="D",'ROC (1)'!$D37,"") ->  | AA37: =IF('ROC (1)'!$E37="H",'ROC (1)'!$D37,"") ->  | AJ37: =IF('ROC (2)'!$E37="D",'ROC (2)'!$D37,"") ->  | AK37: =IF('ROC (2)'!$E37="H",'ROC (2)'!$D37,"") -> 
Z38: =IF('ROC (1)'!$E38="D",'ROC (1)'!$D38,"") ->  | AA38: =IF('ROC (1)'!$E38="H",'ROC (1)'!$D38,"") ->  | AJ38: =IF('ROC (2)'!$E38="D",'ROC (2)'!$D38,"") ->  | AK38: =IF('ROC (2)'!$E38="H",'ROC (2)'!$D38,"") -> 
Z39: =IF('ROC (1)'!$E39="D",'ROC (1)'!$D39,"") ->  | AA39: =IF('ROC (1)'!$E39="H",'ROC (1)'!$D39,"") ->  | AJ39: =IF('ROC (2)'!$E39="D",'ROC (2)'!$D39,"") ->  | AK39: =IF('ROC (2)'!$E39="H",'ROC (2)'!$D39,"") -> 
Z40: =IF('ROC (1)'!$E40="D",'ROC (1)'!$D40,"") ->  | AA40: =IF('ROC (1)'!$E40="H",'ROC (1)'!$D40,"") ->  | AJ40: =IF('ROC (2)'!$E40="D",'ROC (2)'!$D40,"") ->  | AK40: =IF('ROC (2)'!$E40="H",'ROC (2)'!$D40,"") -> 
Z41: =IF('ROC (1)'!$E41="D",'ROC (1)'!$D41,"") ->  | AA41: =IF('ROC (1)'!$E41="H",'ROC (1)'!$D41,"") ->  | AJ41: =IF('ROC (2)'!$E41="D",'ROC (2)'!$D41,"") ->  | AK41: =IF('ROC (2)'!$E41="H",'ROC (2)'!$D41,"") -> 
Z42: =IF('ROC (1)'!$E42="D",'ROC (1)'!$D42,"") ->  | AA42: =IF('ROC (1)'!$E42="H",'ROC (1)'!$D42,"") ->  | AJ42: =IF('ROC (2)'!$E42="D",'ROC (2)'!$D42,"") ->  | AK42: =IF('ROC (2)'!$E42="H",'ROC (2)'!$D42,"") -> 
Z43: =IF('ROC (1)'!$E43="D",'ROC (1)'!$D43,"") ->  | AA43: =IF('ROC (1)'!$E43="H",'ROC (1)'!$D43,"") ->  | AJ43: =IF('ROC (2)'!$E43="D",'ROC (2)'!$D43,"") ->  | AK43: =IF('ROC (2)'!$E43="H",'ROC (2)'!$D43,"") -> 
Z44: =IF('ROC (1)'!$E44="D",'ROC (1)'!$D44,"") ->  | AA44: =IF('ROC (1)'!$E44="H",'ROC (1)'!$D44,"") ->  | AJ44: =IF('ROC (2)'!$E44="D",'ROC (2)'!$D44,"") ->  | AK44: =IF('ROC (2)'!$E44="H",'ROC (2)'!$D44,"") -> 
Z45: =IF('ROC (1)'!$E45="D",'ROC (1)'!$D45,"") ->  | AA45: =IF('ROC (1)'!$E45="H",'ROC (1)'!$D45,"") ->  | AJ45: =IF('ROC (2)'!$E45="D",'ROC (2)'!$D45,"") ->  | AK45: =IF('ROC (2)'!$E45="H",'ROC (2)'!$D45,"") -> 
Z46: =IF('ROC (1)'!$E46="D",'ROC (1)'!$D46,"") ->  | AA46: =IF('ROC (1)'!$E46="H",'ROC (1)'!$D46,"") ->  | AJ46: =IF('ROC (2)'!$E46="D",'ROC (2)'!$D46,"") ->  | AK46: =IF('ROC (2)'!$E46="H",'ROC (2)'!$D46,"") -> 
Z47: =IF('ROC (1)'!$E47="D",'ROC (1)'!$D47,"") ->  | AA47: =IF('ROC (1)'!$E47="H",'ROC (1)'!$D47,"") ->  | AJ47: =IF('ROC (2)'!$E47="D",'ROC (2)'!$D47,"") ->  | AK47: =IF('ROC (2)'!$E47="H",'ROC (2)'!$D47,"") -> 
Z48: =IF('ROC (1)'!$E48="D",'ROC (1)'!$D48,"") ->  | AA48: =IF('ROC (1)'!$E48="H",'ROC (1)'!$D48,"") ->  | AJ48: =IF('ROC (2)'!$E48="D",'ROC (2)'!$D48,"") ->  | AK48: =IF('ROC (2)'!$E48="H",'ROC (2)'!$D48,"") -> 
Z49: =IF('ROC (1)'!$E49="D",'ROC (1)'!$D49,"") ->  | AA49: =IF('ROC (1)'!$E49="H",'ROC (1)'!$D49,"") ->  | AJ49: =IF('ROC (2)'!$E49="D",'ROC (2)'!$D49,"") ->  | AK49: =IF('ROC (2)'!$E49="H",'ROC (2)'!$D49,"") -> 
Z50: =IF('ROC (1)'!$E50="D",'ROC (1)'!$D50,"") ->  | AA50: =IF('ROC (1)'!$E50="H",'ROC (1)'!$D50,"") ->  | AJ50: =IF('ROC (2)'!$E50="D",'ROC (2)'!$D50,"") ->  | AK50: =IF('ROC (2)'!$E50="H",'ROC (2)'!$D50,"") -> 
Z51: =IF('ROC (1)'!$E51="D",'ROC (1)'!$D51,"") ->  | AA51: =IF('ROC (1)'!$E51="H",'ROC (1)'!$D51,"") ->  | AJ51: =IF('ROC (2)'!$E51="D",'ROC (2)'!$D51,"") ->  | AK51: =IF('ROC (2)'!$E51="H",'ROC (2)'!$D51,"") -> 
Z52: =IF('ROC (1)'!$E52="D",'ROC (1)'!$D52,"") ->  | AA52: =IF('ROC (1)'!$E52="H",'ROC (1)'!$D52,"") ->  | AJ52: =IF('ROC (2)'!$E52="D",'ROC (2)'!$D52,"") ->  | AK52: =IF('ROC (2)'!$E52="H",'ROC (2)'!$D52,"") -> 
Z53: =IF('ROC (1)'!$E53="D",'ROC (1)'!$D53,"") ->  | AA53: =IF('ROC (1)'!$E53="H",'ROC (1)'!$D53,"") ->  | AJ53: =IF('ROC (2)'!$E53="D",'ROC (2)'!$D53,"") ->  | AK53: =IF('ROC (2)'!$E53="H",'ROC (2)'!$D53,"") -> 
Z54: =IF('ROC (1)'!$E54="D",'ROC (1)'!$D54,"") ->  | AA54: =IF('ROC (1)'!$E54="H",'ROC (1)'!$D54,"") ->  | AJ54: =IF('ROC (2)'!$E54="D",'ROC (2)'!$D54,"") ->  | AK54: =IF('ROC (2)'!$E54="H",'ROC (2)'!$D54,"") -> 
Z55: =IF('ROC (1)'!$E55="D",'ROC (1)'!$D55,"") ->  | AA55: =IF('ROC (1)'!$E55="H",'ROC (1)'!$D55,"") ->  | AJ55: =IF('ROC (2)'!$E55="D",'ROC (2)'!$D55,"") ->  | AK55: =IF('ROC (2)'!$E55="H",'ROC (2)'!$D55,"") -> 
Z56: =IF('ROC (1)'!$E56="D",'ROC (1)'!$D56,"") ->  | AA56: =IF('ROC (1)'!$E56="H",'ROC (1)'!$D56,"") ->  | AJ56: =IF('ROC (2)'!$E56="D",'ROC (2)'!$D56,"") ->  | AK56: =IF('ROC (2)'!$E56="H",'ROC (2)'!$D56,"") -> 
Z57: =IF('ROC (1)'!$E57="D",'ROC (1)'!$D57,"") ->  | AA57: =IF('ROC (1)'!$E57="H",'ROC (1)'!$D57,"") ->  | AJ57: =IF('ROC (2)'!$E57="D",'ROC (2)'!$D57,"") ->  | AK57: =IF('ROC (2)'!$E57="H",'ROC (2)'!$D57,"") -> 
Z58: =IF('ROC (1)'!$E58="D",'ROC (1)'!$D58,"") ->  | AA58: =IF('ROC (1)'!$E58="H",'ROC (1)'!$D58,"") ->  | AJ58: =IF('ROC (2)'!$E58="D",'ROC (2)'!$D58,"") ->  | AK58: =IF('ROC (2)'!$E58="H",'ROC (2)'!$D58,"") -> 
Z59: =IF('ROC (1)'!$E59="D",'ROC (1)'!$D59,"") ->  | AA59: =IF('ROC (1)'!$E59="H",'ROC (1)'!$D59,"") ->  | AJ59: =IF('ROC (2)'!$E59="D",'ROC (2)'!$D59,"") ->  | AK59: =IF('ROC (2)'!$E59="H",'ROC (2)'!$D59,"") -> 
Z60: =IF('ROC (1)'!$E60="D",'ROC (1)'!$D60,"") ->  | AA60: =IF('ROC (1)'!$E60="H",'ROC (1)'!$D60,"") ->  | AJ60: =IF('ROC (2)'!$E60="D",'ROC (2)'!$D60,"") ->  | AK60: =IF('ROC (2)'!$E60="H",'ROC (2)'!$D60,"") -> 
Z61: =IF('ROC (1)'!$E61="D",'ROC (1)'!$D61,"") ->  | AA61: =IF('ROC (1)'!$E61="H",'ROC (1)'!$D61,"") ->  | AJ61: =IF('ROC (2)'!$E61="D",'ROC (2)'!$D61,"") ->  | AK61: =IF('ROC (2)'!$E61="H",'ROC (2)'!$D61,"") -> 
Z62: =IF('ROC (1)'!$E62="D",'ROC (1)'!$D62,"") ->  | AA62: =IF('ROC (1)'!$E62="H",'ROC (1)'!$D62,"") ->  | AJ62: =IF('ROC (2)'!$E62="D",'ROC (2)'!$D62,"") ->  | AK62: =IF('ROC (2)'!$E62="H",'ROC (2)'!$D62,"") -> 
Z63: =IF('ROC (1)'!$E63="D",'ROC (1)'!$D63,"") ->  | AA63: =IF('ROC (1)'!$E63="H",'ROC (1)'!$D63,"") ->  | AJ63: =IF('ROC (2)'!$E63="D",'ROC (2)'!$D63,"") ->  | AK63: =IF('ROC (2)'!$E63="H",'ROC (2)'!$D63,"") -> 
Z64: =IF('ROC (1)'!$E64="D",'ROC (1)'!$D64,"") ->  | AA64: =IF('ROC (1)'!$E64="H",'ROC (1)'!$D64,"") ->  | AJ64: =IF('ROC (2)'!$E64="D",'ROC (2)'!$D64,"") ->  | AK64: =IF('ROC (2)'!$E64="H",'ROC (2)'!$D64,"") -> 
Z65: =IF('ROC (1)'!$E65="D",'ROC (1)'!$D65,"") ->  | AA65: =IF('ROC (1)'!$E65="H",'ROC (1)'!$D65,"") ->  | AJ65: =IF('ROC (2)'!$E65="D",'ROC (2)'!$D65,"") ->  | AK65: =IF('ROC (2)'!$E65="H",'ROC (2)'!$D65,"") -> 
Z66: =IF('ROC (1)'!$E66="D",'ROC (1)'!$D66,"") ->  | AA66: =IF('ROC (1)'!$E66="H",'ROC (1)'!$D66,"") ->  | AJ66: =IF('ROC (2)'!$E66="D",'ROC (2)'!$D66,"") ->  | AK66: =IF('ROC (2)'!$E66="H",'ROC (2)'!$D66,"") -> 
Z67: =IF('ROC (1)'!$E67="D",'ROC (1)'!$D67,"") ->  | AA67: =IF('ROC (1)'!$E67="H",'ROC (1)'!$D67,"") ->  | AJ67: =IF('ROC (2)'!$E67="D",'ROC (2)'!$D67,"") ->  | AK67: =IF('ROC (2)'!$E67="H",'ROC (2)'!$D67,"") -> 
Z68: =IF('ROC (1)'!$E68="D",'ROC (1)'!$D68,"") ->  | AA68: =IF('ROC (1)'!$E68="H",'ROC (1)'!$D68,"") ->  | AJ68: =IF('ROC (2)'!$E68="D",'ROC (2)'!$D68,"") ->  | AK68: =IF('ROC (2)'!$E68="H",'ROC (2)'!$D68,"") -> 
Z69: =IF('ROC (1)'!$E69="D",'ROC (1)'!$D69,"") ->  | AA69: =IF('ROC (1)'!$E69="H",'ROC (1)'!$D69,"") ->  | AJ69: =IF('ROC (2)'!$E69="D",'ROC (2)'!$D69,"") ->  | AK69: =IF('ROC (2)'!$E69="H",'ROC (2)'!$D69,"") -> 
Z70: =IF('ROC (1)'!$E70="D",'ROC (1)'!$D70,"") ->  | AA70: =IF('ROC (1)'!$E70="H",'ROC (1)'!$D70,"") ->  | AJ70: =IF('ROC (2)'!$E70="D",'ROC (2)'!$D70,"") ->  | AK70: =IF('ROC (2)'!$E70="H",'ROC (2)'!$D70,"") -> 
Z71: =IF('ROC (1)'!$E71="D",'ROC (1)'!$D71,"") ->  | AA71: =IF('ROC (1)'!$E71="H",'ROC (1)'!$D71,"") ->  | AJ71: =IF('ROC (2)'!$E71="D",'ROC (2)'!$D71,"") ->  | AK71: =IF('ROC (2)'!$E71="H",'ROC (2)'!$D71,"") -> 
Z72: =IF('ROC (1)'!$E72="D",'ROC (1)'!$D72,"") ->  | AA72: =IF('ROC (1)'!$E72="H",'ROC (1)'!$D72,"") ->  | AJ72: =IF('ROC (2)'!$E72="D",'ROC (2)'!$D72,"") ->  | AK72: =IF('ROC (2)'!$E72="H",'ROC (2)'!$D72,"") -> 
Z73: =IF('ROC (1)'!$E73="D",'ROC (1)'!$D73,"") ->  | AA73: =IF('ROC (1)'!$E73="H",'ROC (1)'!$D73,"") ->  | AJ73: =IF('ROC (2)'!$E73="D",'ROC (2)'!$D73,"") ->  | AK73: =IF('ROC (2)'!$E73="H",'ROC (2)'!$D73,"") -> 
Z74: =IF('ROC (1)'!$E74="D",'ROC (1)'!$D74,"") ->  | AA74: =IF('ROC (1)'!$E74="H",'ROC (1)'!$D74,"") ->  | AJ74: =IF('ROC (2)'!$E74="D",'ROC (2)'!$D74,"") ->  | AK74: =IF('ROC (2)'!$E74="H",'ROC (2)'!$D74,"") -> 
Z75: =IF('ROC (1)'!$E75="D",'ROC (1)'!$D75,"") ->  | AA75: =IF('ROC (1)'!$E75="H",'ROC (1)'!$D75,"") ->  | AJ75: =IF('ROC (2)'!$E75="D",'ROC (2)'!$D75,"") ->  | AK75: =IF('ROC (2)'!$E75="H",'ROC (2)'!$D75,"") -> 
Z76: =IF('ROC (1)'!$E76="D",'ROC (1)'!$D76,"") ->  | AA76: =IF('ROC (1)'!$E76="H",'ROC (1)'!$D76,"") ->  | AJ76: =IF('ROC (2)'!$E76="D",'ROC (2)'!$D76,"") ->  | AK76: =IF('ROC (2)'!$E76="H",'ROC (2)'!$D76,"") -> 
Z77: =IF('ROC (1)'!$E77="D",'ROC (1)'!$D77,"") ->  | AA77: =IF('ROC (1)'!$E77="H",'ROC (1)'!$D77,"") ->  | AJ77: =IF('ROC (2)'!$E77="D",'ROC (2)'!$D77,"") ->  | AK77: =IF('ROC (2)'!$E77="H",'ROC (2)'!$D77,"") -> 
Z78: =IF('ROC (1)'!$E78="D",'ROC (1)'!$D78,"") ->  | AA78: =IF('ROC (1)'!$E78="H",'ROC (1)'!$D78,"") ->  | AJ78: =IF('ROC (2)'!$E78="D",'ROC (2)'!$D78,"") ->  | AK78: =IF('ROC (2)'!$E78="H",'ROC (2)'!$D78,"") -> 
Z79: =IF('ROC (1)'!$E79="D",'ROC (1)'!$D79,"") ->  | AA79: =IF('ROC (1)'!$E79="H",'ROC (1)'!$D79,"") ->  | AJ79: =IF('ROC (2)'!$E79="D",'ROC (2)'!$D79,"") ->  | AK79: =IF('ROC (2)'!$E79="H",'ROC (2)'!$D79,"") -> 
Z80: =IF('ROC (1)'!$E80="D",'ROC (1)'!$D80,"") ->  | AA80: =IF('ROC (1)'!$E80="H",'ROC (1)'!$D80,"") ->  | AJ80: =IF('ROC (2)'!$E80="D",'ROC (2)'!$D80,"") ->  | AK80: =IF('ROC (2)'!$E80="H",'ROC (2)'!$D80,"") -> 
Z81: =IF('ROC (1)'!$E81="D",'ROC (1)'!$D81,"") ->  | AA81: =IF('ROC (1)'!$E81="H",'ROC (1)'!$D81,"") ->  | AJ81: =IF('ROC (2)'!$E81="D",'ROC (2)'!$D81,"") ->  | AK81: =IF('ROC (2)'!$E81="H",'ROC (2)'!$D81,"") -> 
Z82: =IF('ROC (1)'!$E82="D",'ROC (1)'!$D82,"") ->  | AA82: =IF('ROC (1)'!$E82="H",'ROC (1)'!$D82,"") ->  | AJ82: =IF('ROC (2)'!$E82="D",'ROC (2)'!$D82,"") ->  | AK82: =IF('ROC (2)'!$E82="H",'ROC (2)'!$D82,"") -> 
Z83: =IF('ROC (1)'!$E83="D",'ROC (1)'!$D83,"") ->  | AA83: =IF('ROC (1)'!$E83="H",'ROC (1)'!$D83,"") ->  | AJ83: =IF('ROC (2)'!$E83="D",'ROC (2)'!$D83,"") ->  | AK83: =IF('ROC (2)'!$E83="H",'ROC (2)'!$D83,"") -> 
Z84: =IF('ROC (1)'!$E84="D",'ROC (1)'!$D84,"") ->  | AA84: =IF('ROC (1)'!$E84="H",'ROC (1)'!$D84,"") ->  | AJ84: =IF('ROC (2)'!$E84="D",'ROC (2)'!$D84,"") ->  | AK84: =IF('ROC (2)'!$E84="H",'ROC (2)'!$D84,"") -> 
Z85: =IF('ROC (1)'!$E85="D",'ROC (1)'!$D85,"") ->  | AA85: =IF('ROC (1)'!$E85="H",'ROC (1)'!$D85,"") ->  | AJ85: =IF('ROC (2)'!$E85="D",'ROC (2)'!$D85,"") ->  | AK85: =IF('ROC (2)'!$E85="H",'ROC (2)'!$D85,"") -> 
Z86: =IF('ROC (1)'!$E86="D",'ROC (1)'!$D86,"") ->  | AA86: =IF('ROC (1)'!$E86="H",'ROC (1)'!$D86,"") ->  | AJ86: =IF('ROC (2)'!$E86="D",'ROC (2)'!$D86,"") ->  | AK86: =IF('ROC (2)'!$E86="H",'ROC (2)'!$D86,"") -> 
Z87: =IF('ROC (1)'!$E87="D",'ROC (1)'!$D87,"") ->  | AA87: =IF('ROC (1)'!$E87="H",'ROC (1)'!$D87,"") ->  | AJ87: =IF('ROC (2)'!$E87="D",'ROC (2)'!$D87,"") ->  | AK87: =IF('ROC (2)'!$E87="H",'ROC (2)'!$D87,"") -> 
Z88: =IF('ROC (1)'!$E88="D",'ROC (1)'!$D88,"") ->  | AA88: =IF('ROC (1)'!$E88="H",'ROC (1)'!$D88,"") ->  | AJ88: =IF('ROC (2)'!$E88="D",'ROC (2)'!$D88,"") ->  | AK88: =IF('ROC (2)'!$E88="H",'ROC (2)'!$D88,"") -> 
Z89: =IF('ROC (1)'!$E89="D",'ROC (1)'!$D89,"") ->  | AA89: =IF('ROC (1)'!$E89="H",'ROC (1)'!$D89,"") ->  | AJ89: =IF('ROC (2)'!$E89="D",'ROC (2)'!$D89,"") ->  | AK89: =IF('ROC (2)'!$E89="H",'ROC (2)'!$D89,"") -> 
Z90: =IF('ROC (1)'!$E90="D",'ROC (1)'!$D90,"") ->  | AA90: =IF('ROC (1)'!$E90="H",'ROC (1)'!$D90,"") ->  | AJ90: =IF('ROC (2)'!$E90="D",'ROC (2)'!$D90,"") ->  | AK90: =IF('ROC (2)'!$E90="H",'ROC (2)'!$D90,"") -> 
Z91: =IF('ROC (1)'!$E91="D",'ROC (1)'!$D91,"") ->  | AA91: =IF('ROC (1)'!$E91="H",'ROC (1)'!$D91,"") ->  | AJ91: =IF('ROC (2)'!$E91="D",'ROC (2)'!$D91,"") ->  | AK91: =IF('ROC (2)'!$E91="H",'ROC (2)'!$D91,"") -> 
Z92: =IF('ROC (1)'!$E92="D",'ROC (1)'!$D92,"") ->  | AA92: =IF('ROC (1)'!$E92="H",'ROC (1)'!$D92,"") ->  | AJ92: =IF('ROC (2)'!$E92="D",'ROC (2)'!$D92,"") ->  | AK92: =IF('ROC (2)'!$E92="H",'ROC (2)'!$D92,"") -> 
Z93: =IF('ROC (1)'!$E93="D",'ROC (1)'!$D93,"") ->  | AA93: =IF('ROC (1)'!$E93="H",'ROC (1)'!$D93,"") ->  | AJ93: =IF('ROC (2)'!$E93="D",'ROC (2)'!$D93,"") ->  | AK93: =IF('ROC (2)'!$E93="H",'ROC (2)'!$D93,"") -> 
Z94: =IF('ROC (1)'!$E94="D",'ROC (1)'!$D94,"") ->  | AA94: =IF('ROC (1)'!$E94="H",'ROC (1)'!$D94,"") ->  | AJ94: =IF('ROC (2)'!$E94="D",'ROC (2)'!$D94,"") ->  | AK94: =IF('ROC (2)'!$E94="H",'ROC (2)'!$D94,"") -> 
Z95: =IF('ROC (1)'!$E95="D",'ROC (1)'!$D95,"") ->  | AA95: =IF('ROC (1)'!$E95="H",'ROC (1)'!$D95,"") ->  | AJ95: =IF('ROC (2)'!$E95="D",'ROC (2)'!$D95,"") ->  | AK95: =IF('ROC (2)'!$E95="H",'ROC (2)'!$D95,"") -> 
Z96: =IF('ROC (1)'!$E96="D",'ROC (1)'!$D96,"") ->  | AA96: =IF('ROC (1)'!$E96="H",'ROC (1)'!$D96,"") ->  | AJ96: =IF('ROC (2)'!$E96="D",'ROC (2)'!$D96,"") ->  | AK96: =IF('ROC (2)'!$E96="H",'ROC (2)'!$D96,"") -> 
Z97: =IF('ROC (1)'!$E97="D",'ROC (1)'!$D97,"") ->  | AA97: =IF('ROC (1)'!$E97="H",'ROC (1)'!$D97,"") ->  | AJ97: =IF('ROC (2)'!$E97="D",'ROC (2)'!$D97,"") ->  | AK97: =IF('ROC (2)'!$E97="H",'ROC (2)'!$D97,"") -> 
Z98: =IF('ROC (1)'!$E98="D",'ROC (1)'!$D98,"") ->  | AA98: =IF('ROC (1)'!$E98="H",'ROC (1)'!$D98,"") ->  | AJ98: =IF('ROC (2)'!$E98="D",'ROC (2)'!$D98,"") ->  | AK98: =IF('ROC (2)'!$E98="H",'ROC (2)'!$D98,"") -> 
Z99: =IF('ROC (1)'!$E99="D",'ROC (1)'!$D99,"") ->  | AA99: =IF('ROC (1)'!$E99="H",'ROC (1)'!$D99,"") ->  | AJ99: =IF('ROC (2)'!$E99="D",'ROC (2)'!$D99,"") ->  | AK99: =IF('ROC (2)'!$E99="H",'ROC (2)'!$D99,"") -> 
Z100: =IF('ROC (1)'!$E100="D",'ROC (1)'!$D100,"") ->  | AA100: =IF('ROC (1)'!$E100="H",'ROC (1)'!$D100,"") ->  | AJ100: =IF('ROC (2)'!$E100="D",'ROC (2)'!$D100,"") ->  | AK100: =IF('ROC (2)'!$E100="H",'ROC (2)'!$D100,"") -> 
Z101: =IF('ROC (1)'!$E101="D",'ROC (1)'!$D101,"") ->  | AA101: =IF('ROC (1)'!$E101="H",'ROC (1)'!$D101,"") ->  | AJ101: =IF('ROC (2)'!$E101="D",'ROC (2)'!$D101,"") ->  | AK101: =IF('ROC (2)'!$E101="H",'ROC (2)'!$D101,"") -> 
Z102: =IF('ROC (1)'!$E102="D",'ROC (1)'!$D102,"") ->  | AA102: =IF('ROC (1)'!$E102="H",'ROC (1)'!$D102,"") ->  | AJ102: =IF('ROC (2)'!$E102="D",'ROC (2)'!$D102,"") ->  | AK102: =IF('ROC (2)'!$E102="H",'ROC (2)'!$D102,"") -> 
Z103: =IF('ROC (1)'!$E103="D",'ROC (1)'!$D103,"") ->  | AA103: =IF('ROC (1)'!$E103="H",'ROC (1)'!$D103,"") ->  | AJ103: =IF('ROC (2)'!$E103="D",'ROC (2)'!$D103,"") ->  | AK103: =IF('ROC (2)'!$E103="H",'ROC (2)'!$D103,"") -> 
Z104: =IF('ROC (1)'!$E104="D",'ROC (1)'!$D104,"") ->  | AA104: =IF('ROC (1)'!$E104="H",'ROC (1)'!$D104,"") ->  | AJ104: =IF('ROC (2)'!$E104="D",'ROC (2)'!$D104,"") ->  | AK104: =IF('ROC (2)'!$E104="H",'ROC (2)'!$D104,"") -> 
Z105: =IF('ROC (1)'!$E105="D",'ROC (1)'!$D105,"") ->  | AA105: =IF('ROC (1)'!$E105="H",'ROC (1)'!$D105,"") ->  | AJ105: =IF('ROC (2)'!$E105="D",'ROC (2)'!$D105,"") ->  | AK105: =IF('ROC (2)'!$E105="H",'ROC (2)'!$D105,"") -> 
Z106: =IF('ROC (1)'!$E106="D",'ROC (1)'!$D106,"") ->  | AA106: =IF('ROC (1)'!$E106="H",'ROC (1)'!$D106,"") ->  | AJ106: =IF('ROC (2)'!$E106="D",'ROC (2)'!$D106,"") ->  | AK106: =IF('ROC (2)'!$E106="H",'ROC (2)'!$D106,"") -> 
Z107: =IF('ROC (1)'!$E107="D",'ROC (1)'!$D107,"") ->  | AA107: =IF('ROC (1)'!$E107="H",'ROC (1)'!$D107,"") ->  | AJ107: =IF('ROC (2)'!$E107="D",'ROC (2)'!$D107,"") ->  | AK107: =IF('ROC (2)'!$E107="H",'ROC (2)'!$D107,"") -> 
Z108: =IF('ROC (1)'!$E108="D",'ROC (1)'!$D108,"") ->  | AA108: =IF('ROC (1)'!$E108="H",'ROC (1)'!$D108,"") ->  | AJ108: =IF('ROC (2)'!$E108="D",'ROC (2)'!$D108,"") ->  | AK108: =IF('ROC (2)'!$E108="H",'ROC (2)'!$D108,"") -> 
Z109: =IF('ROC (1)'!$E109="D",'ROC (1)'!$D109,"") ->  | AA109: =IF('ROC (1)'!$E109="H",'ROC (1)'!$D109,"") ->  | AJ109: =IF('ROC (2)'!$E109="D",'ROC (2)'!$D109,"") ->  | AK109: =IF('ROC (2)'!$E109="H",'ROC (2)'!$D109,"") -> 
Z110: =IF('ROC (1)'!$E110="D",'ROC (1)'!$D110,"") ->  | AA110: =IF('ROC (1)'!$E110="H",'ROC (1)'!$D110,"") ->  | AJ110: =IF('ROC (2)'!$E110="D",'ROC (2)'!$D110,"") ->  | AK110: =IF('ROC (2)'!$E110="H",'ROC (2)'!$D110,"") -> 
Z111: =IF('ROC (1)'!$E111="D",'ROC (1)'!$D111,"") ->  | AA111: =IF('ROC (1)'!$E111="H",'ROC (1)'!$D111,"") ->  | AJ111: =IF('ROC (2)'!$E111="D",'ROC (2)'!$D111,"") ->  | AK111: =IF('ROC (2)'!$E111="H",'ROC (2)'!$D111,"") -> 
Z112: =IF('ROC (1)'!$E112="D",'ROC (1)'!$D112,"") ->  | AA112: =IF('ROC (1)'!$E112="H",'ROC (1)'!$D112,"") ->  | AJ112: =IF('ROC (2)'!$E112="D",'ROC (2)'!$D112,"") ->  | AK112: =IF('ROC (2)'!$E112="H",'ROC (2)'!$D112,"") -> 
Z113: =IF('ROC (1)'!$E113="D",'ROC (1)'!$D113,"") ->  | AA113: =IF('ROC (1)'!$E113="H",'ROC (1)'!$D113,"") ->  | AJ113: =IF('ROC (2)'!$E113="D",'ROC (2)'!$D113,"") ->  | AK113: =IF('ROC (2)'!$E113="H",'ROC (2)'!$D113,"") -> 
Z114: =IF('ROC (1)'!$E114="D",'ROC (1)'!$D114,"") ->  | AA114: =IF('ROC (1)'!$E114="H",'ROC (1)'!$D114,"") ->  | AJ114: =IF('ROC (2)'!$E114="D",'ROC (2)'!$D114,"") ->  | AK114: =IF('ROC (2)'!$E114="H",'ROC (2)'!$D114,"") -> 
Z115: =IF('ROC (1)'!$E115="D",'ROC (1)'!$D115,"") ->  | AA115: =IF('ROC (1)'!$E115="H",'ROC (1)'!$D115,"") ->  | AJ115: =IF('ROC (2)'!$E115="D",'ROC (2)'!$D115,"") ->  | AK115: =IF('ROC (2)'!$E115="H",'ROC (2)'!$D115,"") -> 
Z116: =IF('ROC (1)'!$E116="D",'ROC (1)'!$D116,"") ->  | AA116: =IF('ROC (1)'!$E116="H",'ROC (1)'!$D116,"") ->  | AJ116: =IF('ROC (2)'!$E116="D",'ROC (2)'!$D116,"") ->  | AK116: =IF('ROC (2)'!$E116="H",'ROC (2)'!$D116,"") -> 
Z117: =IF('ROC (1)'!$E117="D",'ROC (1)'!$D117,"") ->  | AA117: =IF('ROC (1)'!$E117="H",'ROC (1)'!$D117,"") ->  | AJ117: =IF('ROC (2)'!$E117="D",'ROC (2)'!$D117,"") ->  | AK117: =IF('ROC (2)'!$E117="H",'ROC (2)'!$D117,"") -> 
Z118: =IF('ROC (1)'!$E118="D",'ROC (1)'!$D118,"") ->  | AA118: =IF('ROC (1)'!$E118="H",'ROC (1)'!$D118,"") ->  | AJ118: =IF('ROC (2)'!$E118="D",'ROC (2)'!$D118,"") ->  | AK118: =IF('ROC (2)'!$E118="H",'ROC (2)'!$D118,"") -> 
Z119: =IF('ROC (1)'!$E119="D",'ROC (1)'!$D119,"") ->  | AA119: =IF('ROC (1)'!$E119="H",'ROC (1)'!$D119,"") ->  | AJ119: =IF('ROC (2)'!$E119="D",'ROC (2)'!$D119,"") ->  | AK119: =IF('ROC (2)'!$E119="H",'ROC (2)'!$D119,"") -> 
Z120: =IF('ROC (1)'!$E120="D",'ROC (1)'!$D120,"") ->  | AA120: =IF('ROC (1)'!$E120="H",'ROC (1)'!$D120,"") ->  | AJ120: =IF('ROC (2)'!$E120="D",'ROC (2)'!$D120,"") ->  | AK120: =IF('ROC (2)'!$E120="H",'ROC (2)'!$D120,"") -> 
Z121: =IF('ROC (1)'!$E121="D",'ROC (1)'!$D121,"") ->  | AA121: =IF('ROC (1)'!$E121="H",'ROC (1)'!$D121,"") ->  | AJ121: =IF('ROC (2)'!$E121="D",'ROC (2)'!$D121,"") ->  | AK121: =IF('ROC (2)'!$E121="H",'ROC (2)'!$D121,"") -> 
Z122: =IF('ROC (1)'!$E122="D",'ROC (1)'!$D122,"") ->  | AA122: =IF('ROC (1)'!$E122="H",'ROC (1)'!$D122,"") ->  | AJ122: =IF('ROC (2)'!$E122="D",'ROC (2)'!$D122,"") ->  | AK122: =IF('ROC (2)'!$E122="H",'ROC (2)'!$D122,"") -> 
Z123: =IF('ROC (1)'!$E123="D",'ROC (1)'!$D123,"") ->  | AA123: =IF('ROC (1)'!$E123="H",'ROC (1)'!$D123,"") ->  | AJ123: =IF('ROC (2)'!$E123="D",'ROC (2)'!$D123,"") ->  | AK123: =IF('ROC (2)'!$E123="H",'ROC (2)'!$D123,"") -> 
Z124: =IF('ROC (1)'!$E124="D",'ROC (1)'!$D124,"") ->  | AA124: =IF('ROC (1)'!$E124="H",'ROC (1)'!$D124,"") ->  | AJ124: =IF('ROC (2)'!$E124="D",'ROC (2)'!$D124,"") ->  | AK124: =IF('ROC (2)'!$E124="H",'ROC (2)'!$D124,"") -> 
Z125: =IF('ROC (1)'!$E125="D",'ROC (1)'!$D125,"") ->  | AA125: =IF('ROC (1)'!$E125="H",'ROC (1)'!$D125,"") ->  | AJ125: =IF('ROC (2)'!$E125="D",'ROC (2)'!$D125,"") ->  | AK125: =IF('ROC (2)'!$E125="H",'ROC (2)'!$D125,"") -> 
Z126: =IF('ROC (1)'!$E126="D",'ROC (1)'!$D126,"") ->  | AA126: =IF('ROC (1)'!$E126="H",'ROC (1)'!$D126,"") ->  | AJ126: =IF('ROC (2)'!$E126="D",'ROC (2)'!$D126,"") ->  | AK126: =IF('ROC (2)'!$E126="H",'ROC (2)'!$D126,"") -> 
Z127: =IF('ROC (1)'!$E127="D",'ROC (1)'!$D127,"") ->  | AA127: =IF('ROC (1)'!$E127="H",'ROC (1)'!$D127,"") ->  | AJ127: =IF('ROC (2)'!$E127="D",'ROC (2)'!$D127,"") ->  | AK127: =IF('ROC (2)'!$E127="H",'ROC (2)'!$D127,"") -> 
Z128: =IF('ROC (1)'!$E128="D",'ROC (1)'!$D128,"") ->  | AA128: =IF('ROC (1)'!$E128="H",'ROC (1)'!$D128,"") ->  | AJ128: =IF('ROC (2)'!$E128="D",'ROC (2)'!$D128,"") ->  | AK128: =IF('ROC (2)'!$E128="H",'ROC (2)'!$D128,"") -> 
Z129: =IF('ROC (1)'!$E129="D",'ROC (1)'!$D129,"") ->  | AA129: =IF('ROC (1)'!$E129="H",'ROC (1)'!$D129,"") ->  | AJ129: =IF('ROC (2)'!$E129="D",'ROC (2)'!$D129,"") ->  | AK129: =IF('ROC (2)'!$E129="H",'ROC (2)'!$D129,"") -> 
Z130: =IF('ROC (1)'!$E130="D",'ROC (1)'!$D130,"") ->  | AA130: =IF('ROC (1)'!$E130="H",'ROC (1)'!$D130,"") ->  | AJ130: =IF('ROC (2)'!$E130="D",'ROC (2)'!$D130,"") ->  | AK130: =IF('ROC (2)'!$E130="H",'ROC (2)'!$D130,"") -> 
Z131: =IF('ROC (1)'!$E131="D",'ROC (1)'!$D131,"") ->  | AA131: =IF('ROC (1)'!$E131="H",'ROC (1)'!$D131,"") ->  | AJ131: =IF('ROC (2)'!$E131="D",'ROC (2)'!$D131,"") ->  | AK131: =IF('ROC (2)'!$E131="H",'ROC (2)'!$D131,"") -> 
Z132: =IF('ROC (1)'!$E132="D",'ROC (1)'!$D132,"") ->  | AA132: =IF('ROC (1)'!$E132="H",'ROC (1)'!$D132,"") ->  | AJ132: =IF('ROC (2)'!$E132="D",'ROC (2)'!$D132,"") ->  | AK132: =IF('ROC (2)'!$E132="H",'ROC (2)'!$D132,"") -> 
Z133: =IF('ROC (1)'!$E133="D",'ROC (1)'!$D133,"") ->  | AA133: =IF('ROC (1)'!$E133="H",'ROC (1)'!$D133,"") ->  | AJ133: =IF('ROC (2)'!$E133="D",'ROC (2)'!$D133,"") ->  | AK133: =IF('ROC (2)'!$E133="H",'ROC (2)'!$D133,"") -> 
Z134: =IF('ROC (1)'!$E134="D",'ROC (1)'!$D134,"") ->  | AA134: =IF('ROC (1)'!$E134="H",'ROC (1)'!$D134,"") ->  | AJ134: =IF('ROC (2)'!$E134="D",'ROC (2)'!$D134,"") ->  | AK134: =IF('ROC (2)'!$E134="H",'ROC (2)'!$D134,"") -> 
Z135: =IF('ROC (1)'!$E135="D",'ROC (1)'!$D135,"") ->  | AA135: =IF('ROC (1)'!$E135="H",'ROC (1)'!$D135,"") ->  | AJ135: =IF('ROC (2)'!$E135="D",'ROC (2)'!$D135,"") ->  | AK135: =IF('ROC (2)'!$E135="H",'ROC (2)'!$D135,"") -> 
Z136: =IF('ROC (1)'!$E136="D",'ROC (1)'!$D136,"") ->  | AA136: =IF('ROC (1)'!$E136="H",'ROC (1)'!$D136,"") ->  | AJ136: =IF('ROC (2)'!$E136="D",'ROC (2)'!$D136,"") ->  | AK136: =IF('ROC (2)'!$E136="H",'ROC (2)'!$D136,"") -> 
Z137: =IF('ROC (1)'!$E137="D",'ROC (1)'!$D137,"") ->  | AA137: =IF('ROC (1)'!$E137="H",'ROC (1)'!$D137,"") ->  | AJ137: =IF('ROC (2)'!$E137="D",'ROC (2)'!$D137,"") ->  | AK137: =IF('ROC (2)'!$E137="H",'ROC (2)'!$D137,"") -> 
Z138: =IF('ROC (1)'!$E138="D",'ROC (1)'!$D138,"") ->  | AA138: =IF('ROC (1)'!$E138="H",'ROC (1)'!$D138,"") ->  | AJ138: =IF('ROC (2)'!$E138="D",'ROC (2)'!$D138,"") ->  | AK138: =IF('ROC (2)'!$E138="H",'ROC (2)'!$D138,"") -> 
Z139: =IF('ROC (1)'!$E139="D",'ROC (1)'!$D139,"") ->  | AA139: =IF('ROC (1)'!$E139="H",'ROC (1)'!$D139,"") ->  | AJ139: =IF('ROC (2)'!$E139="D",'ROC (2)'!$D139,"") ->  | AK139: =IF('ROC (2)'!$E139="H",'ROC (2)'!$D139,"") -> 
Z140: =IF('ROC (1)'!$E140="D",'ROC (1)'!$D140,"") ->  | AA140: =IF('ROC (1)'!$E140="H",'ROC (1)'!$D140,"") ->  | AJ140: =IF('ROC (2)'!$E140="D",'ROC (2)'!$D140,"") ->  | AK140: =IF('ROC (2)'!$E140="H",'ROC (2)'!$D140,"") -> 
Z141: =IF('ROC (1)'!$E141="D",'ROC (1)'!$D141,"") ->  | AA141: =IF('ROC (1)'!$E141="H",'ROC (1)'!$D141,"") ->  | AJ141: =IF('ROC (2)'!$E141="D",'ROC (2)'!$D141,"") ->  | AK141: =IF('ROC (2)'!$E141="H",'ROC (2)'!$D141,"") -> 
Z142: =IF('ROC (1)'!$E142="D",'ROC (1)'!$D142,"") ->  | AA142: =IF('ROC (1)'!$E142="H",'ROC (1)'!$D142,"") ->  | AJ142: =IF('ROC (2)'!$E142="D",'ROC (2)'!$D142,"") ->  | AK142: =IF('ROC (2)'!$E142="H",'ROC (2)'!$D142,"") -> 
Z143: =IF('ROC (1)'!$E143="D",'ROC (1)'!$D143,"") ->  | AA143: =IF('ROC (1)'!$E143="H",'ROC (1)'!$D143,"") ->  | AJ143: =IF('ROC (2)'!$E143="D",'ROC (2)'!$D143,"") ->  | AK143: =IF('ROC (2)'!$E143="H",'ROC (2)'!$D143,"") -> 
Z144: =IF('ROC (1)'!$E144="D",'ROC (1)'!$D144,"") ->  | AA144: =IF('ROC (1)'!$E144="H",'ROC (1)'!$D144,"") ->  | AJ144: =IF('ROC (2)'!$E144="D",'ROC (2)'!$D144,"") ->  | AK144: =IF('ROC (2)'!$E144="H",'ROC (2)'!$D144,"") -> 
Z145: =IF('ROC (1)'!$E145="D",'ROC (1)'!$D145,"") ->  | AA145: =IF('ROC (1)'!$E145="H",'ROC (1)'!$D145,"") ->  | AJ145: =IF('ROC (2)'!$E145="D",'ROC (2)'!$D145,"") ->  | AK145: =IF('ROC (2)'!$E145="H",'ROC (2)'!$D145,"") -> 
Z146: =IF('ROC (1)'!$E146="D",'ROC (1)'!$D146,"") ->  | AA146: =IF('ROC (1)'!$E146="H",'ROC (1)'!$D146,"") ->  | AJ146: =IF('ROC (2)'!$E146="D",'ROC (2)'!$D146,"") ->  | AK146: =IF('ROC (2)'!$E146="H",'ROC (2)'!$D146,"") -> 
Z147: =IF('ROC (1)'!$E147="D",'ROC (1)'!$D147,"") ->  | AA147: =IF('ROC (1)'!$E147="H",'ROC (1)'!$D147,"") ->  | AJ147: =IF('ROC (2)'!$E147="D",'ROC (2)'!$D147,"") ->  | AK147: =IF('ROC (2)'!$E147="H",'ROC (2)'!$D147,"") -> 
Z148: =IF('ROC (1)'!$E148="D",'ROC (1)'!$D148,"") ->  | AA148: =IF('ROC (1)'!$E148="H",'ROC (1)'!$D148,"") ->  | AJ148: =IF('ROC (2)'!$E148="D",'ROC (2)'!$D148,"") ->  | AK148: =IF('ROC (2)'!$E148="H",'ROC (2)'!$D148,"") -> 
Z149: =IF('ROC (1)'!$E149="D",'ROC (1)'!$D149,"") ->  | AA149: =IF('ROC (1)'!$E149="H",'ROC (1)'!$D149,"") ->  | AJ149: =IF('ROC (2)'!$E149="D",'ROC (2)'!$D149,"") ->  | AK149: =IF('ROC (2)'!$E149="H",'ROC (2)'!$D149,"") -> 
Z150: =IF('ROC (1)'!$E150="D",'ROC (1)'!$D150,"") ->  | AA150: =IF('ROC (1)'!$E150="H",'ROC (1)'!$D150,"") ->  | AJ150: =IF('ROC (2)'!$E150="D",'ROC (2)'!$D150,"") ->  | AK150: =IF('ROC (2)'!$E150="H",'ROC (2)'!$D150,"") -> 
Z151: =IF('ROC (1)'!$E151="D",'ROC (1)'!$D151,"") ->  | AA151: =IF('ROC (1)'!$E151="H",'ROC (1)'!$D151,"") ->  | AJ151: =IF('ROC (2)'!$E151="D",'ROC (2)'!$D151,"") ->  | AK151: =IF('ROC (2)'!$E151="H",'ROC (2)'!$D151,"") -> 
Z152: =IF('ROC (1)'!$E152="D",'ROC (1)'!$D152,"") ->  | AA152: =IF('ROC (1)'!$E152="H",'ROC (1)'!$D152,"") ->  | AJ152: =IF('ROC (2)'!$E152="D",'ROC (2)'!$D152,"") ->  | AK152: =IF('ROC (2)'!$E152="H",'ROC (2)'!$D152,"") -> 
Z153: =IF('ROC (1)'!$E153="D",'ROC (1)'!$D153,"") ->  | AA153: =IF('ROC (1)'!$E153="H",'ROC (1)'!$D153,"") ->  | AJ153: =IF('ROC (2)'!$E153="D",'ROC (2)'!$D153,"") ->  | AK153: =IF('ROC (2)'!$E153="H",'ROC (2)'!$D153,"") -> 
Z154: =IF('ROC (1)'!$E154="D",'ROC (1)'!$D154,"") ->  | AA154: =IF('ROC (1)'!$E154="H",'ROC (1)'!$D154,"") ->  | AJ154: =IF('ROC (2)'!$E154="D",'ROC (2)'!$D154,"") ->  | AK154: =IF('ROC (2)'!$E154="H",'ROC (2)'!$D154,"") -> 
Z155: =IF('ROC (1)'!$E155="D",'ROC (1)'!$D155,"") ->  | AA155: =IF('ROC (1)'!$E155="H",'ROC (1)'!$D155,"") ->  | AJ155: =IF('ROC (2)'!$E155="D",'ROC (2)'!$D155,"") ->  | AK155: =IF('ROC (2)'!$E155="H",'ROC (2)'!$D155,"") -> 
Z156: =IF('ROC (1)'!$E156="D",'ROC (1)'!$D156,"") ->  | AA156: =IF('ROC (1)'!$E156="H",'ROC (1)'!$D156,"") ->  | AJ156: =IF('ROC (2)'!$E156="D",'ROC (2)'!$D156,"") ->  | AK156: =IF('ROC (2)'!$E156="H",'ROC (2)'!$D156,"") -> 
Z157: =IF('ROC (1)'!$E157="D",'ROC (1)'!$D157,"") ->  | AA157: =IF('ROC (1)'!$E157="H",'ROC (1)'!$D157,"") ->  | AJ157: =IF('ROC (2)'!$E157="D",'ROC (2)'!$D157,"") ->  | AK157: =IF('ROC (2)'!$E157="H",'ROC (2)'!$D157,"") -> 
Z158: =IF('ROC (1)'!$E158="D",'ROC (1)'!$D158,"") ->  | AA158: =IF('ROC (1)'!$E158="H",'ROC (1)'!$D158,"") ->  | AJ158: =IF('ROC (2)'!$E158="D",'ROC (2)'!$D158,"") ->  | AK158: =IF('ROC (2)'!$E158="H",'ROC (2)'!$D158,"") -> 
Z159: =IF('ROC (1)'!$E159="D",'ROC (1)'!$D159,"") ->  | AA159: =IF('ROC (1)'!$E159="H",'ROC (1)'!$D159,"") ->  | AJ159: =IF('ROC (2)'!$E159="D",'ROC (2)'!$D159,"") ->  | AK159: =IF('ROC (2)'!$E159="H",'ROC (2)'!$D159,"") -> 
Z160: =IF('ROC (1)'!$E160="D",'ROC (1)'!$D160,"") ->  | AA160: =IF('ROC (1)'!$E160="H",'ROC (1)'!$D160,"") ->  | AJ160: =IF('ROC (2)'!$E160="D",'ROC (2)'!$D160,"") ->  | AK160: =IF('ROC (2)'!$E160="H",'ROC (2)'!$D160,"") -> 
Z161: =IF('ROC (1)'!$E161="D",'ROC (1)'!$D161,"") ->  | AA161: =IF('ROC (1)'!$E161="H",'ROC (1)'!$D161,"") ->  | AJ161: =IF('ROC (2)'!$E161="D",'ROC (2)'!$D161,"") ->  | AK161: =IF('ROC (2)'!$E161="H",'ROC (2)'!$D161,"") -> 
Z162: =IF('ROC (1)'!$E162="D",'ROC (1)'!$D162,"") ->  | AA162: =IF('ROC (1)'!$E162="H",'ROC (1)'!$D162,"") ->  | AJ162: =IF('ROC (2)'!$E162="D",'ROC (2)'!$D162,"") ->  | AK162: =IF('ROC (2)'!$E162="H",'ROC (2)'!$D162,"") -> 
Z163: =IF('ROC (1)'!$E163="D",'ROC (1)'!$D163,"") ->  | AA163: =IF('ROC (1)'!$E163="H",'ROC (1)'!$D163,"") ->  | AJ163: =IF('ROC (2)'!$E163="D",'ROC (2)'!$D163,"") ->  | AK163: =IF('ROC (2)'!$E163="H",'ROC (2)'!$D163,"") -> 
Z164: =IF('ROC (1)'!$E164="D",'ROC (1)'!$D164,"") ->  | AA164: =IF('ROC (1)'!$E164="H",'ROC (1)'!$D164,"") ->  | AJ164: =IF('ROC (2)'!$E164="D",'ROC (2)'!$D164,"") ->  | AK164: =IF('ROC (2)'!$E164="H",'ROC (2)'!$D164,"") -> 
Z165: =IF('ROC (1)'!$E165="D",'ROC (1)'!$D165,"") ->  | AA165: =IF('ROC (1)'!$E165="H",'ROC (1)'!$D165,"") ->  | AJ165: =IF('ROC (2)'!$E165="D",'ROC (2)'!$D165,"") ->  | AK165: =IF('ROC (2)'!$E165="H",'ROC (2)'!$D165,"") -> 
Z166: =IF('ROC (1)'!$E166="D",'ROC (1)'!$D166,"") ->  | AA166: =IF('ROC (1)'!$E166="H",'ROC (1)'!$D166,"") ->  | AJ166: =IF('ROC (2)'!$E166="D",'ROC (2)'!$D166,"") ->  | AK166: =IF('ROC (2)'!$E166="H",'ROC (2)'!$D166,"") -> 
Z167: =IF('ROC (1)'!$E167="D",'ROC (1)'!$D167,"") ->  | AA167: =IF('ROC (1)'!$E167="H",'ROC (1)'!$D167,"") ->  | AJ167: =IF('ROC (2)'!$E167="D",'ROC (2)'!$D167,"") ->  | AK167: =IF('ROC (2)'!$E167="H",'ROC (2)'!$D167,"") -> 
Z168: =IF('ROC (1)'!$E168="D",'ROC (1)'!$D168,"") ->  | AA168: =IF('ROC (1)'!$E168="H",'ROC (1)'!$D168,"") ->  | AJ168: =IF('ROC (2)'!$E168="D",'ROC (2)'!$D168,"") ->  | AK168: =IF('ROC (2)'!$E168="H",'ROC (2)'!$D168,"") -> 
Z169: =IF('ROC (1)'!$E169="D",'ROC (1)'!$D169,"") ->  | AA169: =IF('ROC (1)'!$E169="H",'ROC (1)'!$D169,"") ->  | AJ169: =IF('ROC (2)'!$E169="D",'ROC (2)'!$D169,"") ->  | AK169: =IF('ROC (2)'!$E169="H",'ROC (2)'!$D169,"") -> 
Z170: =IF('ROC (1)'!$E170="D",'ROC (1)'!$D170,"") ->  | AA170: =IF('ROC (1)'!$E170="H",'ROC (1)'!$D170,"") ->  | AJ170: =IF('ROC (2)'!$E170="D",'ROC (2)'!$D170,"") ->  | AK170: =IF('ROC (2)'!$E170="H",'ROC (2)'!$D170,"") -> 
Z171: =IF('ROC (1)'!$E171="D",'ROC (1)'!$D171,"") ->  | AA171: =IF('ROC (1)'!$E171="H",'ROC (1)'!$D171,"") ->  | AJ171: =IF('ROC (2)'!$E171="D",'ROC (2)'!$D171,"") ->  | AK171: =IF('ROC (2)'!$E171="H",'ROC (2)'!$D171,"") -> 
Z172: =IF('ROC (1)'!$E172="D",'ROC (1)'!$D172,"") ->  | AA172: =IF('ROC (1)'!$E172="H",'ROC (1)'!$D172,"") ->  | AJ172: =IF('ROC (2)'!$E172="D",'ROC (2)'!$D172,"") ->  | AK172: =IF('ROC (2)'!$E172="H",'ROC (2)'!$D172,"") -> 
Z173: =IF('ROC (1)'!$E173="D",'ROC (1)'!$D173,"") ->  | AA173: =IF('ROC (1)'!$E173="H",'ROC (1)'!$D173,"") ->  | AJ173: =IF('ROC (2)'!$E173="D",'ROC (2)'!$D173,"") ->  | AK173: =IF('ROC (2)'!$E173="H",'ROC (2)'!$D173,"") -> 
Z174: =IF('ROC (1)'!$E174="D",'ROC (1)'!$D174,"") ->  | AA174: =IF('ROC (1)'!$E174="H",'ROC (1)'!$D174,"") ->  | AJ174: =IF('ROC (2)'!$E174="D",'ROC (2)'!$D174,"") ->  | AK174: =IF('ROC (2)'!$E174="H",'ROC (2)'!$D174,"") -> 
Z175: =IF('ROC (1)'!$E175="D",'ROC (1)'!$D175,"") ->  | AA175: =IF('ROC (1)'!$E175="H",'ROC (1)'!$D175,"") ->  | AJ175: =IF('ROC (2)'!$E175="D",'ROC (2)'!$D175,"") ->  | AK175: =IF('ROC (2)'!$E175="H",'ROC (2)'!$D175,"") -> 
Z176: =IF('ROC (1)'!$E176="D",'ROC (1)'!$D176,"") ->  | AA176: =IF('ROC (1)'!$E176="H",'ROC (1)'!$D176,"") ->  | AJ176: =IF('ROC (2)'!$E176="D",'ROC (2)'!$D176,"") ->  | AK176: =IF('ROC (2)'!$E176="H",'ROC (2)'!$D176,"") -> 
Z177: =IF('ROC (1)'!$E177="D",'ROC (1)'!$D177,"") ->  | AA177: =IF('ROC (1)'!$E177="H",'ROC (1)'!$D177,"") ->  | AJ177: =IF('ROC (2)'!$E177="D",'ROC (2)'!$D177,"") ->  | AK177: =IF('ROC (2)'!$E177="H",'ROC (2)'!$D177,"") -> 
Z178: =IF('ROC (1)'!$E178="D",'ROC (1)'!$D178,"") ->  | AA178: =IF('ROC (1)'!$E178="H",'ROC (1)'!$D178,"") ->  | AJ178: =IF('ROC (2)'!$E178="D",'ROC (2)'!$D178,"") ->  | AK178: =IF('ROC (2)'!$E178="H",'ROC (2)'!$D178,"") -> 
Z179: =IF('ROC (1)'!$E179="D",'ROC (1)'!$D179,"") ->  | AA179: =IF('ROC (1)'!$E179="H",'ROC (1)'!$D179,"") ->  | AJ179: =IF('ROC (2)'!$E179="D",'ROC (2)'!$D179,"") ->  | AK179: =IF('ROC (2)'!$E179="H",'ROC (2)'!$D179,"") -> 
Z180: =IF('ROC (1)'!$E180="D",'ROC (1)'!$D180,"") ->  | AA180: =IF('ROC (1)'!$E180="H",'ROC (1)'!$D180,"") ->  | AJ180: =IF('ROC (2)'!$E180="D",'ROC (2)'!$D180,"") ->  | AK180: =IF('ROC (2)'!$E180="H",'ROC (2)'!$D180,"") -> 
Z181: =IF('ROC (1)'!$E181="D",'ROC (1)'!$D181,"") ->  | AA181: =IF('ROC (1)'!$E181="H",'ROC (1)'!$D181,"") ->  | AJ181: =IF('ROC (2)'!$E181="D",'ROC (2)'!$D181,"") ->  | AK181: =IF('ROC (2)'!$E181="H",'ROC (2)'!$D181,"") -> 
Z182: =IF('ROC (1)'!$E182="D",'ROC (1)'!$D182,"") ->  | AA182: =IF('ROC (1)'!$E182="H",'ROC (1)'!$D182,"") ->  | AJ182: =IF('ROC (2)'!$E182="D",'ROC (2)'!$D182,"") ->  | AK182: =IF('ROC (2)'!$E182="H",'ROC (2)'!$D182,"") -> 
Z183: =IF('ROC (1)'!$E183="D",'ROC (1)'!$D183,"") ->  | AA183: =IF('ROC (1)'!$E183="H",'ROC (1)'!$D183,"") ->  | AJ183: =IF('ROC (2)'!$E183="D",'ROC (2)'!$D183,"") ->  | AK183: =IF('ROC (2)'!$E183="H",'ROC (2)'!$D183,"") -> 
Z184: =IF('ROC (1)'!$E184="D",'ROC (1)'!$D184,"") ->  | AA184: =IF('ROC (1)'!$E184="H",'ROC (1)'!$D184,"") ->  | AJ184: =IF('ROC (2)'!$E184="D",'ROC (2)'!$D184,"") ->  | AK184: =IF('ROC (2)'!$E184="H",'ROC (2)'!$D184,"") -> 
Z185: =IF('ROC (1)'!$E185="D",'ROC (1)'!$D185,"") ->  | AA185: =IF('ROC (1)'!$E185="H",'ROC (1)'!$D185,"") ->  | AJ185: =IF('ROC (2)'!$E185="D",'ROC (2)'!$D185,"") ->  | AK185: =IF('ROC (2)'!$E185="H",'ROC (2)'!$D185,"") -> 
Z186: =IF('ROC (1)'!$E186="D",'ROC (1)'!$D186,"") ->  | AA186: =IF('ROC (1)'!$E186="H",'ROC (1)'!$D186,"") ->  | AJ186: =IF('ROC (2)'!$E186="D",'ROC (2)'!$D186,"") ->  | AK186: =IF('ROC (2)'!$E186="H",'ROC (2)'!$D186,"") -> 
Z187: =IF('ROC (1)'!$E187="D",'ROC (1)'!$D187,"") ->  | AA187: =IF('ROC (1)'!$E187="H",'ROC (1)'!$D187,"") ->  | AJ187: =IF('ROC (2)'!$E187="D",'ROC (2)'!$D187,"") ->  | AK187: =IF('ROC (2)'!$E187="H",'ROC (2)'!$D187,"") -> 
Z188: =IF('ROC (1)'!$E188="D",'ROC (1)'!$D188,"") ->  | AA188: =IF('ROC (1)'!$E188="H",'ROC (1)'!$D188,"") ->  | AJ188: =IF('ROC (2)'!$E188="D",'ROC (2)'!$D188,"") ->  | AK188: =IF('ROC (2)'!$E188="H",'ROC (2)'!$D188,"") -> 
Z189: =IF('ROC (1)'!$E189="D",'ROC (1)'!$D189,"") ->  | AA189: =IF('ROC (1)'!$E189="H",'ROC (1)'!$D189,"") ->  | AJ189: =IF('ROC (2)'!$E189="D",'ROC (2)'!$D189,"") ->  | AK189: =IF('ROC (2)'!$E189="H",'ROC (2)'!$D189,"") -> 
Z190: =IF('ROC (1)'!$E190="D",'ROC (1)'!$D190,"") ->  | AA190: =IF('ROC (1)'!$E190="H",'ROC (1)'!$D190,"") ->  | AJ190: =IF('ROC (2)'!$E190="D",'ROC (2)'!$D190,"") ->  | AK190: =IF('ROC (2)'!$E190="H",'ROC (2)'!$D190,"") -> 
Z191: =IF('ROC (1)'!$E191="D",'ROC (1)'!$D191,"") ->  | AA191: =IF('ROC (1)'!$E191="H",'ROC (1)'!$D191,"") ->  | AJ191: =IF('ROC (2)'!$E191="D",'ROC (2)'!$D191,"") ->  | AK191: =IF('ROC (2)'!$E191="H",'ROC (2)'!$D191,"") -> 
Z192: =IF('ROC (1)'!$E192="D",'ROC (1)'!$D192,"") ->  | AA192: =IF('ROC (1)'!$E192="H",'ROC (1)'!$D192,"") ->  | AJ192: =IF('ROC (2)'!$E192="D",'ROC (2)'!$D192,"") ->  | AK192: =IF('ROC (2)'!$E192="H",'ROC (2)'!$D192,"") -> 
Z193: =IF('ROC (1)'!$E193="D",'ROC (1)'!$D193,"") ->  | AA193: =IF('ROC (1)'!$E193="H",'ROC (1)'!$D193,"") ->  | AJ193: =IF('ROC (2)'!$E193="D",'ROC (2)'!$D193,"") ->  | AK193: =IF('ROC (2)'!$E193="H",'ROC (2)'!$D193,"") -> 
Z194: =IF('ROC (1)'!$E194="D",'ROC (1)'!$D194,"") ->  | AA194: =IF('ROC (1)'!$E194="H",'ROC (1)'!$D194,"") ->  | AJ194: =IF('ROC (2)'!$E194="D",'ROC (2)'!$D194,"") ->  | AK194: =IF('ROC (2)'!$E194="H",'ROC (2)'!$D194,"") -> 
Z195: =IF('ROC (1)'!$E195="D",'ROC (1)'!$D195,"") ->  | AA195: =IF('ROC (1)'!$E195="H",'ROC (1)'!$D195,"") ->  | AJ195: =IF('ROC (2)'!$E195="D",'ROC (2)'!$D195,"") ->  | AK195: =IF('ROC (2)'!$E195="H",'ROC (2)'!$D195,"") -> 
Z196: =IF('ROC (1)'!$E196="D",'ROC (1)'!$D196,"") ->  | AA196: =IF('ROC (1)'!$E196="H",'ROC (1)'!$D196,"") ->  | AJ196: =IF('ROC (2)'!$E196="D",'ROC (2)'!$D196,"") ->  | AK196: =IF('ROC (2)'!$E196="H",'ROC (2)'!$D196,"") -> 
Z197: =IF('ROC (1)'!$E197="D",'ROC (1)'!$D197,"") ->  | AA197: =IF('ROC (1)'!$E197="H",'ROC (1)'!$D197,"") ->  | AJ197: =IF('ROC (2)'!$E197="D",'ROC (2)'!$D197,"") ->  | AK197: =IF('ROC (2)'!$E197="H",'ROC (2)'!$D197,"") -> 
Z198: =IF('ROC (1)'!$E198="D",'ROC (1)'!$D198,"") ->  | AA198: =IF('ROC (1)'!$E198="H",'ROC (1)'!$D198,"") ->  | AJ198: =IF('ROC (2)'!$E198="D",'ROC (2)'!$D198,"") ->  | AK198: =IF('ROC (2)'!$E198="H",'ROC (2)'!$D198,"") -> 
Z199: =IF('ROC (1)'!$E199="D",'ROC (1)'!$D199,"") ->  | AA199: =IF('ROC (1)'!$E199="H",'ROC (1)'!$D199,"") ->  | AJ199: =IF('ROC (2)'!$E199="D",'ROC (2)'!$D199,"") ->  | AK199: =IF('ROC (2)'!$E199="H",'ROC (2)'!$D199,"") -> 
Z200: =IF('ROC (1)'!$E200="D",'ROC (1)'!$D200,"") ->  | AA200: =IF('ROC (1)'!$E200="H",'ROC (1)'!$D200,"") ->  | AJ200: =IF('ROC (2)'!$E200="D",'ROC (2)'!$D200,"") ->  | AK200: =IF('ROC (2)'!$E200="H",'ROC (2)'!$D200,"") -> 
... 2050 more rows

Sheet Add ROC
B2: AUC: | C2: =Comparison!C16 ->  | D2: AUC: | E2: =Comparison!D16 ->  | F2: AUC: | G2: =SUM(H5:H54) -> 0 | I2: AUC: | J2: =SUM(K5:K54) -> 0 | L2: AUC: | M2: =SUM(N5:N54) -> 0 | O2: AUC: | P2: =SUM(Q10:Q59) -> 0
B3: ='ROC (1)'!P12 -> 0 | D3: ='ROC (2)'!P12 -> 0 | F3: ROC 3 | I3: ROC 4 | L3: ROC 5 | O3: ROC 6 | AA3: 0 | AB3: 0.5 | AC3: 0
B4: FPR | C4: TPR | D4: FPR | E4: TPR | F4: FPR | G4: TPR | H4: AUC | I4: FPR | J4: TPR | K4: AUC | L4: FPR | M4: TPR | N4: AUC | O4: FPR | P4: TPR | AA4: 0 | AB4: =1/3 -> 0.3333333333 | AC4: 1
A5: 1 | B5: ='ROC (1)'!I3 -> 1 | C5: =IFERROR('ROC (1) calc'!B3,"") ->  | D5: ='ROC (2)'!I3 -> 1 | E5: =IFERROR('ROC(2) calc'!B3,"") ->  | AA5: 0 | AB5: =1/4 -> 0.25
A6: 2 | B6: ='ROC (1)'!I4 -> 1 | C6: =IFERROR('ROC (1) calc'!B4,"") ->  | D6: ='ROC (2)'!I4 -> 0.9705882353 | E6: =IFERROR('ROC(2) calc'!B4,"") -> 
A7: 3 | B7: ='ROC (1)'!I5 -> 0.9756 | C7: =IFERROR('ROC (1) calc'!B5,"") ->  | D7: ='ROC (2)'!I5 -> 0.9705882353 | E7: =IFERROR('ROC(2) calc'!B5,"") -> 
A8: 4 | B8: ='ROC (1)'!I6 -> 0.948 | C8: =IFERROR('ROC (1) calc'!B6,"") ->  | D8: ='ROC (2)'!I6 -> 0.9411764706 | E8: =IFERROR('ROC(2) calc'!B6,"") -> 
A9: 5 | B9: ='ROC (1)'!I7 -> 0.9148 | C9: =IFERROR('ROC (1) calc'!B7,"") ->  | D9: ='ROC (2)'!I7 -> 0.9117647059 | E9: =IFERROR('ROC(2) calc'!B7,"") ->  | Q9: AUC
A10: 6 | B10: ='ROC (1)'!I8 -> 0.8688 | C10: =IFERROR('ROC (1) calc'!B8,"") ->  | D10: ='ROC (2)'!I8 -> 0.9117647059 | E10: =IFERROR('ROC(2) calc'!B8,"") ->  | Q10: =IF(AND(ISNUMBER(#REF!),ISNUMBER(#REF!)), ABS((#REF!-#REF!)*(#REF!+#REF!)/2),"") -> 
A11: 7 | B11: ='ROC (1)'!I9 -> 0.8208 | C11: =IFERROR('ROC (1) calc'!B9,"") ->  | D11: ='ROC (2)'!I9 -> 0.9117647059 | E11: =IFERROR('ROC(2) calc'!B9,"") ->  | Q11: =IF(AND(ISNUMBER(#REF!),ISNUMBER(#REF!)), ABS((#REF!-#REF!)*(#REF!+#REF!)/2),"") -> 
A12: 8 | B12: ='ROC (1)'!I10 -> 0.7704 | C12: =IFERROR('ROC (1) calc'!B10,"") ->  | D12: ='ROC (2)'!I10 -> 0.8823529412 | E12: =IFERROR('ROC(2) calc'!B10,"") ->  | Q12: =IF(AND(ISNUMBER(#REF!),ISNUMBER(#REF!)), ABS((#REF!-#REF!)*(#REF!+#REF!)/2),"") -> 
A13: 9 | B13: ='ROC (1)'!I11 -> 0.7212 | C13: =IFERROR('ROC (1) calc'!B11,"") ->  | D13: ='ROC (2)'!I11 -> 0.8529411765 | E13: =IFERROR('ROC(2) calc'!B11,"") ->  | Q13: =IF(AND(ISNUMBER(#REF!),ISNUMBER(#REF!)), ABS((#REF!-#REF!)*(#REF!+#REF!)/2),"") -> 
A14: 10 | B14: ='ROC (1)'!I12 -> 0.7212 | C14: =IFERROR('ROC (1) calc'!B12,"") ->  | D14: ='ROC (2)'!I12 -> 0.7941176471 | E14: =IFERROR('ROC(2) calc'!B12,"") ->  | Q14: =IF(AND(ISNUMBER(#REF!),ISNUMBER(#REF!)), ABS((#REF!-#REF!)*(#REF!+#REF!)/2),"") -> 
A15: 11 | B15: ='ROC (1)'!I13 -> 0.6656 | C15: =IFERROR('ROC (1) calc'!B13,"") ->  | D15: ='ROC (2)'!I13 -> 0.7941176471 | E15: =IFERROR('ROC(2) calc'!B13,"") ->  | Q15: =IF(AND(ISNUMBER(#REF!),ISNUMBER(#REF!)), ABS((#REF!-#REF!)*(#REF!+#REF!)/2),"") ->  | T15: 0 | U15: 1
A16: 12 | B16: ='ROC (1)'!I14 -> 0.6656 | C16: =IFERROR('ROC (1) calc'!B14,"") ->  | D16: ='ROC (2)'!I14 -> 0.7941176471 | E16: =IFERROR('ROC(2) calc'!B14,"") ->  | Q16: =IF(AND(ISNUMBER(#REF!),ISNUMBER(#REF!)), ABS((#REF!-#REF!)*(#REF!+#REF!)/2),"") -> 
A17: 13 | B17: ='ROC (1)'!I15 -> 0.6116 | C17: =IFERROR('ROC (1) calc'!B15,"") ->  | D17: ='ROC (2)'!I15 -> 0.7647058824 | E17: =IFERROR('ROC(2) calc'!B15,"") ->  | Q17: =IF(AND(ISNUMBER(#REF!),ISNUMBER(#REF!)), ABS((#REF!-#REF!)*(#REF!+#REF!)/2),"") ->  | T17: Sensitivity (TPR)
A18: 14 | B18: ='ROC (1)'!I16 -> 0.6116 | C18: =IFERROR('ROC (1) calc'!B16,"") ->  | D18: ='ROC (2)'!I16 -> 0.7058823529 | E18: =IFERROR('ROC(2) calc'!B16,"") ->  | Q18: =IF(AND(ISNUMBER(#REF!),ISNUMBER(#REF!)), ABS((#REF!-#REF!)*(#REF!+#REF!)/2),"") ->  | T18: 1-Specificity (FPR)
A19: 15 | B19: ='ROC (1)'!I17 -> 0.5532 | C19: =IFERROR('ROC (1) calc'!B17,"") ->  | D19: ='ROC (2)'!I17 -> 0.6470588235 | E19: =IFERROR('ROC(2) calc'!B17,"") ->  | Q19: =IF(AND(ISNUMBER(#REF!),ISNUMBER(#REF!)), ABS((#REF!-#REF!)*(#REF!+#REF!)/2),"") -> 
A20: 16 | B20: ='ROC (1)'!I18 -> 0.5532 | C20: =IFERROR('ROC (1) calc'!B18,"") ->  | D20: ='ROC (2)'!I18 -> 0.6470588235 | E20: =IFERROR('ROC(2) calc'!B18,"") ->  | Q20: =IF(AND(ISNUMBER(#REF!),ISNUMBER(#REF!)), ABS((#REF!-#REF!)*(#REF!+#REF!)/2),"") -> 
A21: 17 | B21: ='ROC (1)'!I19 -> 0.5056 | C21: =IFERROR('ROC (1) calc'!B19,"") ->  | D21: ='ROC (2)'!I19 -> 0.6176470588 | E21: =IFERROR('ROC(2) calc'!B19,"") ->  | Q21: =IF(AND(ISNUMBER(#REF!),ISNUMBER(#REF!)), ABS((#REF!-#REF!)*(#REF!+#REF!)/2),"") -> 
A22: 18 | B22: ='ROC (1)'!I20 -> 0.5056 | C22: =IFERROR('ROC (1) calc'!B20,"") ->  | D22: ='ROC (2)'!I20 -> 0.5 | E22: =IFERROR('ROC(2) calc'!B20,"") ->  | Q22: =IF(AND(ISNUMBER(#REF!),ISNUMBER(#REF!)), ABS((#REF!-#REF!)*(#REF!+#REF!)/2),"") -> 
A23: 19 | B23: ='ROC (1)'!I21 -> 0.4512 | C23: =IFERROR('ROC (1) calc'!B21,"") ->  | D23: ='ROC (2)'!I21 -> 0.4411764706 | E23: =IFERROR('ROC(2) calc'!B21,"") ->  | Q23: =IF(AND(ISNUMBER(#REF!),ISNUMBER(#REF!)), ABS((#REF!-#REF!)*(#REF!+#REF!)/2),"") -> 
A24: 20 | B24: ='ROC (1)'!I22 -> 0.4512 | C24: =IFERROR('ROC (1) calc'!B22,"") ->  | D24: ='ROC (2)'!I22 -> 0.4411764706 | E24: =IFERROR('ROC(2) calc'!B22,"") ->  | Q24: =IF(AND(ISNUMBER(#REF!),ISNUMBER(#REF!)), ABS((#REF!-#REF!)*(#REF!+#REF!)/2),"") -> 
A25: 21 | B25: ='ROC (1)'!I23 -> 0.388 | C25: =IFERROR('ROC (1) calc'!B23,"") ->  | D25: ='ROC (2)'!I23 -> 0.4411764706 | E25: =IFERROR('ROC(2) calc'!B23,"") ->  | Q25: =IF(AND(ISNUMBER(#REF!),ISNUMBER(#REF!)), ABS((#REF!-#REF!)*(#REF!+#REF!)/2),"") -> 
A26: 22 | B26: ='ROC (1)'!I24 -> 0.388 | C26: =IFERROR('ROC (1) calc'!B24,"") ->  | D26: ='ROC (2)'!I24 -> 0.4411764706 | E26: =IFERROR('ROC(2) calc'!B24,"") ->  | Q26: =IF(AND(ISNUMBER(#REF!),ISNUMBER(#REF!)), ABS((#REF!-#REF!)*(#REF!+#REF!)/2),"") -> 
A27: 23 | B27: ='ROC (1)'!I25 -> 0.3408 | C27: =IFERROR('ROC (1) calc'!B25,"") ->  | D27: ='ROC (2)'!I25 -> 0.4411764706 | E27: =IFERROR('ROC(2) calc'!B25,"") ->  | Q27: =IF(AND(ISNUMBER(#REF!),ISNUMBER(#REF!)), ABS((#REF!-#REF!)*(#REF!+#REF!)/2),"") -> 
A28: 24 | B28: ='ROC (1)'!I26 -> 0.3408 | C28: =IFERROR('ROC (1) calc'!B26,"") ->  | D28: ='ROC (2)'!I26 -> 0.3823529412 | E28: =IFERROR('ROC(2) calc'!B26,"") ->  | Q28: =IF(AND(ISNUMBER(#REF!),ISNUMBER(#REF!)), ABS((#REF!-#REF!)*(#REF!+#REF!)/2),"") -> 
A29: 25 | B29: ='ROC (1)'!I27 -> 0.3028 | C29: =IFERROR('ROC (1) calc'!B27,"") ->  | D29: ='ROC (2)'!I27 -> 0.3529411765 | E29: =IFERROR('ROC(2) calc'!B27,"") ->  | Q29: =IF(AND(ISNUMBER(#REF!),ISNUMBER(#REF!)), ABS((#REF!-#REF!)*(#REF!+#REF!)/2),"") -> 
A30: 26 | B30: ='ROC (1)'!I28 -> 0.3028 | C30: =IFERROR('ROC (1) calc'!B28,"") ->  | D30: ='ROC (2)'!I28 -> 0.3235294118 | E30: =IFERROR('ROC(2) calc'!B28,"") ->  | Q30: =IF(AND(ISNUMBER(#REF!),ISNUMBER(#REF!)), ABS((#REF!-#REF!)*(#REF!+#REF!)/2),"") -> 
A31: 27 | B31: ='ROC (1)'!I29 -> 0.2656 | C31: =IFERROR('ROC (1) calc'!B29,"") ->  | D31: ='ROC (2)'!I29 -> 0.3235294118 | E31: =IFERROR('ROC(2) calc'!B29,"") ->  | Q31: =IF(AND(ISNUMBER(#REF!),ISNUMBER(#REF!)), ABS((#REF!-#REF!)*(#REF!+#REF!)/2),"") -> 
A32: 28 | B32: ='ROC (1)'!I30 -> 0.2656 | C32: =IFERROR('ROC (1) calc'!B30,"") ->  | D32: ='ROC (2)'!I30 -> 0.2941176471 | E32: =IFERROR('ROC(2) calc'!B30,"") ->  | Q32: =IF(AND(ISNUMBER(#REF!),ISNUMBER(#REF!)), ABS((#REF!-#REF!)*(#REF!+#REF!)/2),"") -> 
A33: 29 | B33: ='ROC (1)'!I31 -> 0.2268 | C33: =IFERROR('ROC (1) calc'!B31,"") ->  | D33: ='ROC (2)'!I31 -> 0.2941176471 | E33: =IFERROR('ROC(2) calc'!B31,"") ->  | Q33: =IF(AND(ISNUMBER(#REF!),ISNUMBER(#REF!)), ABS((#REF!-#REF!)*(#REF!+#REF!)/2),"") -> 
A34: 30 | B34: ='ROC (1)'!I32 -> 0.2268 | C34: =IFERROR('ROC (1) calc'!B32,"") ->  | D34: ='ROC (2)'!I32 -> 0.2941176471 | E34: =IFERROR('ROC(2) calc'!B32,"") ->  | Q34: =IF(AND(ISNUMBER(#REF!),ISNUMBER(#REF!)), ABS((#REF!-#REF!)*(#REF!+#REF!)/2),"") -> 
A35: 31 | B35: ='ROC (1)'!I33 -> 0.1924 | C35: =IFERROR('ROC (1) calc'!B33,"") ->  | D35: ='ROC (2)'!I33 -> 0.2941176471 | E35: =IFERROR('ROC(2) calc'!B33,"") ->  | Q35: =IF(AND(ISNUMBER(#REF!),ISNUMBER(#REF!)), ABS((#REF!-#REF!)*(#REF!+#REF!)/2),"") -> 
A36: 32 | B36: ='ROC (1)'!I34 -> 0.1924 | C36: =IFERROR('ROC (1) calc'!B34,"") ->  | D36: ='ROC (2)'!I34 -> 0.2941176471 | E36: =IFERROR('ROC(2) calc'!B34,"") ->  | Q36: =IF(AND(ISNUMBER(#REF!),ISNUMBER(#REF!)), ABS((#REF!-#REF!)*(#REF!+#REF!)/2),"") -> 
A37: 33 | B37: ='ROC (1)'!I35 -> 0.1564 | C37: =IFERROR('ROC (1) calc'!B35,"") ->  | D37: ='ROC (2)'!I35 -> 0.2941176471 | E37: =IFERROR('ROC(2) calc'!B35,"") ->  | Q37: =IF(AND(ISNUMBER(#REF!),ISNUMBER(#REF!)), ABS((#REF!-#REF!)*(#REF!+#REF!)/2),"") -> 
A38: 34 | B38: ='ROC (1)'!I36 -> 0.1564 | C38: =IFERROR('ROC (1) calc'!B36,"") ->  | D38: ='ROC (2)'!I36 -> 0.2941176471 | E38: =IFERROR('ROC(2) calc'!B36,"") ->  | Q38: =IF(AND(ISNUMBER(#REF!),ISNUMBER(#REF!)), ABS((#REF!-#REF!)*(#REF!+#REF!)/2),"") -> 
A39: 35 | B39: ='ROC (1)'!I37 -> 0.1252 | C39: =IFERROR('ROC (1) calc'!B37,"") ->  | D39: ='ROC (2)'!I37 -> 0.2941176471 | E39: =IFERROR('ROC(2) calc'!B37,"") ->  | Q39: =IF(AND(ISNUMBER(#REF!),ISNUMBER(#REF!)), ABS((#REF!-#REF!)*(#REF!+#REF!)/2),"") -> 
A40: 36 | B40: ='ROC (1)'!I38 -> 0.1252 | C40: =IFERROR('ROC (1) calc'!B38,"") ->  | D40: ='ROC (2)'!I38 -> 0.2647058824 | E40: =IFERROR('ROC(2) calc'!B38,"") ->  | Q40: =IF(AND(ISNUMBER(#REF!),ISNUMBER(#REF!)), ABS((#REF!-#REF!)*(#REF!+#REF!)/2),"") -> 
A41: 37 | B41: ='ROC (1)'!I39 -> 0.0952 | C41: =IFERROR('ROC (1) calc'!B39,"") ->  | D41: ='ROC (2)'!I39 -> 0.2647058824 | E41: =IFERROR('ROC(2) calc'!B39,"") ->  | Q41: =IF(AND(ISNUMBER(#REF!),ISNUMBER(#REF!)), ABS((#REF!-#REF!)*(#REF!+#REF!)/2),"") -> 
A42: 38 | B42: ='ROC (1)'!I40 -> 0.0952 | C42: =IFERROR('ROC (1) calc'!B40,"") ->  | D42: ='ROC (2)'!I40 -> 0.2352941176 | E42: =IFERROR('ROC(2) calc'!B40,"") ->  | Q42: =IF(AND(ISNUMBER(#REF!),ISNUMBER(#REF!)), ABS((#REF!-#REF!)*(#REF!+#REF!)/2),"") -> 
A43: 39 | B43: ='ROC (1)'!I41 -> 0.07 | C43: =IFERROR('ROC (1) calc'!B41,"") ->  | D43: ='ROC (2)'!I41 -> 0.2058823529 | E43: =IFERROR('ROC(2) calc'!B41,"") ->  | Q43: =IF(AND(ISNUMBER(#REF!),ISNUMBER(#REF!)), ABS((#REF!-#REF!)*(#REF!+#REF!)/2),"") -> 
A44: 40 | B44: ='ROC (1)'!I42 -> 0.07 | C44: =IFERROR('ROC (1) calc'!B42,"") ->  | D44: ='ROC (2)'!I42 -> 0.1764705882 | E44: =IFERROR('ROC(2) calc'!B42,"") ->  | Q44: =IF(AND(ISNUMBER(#REF!),ISNUMBER(#REF!)), ABS((#REF!-#REF!)*(#REF!+#REF!)/2),"") -> 
A45: 41 | B45: ='ROC (1)'!I43 -> 0.0484 | C45: =IFERROR('ROC (1) calc'!B43,"") ->  | D45: ='ROC (2)'!I43 -> 0.1470588235 | E45: =IFERROR('ROC(2) calc'!B43,"") ->  | Q45: =IF(AND(ISNUMBER(#REF!),ISNUMBER(#REF!)), ABS((#REF!-#REF!)*(#REF!+#REF!)/2),"") -> 
A46: 42 | B46: ='ROC (1)'!I44 -> 0.0484 | C46: =IFERROR('ROC (1) calc'!B44,"") ->  | D46: ='ROC (2)'!I44 -> 0.1176470588 | E46: =IFERROR('ROC(2) calc'!B44,"") ->  | Q46: =IF(AND(ISNUMBER(#REF!),ISNUMBER(#REF!)), ABS((#REF!-#REF!)*(#REF!+#REF!)/2),"") -> 
A47: 43 | B47: ='ROC (1)'!I45 -> 0.024 | C47: =IFERROR('ROC (1) calc'!B45,"") ->  | D47: ='ROC (2)'!I45 -> 0.08823529412 | E47: =IFERROR('ROC(2) calc'!B45,"") ->  | Q47: =IF(AND(ISNUMBER(#REF!),ISNUMBER(#REF!)), ABS((#REF!-#REF!)*(#REF!+#REF!)/2),"") -> 
A48: 44 | B48: ='ROC (1)'!I46 -> 0.024 | C48: =IFERROR('ROC (1) calc'!B46,"") ->  | D48: ='ROC (2)'!I46 -> 0.08823529412 | E48: =IFERROR('ROC(2) calc'!B46,"") ->  | Q48: =IF(AND(ISNUMBER(#REF!),ISNUMBER(#REF!)), ABS((#REF!-#REF!)*(#REF!+#REF!)/2),"") -> 
A49: 45 | B49: ='ROC (1)'!I47 -> 0 | C49: =IFERROR('ROC (1) calc'!B47,"") ->  | D49: ='ROC (2)'!I47 -> 0.05882352941 | E49: =IFERROR('ROC(2) calc'!B47,"") ->  | Q49: =IF(AND(ISNUMBER(#REF!),ISNUMBER(#REF!)), ABS((#REF!-#REF!)*(#REF!+#REF!)/2),"") -> 
A50: 46 | B50: ='ROC (1)'!I48 -> 0 | C50: =IFERROR('ROC (1) calc'!B48,"") ->  | D50: ='ROC (2)'!I48 -> 0.02941176471 | E50: =IFERROR('ROC(2) calc'!B48,"") ->  | Q50: =IF(AND(ISNUMBER(#REF!),ISNUMBER(#REF!)), ABS((#REF!-#REF!)*(#REF!+#REF!)/2),"") -> 
A51: 47 | B51: ='ROC (1)'!I49 -> 0 | C51: =IFERROR('ROC (1) calc'!B49,"") ->  | D51: ='ROC (2)'!I49 -> 0.02941176471 | E51: =IFERROR('ROC(2) calc'!B49,"") ->  | Q51: =IF(AND(ISNUMBER(#REF!),ISNUMBER(#REF!)), ABS((#REF!-#REF!)*(#REF!+#REF!)/2),"") -> 
A52: 48 | B52: ='ROC (1)'!I50 -> 0 | C52: =IFERROR('ROC (1) calc'!B50,"") ->  | D52: ='ROC (2)'!I50 -> 0 | E52: =IFERROR('ROC(2) calc'!B50,"") ->  | Q52: =IF(AND(ISNUMBER(#REF!),ISNUMBER(#REF!)), ABS((#REF!-#REF!)*(#REF!+#REF!)/2),"") -> 
A53: 49 | B53: ='ROC (1)'!I51 -> 0 | C53: =IFERROR('ROC (1) calc'!B51,"") ->  | D53: ='ROC (2)'!I51 -> 1 | E53: =IFERROR('ROC(2) calc'!B51,"") ->  | Q53: =IF(AND(ISNUMBER(#REF!),ISNUMBER(#REF!)), ABS((#REF!-#REF!)*(#REF!+#REF!)/2),"") -> 
A54: 50 | B54: ='ROC (1)'!I52 -> 0 | C54: =IFERROR('ROC (1) calc'!B52,"") ->  | D54: ='ROC (2)'!I52 -> 1 | E54: =IFERROR('ROC(2) calc'!B52,"") ->  | Q54: =IF(AND(ISNUMBER(#REF!),ISNUMBER(#REF!)), ABS((#REF!-#REF!)*(#REF!+#REF!)/2),"") -> 
Q55: =IF(AND(ISNUMBER(#REF!),ISNUMBER(#REF!)), ABS((#REF!-#REF!)*(#REF!+#REF!)/2),"") -> 
Q56: =IF(AND(ISNUMBER(#REF!),ISNUMBER(#REF!)), ABS((#REF!-#REF!)*(#REF!+#REF!)/2),"") -> 
Q57: =IF(AND(ISNUMBER(#REF!),ISNUMBER(#REF!)), ABS((#REF!-#REF!)*(#REF!+#REF!)/2),"") -> 
Q58: =IF(AND(ISNUMBER(#REF!),ISNUMBER(#REF!)), ABS((#REF!-#REF!)*(#REF!+#REF!)/2),"") -> 
Q59: =IF(AND(ISNUMBER(#REF!),ISNUMBER(P55)), ABS((O55-#REF!)*(#REF!+P55)/2),"") -> 
